Workbook

Sheet START
A1: =muni -> NC074 Kareeberg

Sheet Instructions
D2: 2020
X4: Yes
X5: No
W7: Type of Entities Range: | X7: Parent Municipality
X8: Consolidated Information
W10: Date linked | X10: 1
W11: Date | X11: =VLOOKUP(X10,W39:X55,2) -> M01 July | Y11: 2013-08-01
W19: MTREF Range: | X19: 2008
X20: 2009
X21: 2010
X22: 2011
X23: 2012
X24: 2013
X25: 2014
X26: 2015
X27: 2016
X28: 2017
X29: 2018
X30: 2019
X31: 2020
X32: 2021
X33: 2022
W34: MTREF Linked:
W35: MTREF: | X35: 11
X36: =INDEX(X19:X33,X35,1) -> 2018
W37: Fin Year:
X38: =MTREF&"/"&RIGHT(MTREF,2)+1 -> 2018/19
V39: Date/type of report | W39: 1 | X39: M01 July
W40: 2 | X40: M02 August
W41: 3 | X41: M03 September
W42: 4 | X42: M04 October
W43: 5 | X43: M05 November
W44: 6 | X44: M06 December
W45: 7 | X45: M07 January
W46: 8 | X46: M08 February
W47: 9 | X47: M09 March
W48: 10 | X48: M10 April
W49: 11 | X49: M11 May
W50: 12 | X50: M12 June
W51: 13 | X51: Q1 First Quarter
W52: 14 | X52: Q2 Second Quarter
W53: 15 | X53: Q3 Third Quarter
W54: 16 | X54: Q4 Fourth Quarter
W55: 17 | X55: Mid-Year Assessment

Sheet Template names (hidden)
A1: Common sheet headings
A2: Head1 | B2: =HLOOKUP(MTREF,Headings,2) -> 2017/18 | C2: Prior year -1
A3: Head2 | B3: =HLOOKUP(MTREF,Headings,5) -> Budget Year 2018/19 | C3: Year of approved budget
A4: Head2A | B4: =HLOOKUP(MTREF,Headings,4) -> 2018/19 | C4: Approved budget year
A5: Head3 | B5: =HLOOKUP(MTREF,Headings,3) -> 2018/19 Medium Term Revenue & Expenditure Framework | C5: MTREF header name
A6: Head5 | B6: Audited Outcome
A7: Head5A | B7: Outcome
A8: Head5B | B8: Pre-audit outcome
A9: Head6 | B9: Original Budget
A10: Head7 | B10: Adjusted Budget
A11: Head8 | B11: Full Year Forecast
A12: Head9 | B12: =HLOOKUP(MTREF,Headings,5) -> Budget Year 2018/19 | C12: 1st year of MTREF | D12: Year1
A13: Head10 | B13: =HLOOKUP(MTREF,Headings,6) -> Budget Year +1 2019/20 | C13: 2nd year of MTREF | D13: Year2
A14: Head11 | B14: =HLOOKUP(MTREF,Headings,7) -> Budget Year +2 2020/21 | C14: 3rd year of MTREF | D14: Year3
A15: Head12 | B15: Forecast 2010/11 | D15: Year4
A16: Head13 | B16: Forecast 2011/12 | D16: Year5
A17: Head14 | B17: Forecast 2012/13 | D17: Year6
A18: Head15 | B18: Forecast 2013/14 | D18: Year7
A19: Head16 | B19: Forecast 2014/15 | D19: Year8
A20: Head17 | B20: Forecast 2015/16 | D20: Year9
A21: Head18 | B21: Forecast 2016/17 | D21: Year10
A22: Head19 | B22: Forecast 2017/18 | D22: Year11
A23: Head20 | B23: Forecast 2018/19 | D23: Year12
A24: Head21 | B24: Forecast 2019/20 | D24: Year13
A25: Head22 | B25: Forecast 2020/21 | D25: Year14
A26: Head23 | B26: Forecast 2021/22 | D26: Year15
A27: Head24 | B27: Description | D27: Desc
A28: Head25 | B28: Schedule of funding diligence | D28: fdil
A29: Head26 | B29: Vote Description | D29: VDesc
A30: Head27 | B30: Ref
A31: Head27a | B31: References
A32: Head28 | B32: Surplus/ (Deficit) for the year | D32: Result
A33: Head29 | B33: Annual target 2007/08
A34: Head30 | B34: Revised target 2007/08
A35: Head31 | B35: Quarter ended 30 September
A36: Head32 | B36: Quarter ended 31 December
A37: Head33 | B37: Quarter ended 31 March
A38: Head34 | B38: Quarter ended 30 June
A39: Head35 | B39: Variance explanation
A40: Head36 | B40: YTD Actual 31 Dec
A41: Head37 | B41: YTD Budget 31 Dec
A42: Head38 | B42: Monthly actual
A43: Head39 | B43: YearTD actual
A44: Head40 | B44: YearTD budget
A45: Head41 | B45: YTD variance
A46: Head42 | B46: Surplus/ (Deficit) for the yr/period
A47: Head43 | B47: =Head3&" Summary" -> 2018/19 Medium Term Revenue & Expenditure Framework Summary
A48: Head44 | B48: 1996 Census
A49: Head45 | B49: 2001 Census
A50: Head46 | B50: - Adjustments Budget - Month YYYY
A51: Head47 | B51: Previous target year to complete
A52: Head48 | B52: Present value
A53: Head49 | B53: Virement
A54: Head50 | B54: Other Adjusts.
A55: Head51 | B55: Accum. Funds
A56: Head52 | B56: Multi-year capital
A57: Head53 | B57: Unfore. Unavoid.
A58: Head54 | B58: Prior Adjusted
A59: Head55 | B59: Nat. or Prov. Govt
A60: Head56 | B60: Total Adjusts.
A61: Head57 | B61: =date -> M01 July
A62: Head58 | B62: Parent muni.
A63: Head59 | B63: Downward adjusts
A64: Head60 | B64: Month | C64: Report header part name | D64: =MONTH(date) -> 
A65: SFPerf1 | B65: Budgeted Financial Performance
A66: SFPerf2 | B66: Forecast Financial Performance
A67: SFPos1 | B67: Budgeted Financial Position
A68: SFPos2 | B68: Forecast Financial Position
A69: Cash1 | B69: Budget Cash Flow
A70: Cash2 | B70: Forecast Cash Flow
A71: RandM | B71: Expenditure includes repairs & maintenance of R'000
A72: Standard nomenclature
A73: Muni | B73: ='Lookup and lists'!B27 -> NC074 Kareeberg
A74: Municipal Entities | B74: 2 | C74: Type of report: | D74: 3
A75: =IF((MuniEntities=1)*(MuniType=2),"YES","NO") -> NO | B75: Does this municipality have entities (consolidated budget and entity budgets required)? YES/NO
A76: s71 (Monthly Mayor report) schedules and charts
A77: S71sum | B77: =IF(Consolques="YES",E77,F77) -> Table C1 Monthly Budget Statement Summary | D77: Table C1 | E77: =D77&"Consolidated Monthly Budget Statement Summary" -> Table C1 Consolidated Monthly Budget Statement Summary | F77: =D77&"Monthly Budget Statement Summary" -> Table C1 Monthly Budget Statement Summary
A78: S71C | B78: Table C3 Monthly Budget Statement - Financial Performance (revenue and expenditure by municipal vote) | D78: Table C3 | E78: =D78&"Consolidated Monthly Budget Statement - Financial Performance (revenue and expenditure by municipal vote) " -> Table C3 Consolidated Monthly Budget Statement - Financial Performance (revenue and expenditure by municipal vote) | F78: =D78&"Monthly Budget Statement - Financial Performance (revenue and expenditure by municipal vote)" -> Table C3 Monthly Budget Statement - Financial Performance (revenue and expenditure by municipal vote)
A79: S71A | B79: =IF(Consolques="YES",E79,F79) -> Table C2 Monthly Budget Statement - Financial Performance (standard classification) | D79: Table C2 | E79: =D79&"Consolidated Monthly Budget Statement - Financial Performance (standard classification) " -> Table C2 Consolidated Monthly Budget Statement - Financial Performance (standard classification) | F79: =D79&"Monthly Budget Statement - Financial Performance (standard classification)" -> Table C2 Monthly Budget Statement - Financial Performance (standard classification)
A80: S71B | B80: =IF(Consolques="YES",E80,F80) -> Table C4 Monthly Budget Statement - Financial Performance (revenue and expenditure) | D80: Table C4 | E80: =D80&"Consolidated Monthly Budget Statement - Financial Performance (revenue and expenditure) " -> Table C4 Consolidated Monthly Budget Statement - Financial Performance (revenue and expenditure) | F80: =D80&"Monthly Budget Statement - Financial Performance (revenue and expenditure)" -> Table C4 Monthly Budget Statement - Financial Performance (revenue and expenditure)
A81: S71D | B81: =IF(Consolques="YES",E81,F81) -> Table C5 Monthly Budget Statement - Capital Expenditure (municipal vote, standard classification and funding) | D81: Table C5 | E81: =D81&"Consolidated Monthly Budget Statement - Capital Expenditure (municipal vote, standard classification and funding " -> Table C5 Consolidated Monthly Budget Statement - Capital Expenditure (municipal vote, standard classification and funding | F81: =D81&"Monthly Budget Statement - Capital Expenditure (municipal vote, standard classification and funding)" -> Table C5 Monthly Budget Statement - Capital Expenditure (municipal vote, standard classification and funding)
A82: S71E | B82: Table C6 Monthly Budget Statement - Financial Position | D82: Table C6 | E82: =D82&"Consolidated Monthly Budget Statement - Financial Position " -> Table C6 Consolidated Monthly Budget Statement - Financial Position | F82: =D82&"Monthly Budget Statement - Financial Position" -> Table C6 Monthly Budget Statement - Financial Position
A83: S71F | B83: Table C7 Monthly Budget Statement - Cash Flow | D83: Table C7 | E83: =D83&"Consolidated Monthly Budget Statement - Cash Flow " -> Table C7 Consolidated Monthly Budget Statement - Cash Flow | F83: =D83&"Monthly Budget Statement - Cash Flow " -> Table C7 Monthly Budget Statement - Cash Flow
A84: S71G | B84: =D84&"Material variance explanations " -> Supporting Table SC1 Material variance explanations | D84: Supporting Table SC1
A85: S71H | B85: =D85&"Monthly Budget Statement - performance indicators " -> Supporting Table SC2 Monthly Budget Statement - performance indicators | D85: Supporting Table SC2
A86: S71I | B86: =D86&"Monthly Budget Statement - aged debtors" -> Supporting Table SC3 Monthly Budget Statement - aged debtors | D86: Supporting Table SC3
A87: S71J | B87: =D87&"Monthly Budget Statement - aged creditors " -> Supporting Table SC4 Monthly Budget Statement - aged creditors | D87: Supporting Table SC4
A88: S71K | B88: =D88&"Monthly Budget Statement - investment portfolio " -> Supporting Table SC5 Monthly Budget Statement - investment portfolio | D88: Supporting Table SC5
A89: S71L | B89: =D89&"Monthly Budget Statement - transfers and grant receipts " -> Supporting Table SC6 Monthly Budget Statement - transfers and grant receipts | D89: Supporting Table SC6
A90: S71M | B90: =D90&" Monthly Budget Statement - transfers and grant expenditure " -> Supporting Table SC7(1) Monthly Budget Statement - transfers and grant expenditure | D90: Supporting Table SC7(1)
A91: S71N | B91: =D91&"Monthly Budget Statement - councillor and staff benefits " -> Supporting Table SC8 Monthly Budget Statement - councillor and staff benefits | D91: Supporting Table SC8
A92: S71O | B92: =D92&"Monthly Budget Statement - actuals and revised targets for cash receipts" -> Supporting Table SC9 Monthly Budget Statement - actuals and revised targets for cash receipts | D92: Supporting Table SC9
A93: S71P | B93: =IF(Consolques="YES",E93,F93) -> NOT REQUIRED - municipality does not have entities or this is the parent municipality's budget | D93: Supporting Table SC10 | E93: =D93&"Monthly Budget Statement - Parent Municipality Financial Performance (revenue and expenditure) " -> Supporting Table SC10 Monthly Budget Statement - Parent Municipality Financial Performance (revenue and expenditure) | F93: NOT REQUIRED - municipality does not have entities or this is the parent municipality's budget
A94: S71Q | B94: NOT REQUIRED - municipality does not have entities or this is the parent municipality's budget | D94: Supporting Table SC11 | E94: =D94&"Monthly Budget Statement - summary of municipal entities" -> Supporting Table SC11 Monthly Budget Statement - summary of municipal entities | F94: NOT REQUIRED - municipality does not have entities or this is the parent municipality's budget
A95: S71R | B95: Supporting Table SC12 Monthly Budget Statement - capital expenditure trend | D95: Supporting Table SC12 | E95: =D95&"Consolidated Monthly Budget Statement - capital expenditure trend " -> Supporting Table SC12 Consolidated Monthly Budget Statement - capital expenditure trend | F95: =D95&"Monthly Budget Statement - capital expenditure trend" -> Supporting Table SC12 Monthly Budget Statement - capital expenditure trend
A96: S71Sa | B96: Supporting Table SC13a Monthly Budget Statement - capital expenditure on new assets by asset class | D96: Supporting Table SC13a | E96: =D96&"Consolidated Monthly Budget Statement - capital expenditure on new assets by asset class" -> Supporting Table SC13a Consolidated Monthly Budget Statement - capital expenditure on new assets by asset class | F96: =D96&"Monthly Budget Statement - capital expenditure on new assets by asset class" -> Supporting Table SC13a Monthly Budget Statement - capital expenditure on new assets by asset class
A97: S71Sb | B97: Supporting Table SC13b Monthly Budget Statement - capital expenditure on renewal of existing assets by asset class | D97: Supporting Table SC13b | E97: =D97&"Consolidated Monthly Budget Statement - capital expenditure on renewal of existing assets by asset class" -> Supporting Table SC13b Consolidated Monthly Budget Statement - capital expenditure on renewal of existing assets by asset class | F97: =D97&"Monthly Budget Statement - capital expenditure on renewal of existing assets by asset class" -> Supporting Table SC13b Monthly Budget Statement - capital expenditure on renewal of existing assets by asset class
A98: S71Sc | B98: Supporting Table SC13c Monthly Budget Statement - expenditure on repairs and maintenance by asset class | D98: Supporting Table SC13c | E98: =D98&"Consolidated Monthly Budget Statement - expenditure on repairs and maintenance by asset class" -> Supporting Table SC13c Consolidated Monthly Budget Statement - expenditure on repairs and maintenance by asset class | F98: =D98&"Monthly Budget Statement - expenditure on repairs and maintenance by asset class" -> Supporting Table SC13c Monthly Budget Statement - expenditure on repairs and maintenance by asset class
A99: S71Sd | B99: Supporting Table SC13d Monthly Budget Statement - depreciation by asset class | D99: Supporting Table SC13d | E99: =D99&"Consolidated Monthly Budget Statement - depreciation by asset class" -> Supporting Table SC13d Consolidated Monthly Budget Statement - depreciation by asset class | F99: =D99&"Monthly Budget Statement - depreciation by asset class" -> Supporting Table SC13d Monthly Budget Statement - depreciation by asset class
B100: s71 charts listing
B101: =D101&Head2A&" Capital Expenditure Monthly Trend: actual v target" -> Chart C1 2018/19 Capital Expenditure Monthly Trend: actual v target | D101: Chart C1
B102: =D102&Head2A&" Capital Expenditure: YTD actual v YTD target" -> Chart C2 2018/19 Capital Expenditure: YTD actual v YTD target | D102: Chart C2
B103: =D103&"Aged Consumer Debtors Analysis" -> Chart C3 Aged Consumer Debtors Analysis | D103: Chart C3
B104: =D104&"Consumer Debtors (total by Debtor Customer Category)" -> Chart C4 Consumer Debtors (total by Debtor Customer Category) | D104: Chart C4
B105: =D105&"Aged Creditors Analysis" -> Chart C5 Aged Creditors Analysis | D105: Chart C5
A106: S71T | B106: =D106&" Monthly Budget Statement - Expenditure against approved rollovers" -> Supporting Table SC7(2) Monthly Budget Statement - Expenditure against approved rollovers | D106: Supporting Table SC7(2)

Sheet Lookup and lists (hidden)
A1: Description | B1: 2007 | C1: 2008 | D1: 2009 | E1: 2010 | F1: 2011 | G1: 2012 | H1: 2013 | I1: 2014 | J1: 2015 | K1: 2016 | L1: 2017 | M1: 2018 | N1: 2019 | O1: 2020 | Q1: Grants: | R1: National - opex | S1: Provincial - opex | T1: National - capex | U1: Provincial - capex | V1: YESNO
A2: ='Template names'!C2 -> Prior year -1 | B2: 2006/07 | C2: 2007/08 | D2: 2008/09 | E2: =E1-1&"/"&RIGHT(E1,2)-0 -> 2009/10 | F2: =F1-1&"/"&RIGHT(F1,2)-0 -> 2010/11 | G2: 2011/12 | H2: 2012/13 | I2: 2013/14 | J2: 2014/15 | K2: 2015/16 | L2: 2016/17 | M2: 2017/18 | N2: 2018/19 | O2: 2019/20 | R2: Local Government Equitable Share | S2: Health subsidy | T2: Municipal Infrastructure Grant (MIG) | U2: Agriculture | V2: Yes
A3: ='Template names'!C5 -> MTREF header name | B3: 2007/08 Medium Term Revenue & Expenditure Framework | C3: 2008/09 Medium Term Revenue & Expenditure Framework | D3: 2009/10 Medium Term Revenue & Expenditure Framework | E3: =E1&"/"&RIGHT(E1,2)+1&" Medium Term Revenue & Expenditure Framework" -> 2010/11 Medium Term Revenue & Expenditure Framework | F3: =F1&"/"&RIGHT(F1,2)+1&" Medium Term Revenue & Expenditure Framework" -> 2011/12 Medium Term Revenue & Expenditure Framework | G3: 2012/13 Medium Term Revenue & Expenditure Framework | H3: 2013/14 Medium Term Revenue & Expenditure Framework | I3: 2014/15 Medium Term Revenue & Expenditure Framework | J3: 2015/16 Medium Term Revenue & Expenditure Framework | K3: 2016/17 Medium Term Revenue & Expenditure Framework | L3: 2017/18 Medium Term Revenue & Expenditure Framework | M3: 2018/19 Medium Term Revenue & Expenditure Framework | N3: 2019/20 Medium Term Revenue & Expenditure Framework | O3: 2020/21 Medium Term Revenue & Expenditure Framework | R3: RSC Levy Replacement | S3: Ambulance subsidy | T3: Public Transport and Systems | U3: Education | V3: No
A4: ='Template names'!C4 -> Approved budget year | B4: 2007/08 | C4: 2008/09 | D4: 2009/10 | E4: =E1&"/"&RIGHT(E1,2)+1 -> 2010/11 | F4: =F1&"/"&RIGHT(F1,2)+1 -> 2011/12 | G4: 2012/13 | H4: 2013/14 | I4: 2014/15 | J4: 2015/16 | K4: 2016/17 | L4: 2017/18 | M4: 2018/19 | N4: 2019/20 | O4: 2020/21 | R4: Finance Management | S4: Housing | T4: Rural Transport Services and Infrastructure | U4: Health
A5: ='Template names'!C12 -> 1st year of MTREF | B5: Budget Year 2007/08 | C5: Budget Year 2008/09 | D5: Budget Year 2009/10 | E5: ="Budget Year "&E1&"/"&RIGHT(E1,2)+1 -> Budget Year 2010/11 | F5: ="Budget Year "&F1&"/"&RIGHT(F1,2)+1 -> Budget Year 2011/12 | G5: Budget Year 2012/13 | H5: Budget Year 2013/14 | I5: Budget Year 2014/15 | J5: Budget Year 2015/16 | K5: Budget Year 2016/17 | L5: Budget Year 2017/18 | M5: Budget Year 2018/19 | N5: Budget Year 2019/20 | O5: Budget Year 2020/21 | R5: Municipal Systems Improvement | S5: Sport and Recreation | T5: Regional Bulk Infrastructure | U5: Housing and Local Government
A6: ='Template names'!C13 -> 2nd year of MTREF | B6: Budget Year +1 2008/09 | C6: Budget Year +1 2009/10 | D6: Budget Year +1 2010/11 | E6: ="Budget Year +1 "&E1+1&"/"&RIGHT(E1,2)+2 -> Budget Year +1 2011/12 | F6: ="Budget Year +1 "&F1+1&"/"&RIGHT(F1,2)+2 -> Budget Year +1 2012/13 | G6: Budget Year +1 2013/14 | H6: Budget Year +1 2014/15 | I6: Budget Year +1 2015/16 | J6: Budget Year +1 2016/17 | K6: Budget Year +1 2017/18 | L6: Budget Year +1 2018/19 | M6: Budget Year +1 2019/20 | N6: Budget Year +1 2020/21 | O6: Budget Year +1 2021/22 | R6: Water Services Operating Subsidy | T6: Rural Households Infrastructure | U6: Other Departments
A7: ='Template names'!C14 -> 3rd year of MTREF | B7: Budget Year +2 2009/10 | C7: Budget Year +2 2010/11 | D7: Budget Year +2 2011/12 | E7: ="Budget Year +2 "&E1+2&"/"&RIGHT(E1,2)+3 -> Budget Year +2 2012/13 | F7: ="Budget Year +2 "&F1+2&"/"&RIGHT(F1,2)+3 -> Budget Year +2 2013/14 | G7: Budget Year +2 2014/15 | H7: Budget Year +2 2015/16 | I7: Budget Year +2 2016/17 | J7: Budget Year +2 2017/18 | K7: Budget Year +2 2018/19 | L7: Budget Year +2 2019/20 | M7: Budget Year +2 2020/21 | N7: Budget Year +2 2021/22 | O7: Budget Year +2 2022/23 | R7: Energy Efficiency and Demand Management | T7: Neighbourhood Development Partnership | U7: Public Works, Roads, Transport
A8: NOTE: This sheet should not be directly amended - select headings from sheet 'S' | R8: Integrated National Electrification Programme | T8: 2010 FIFA World Cup Stadiums Development | U8: Sport and Recreation
R9: Municipal Drought Relief
R10: 2010 FIFA World Cup Operating
R11: Electricity Demand Side Management
R12: EPWP Incentive
A26: Name link | B26: 232
A27: Name of Muni | B27: =INDEX(B28:B311,B26,1) -> NC074 Kareeberg
B28: Choose name from list | C28: Set name on 'Instructions' sheet
B29: BUF Buffalo City | C29: EC EASTERN CAPE
B30: NMA Nelson Mandela Bay | C30: EC EASTERN CAPE
B31: EC101 Camdeboo | C31: EC EASTERN CAPE
B32: EC102 Blue Crane Route | C32: EC EASTERN CAPE
B33: EC103 Ikwezi | C33: EC EASTERN CAPE
B34: EC104 Makana | C34: EC EASTERN CAPE
B35: EC105 Ndlambe | C35: EC EASTERN CAPE
B36: EC106 Sundays River Valley | C36: EC EASTERN CAPE
B37: EC107 Baviaans | C37: EC EASTERN CAPE
B38: EC108 Kouga | C38: EC EASTERN CAPE
B39: EC109 Kou-Kamma | C39: EC EASTERN CAPE
B40: DC10 Cacadu | C40: EC EASTERN CAPE
B41: EC121 Mbhashe | C41: EC EASTERN CAPE
B42: EC122 Mnquma | C42: EC EASTERN CAPE
B43: EC123 Great Kei | C43: EC EASTERN CAPE
B44: EC124 Amahlathi | C44: EC EASTERN CAPE
B45: EC126 Ngqushwa | C45: EC EASTERN CAPE
B46: EC127 Nkonkobe | C46: EC EASTERN CAPE
B47: EC128 Nxuba | C47: EC EASTERN CAPE
B48: DC12 Amathole | C48: EC EASTERN CAPE
B49: EC131 Inxuba Yethemba | C49: EC EASTERN CAPE
B50: EC132 Tsolwana | C50: EC EASTERN CAPE
B51: EC133 Inkwanca | C51: EC EASTERN CAPE
B52: EC134 Lukhanji | C52: EC EASTERN CAPE
B53: EC135 Intsika Yethu | C53: EC EASTERN CAPE
B54: EC136 Emalahleni (Ec) | C54: EC EASTERN CAPE
B55: EC137 Engcobo | C55: EC EASTERN CAPE
B56: EC138 Sakhisizwe | C56: EC EASTERN CAPE
B57: DC13 Chris Hani | C57: EC EASTERN CAPE
B58: EC141 Elundini | C58: EC EASTERN CAPE
B59: EC142 Senqu | C59: EC EASTERN CAPE
B60: EC143 Maletswai | C60: EC EASTERN CAPE
B61: EC144 Gariep | C61: EC EASTERN CAPE
B62: DC14 Joe Gqabi | C62: EC EASTERN CAPE
B63: EC153 Ngquza Hills | C63: EC EASTERN CAPE
B64: EC154 Port St Johns | C64: EC EASTERN CAPE
B65: EC155 Nyandeni | C65: EC EASTERN CAPE
B66: EC156 Mhlontlo | C66: EC EASTERN CAPE
B67: EC157 King Sabata Dalindyebo | C67: EC EASTERN CAPE
B68: DC15 O .R. Tambo | C68: EC EASTERN CAPE
B69: EC441 Matatiele | C69: EC EASTERN CAPE
B70: EC442 Umzimvubu | C70: EC EASTERN CAPE
B71: EC443 Mbizana | C71: EC EASTERN CAPE
B72: EC444 Ntabankulu | C72: EC EASTERN CAPE
B73: DC44 Alfred Nzo | C73: EC EASTERN CAPE
B74: MAN Mangaung | C74: FS FREE STATE
B75: FS161 Letsemeng | C75: FS FREE STATE
B76: FS162 Kopanong | C76: FS FREE STATE
B77: FS163 Mohokare | C77: FS FREE STATE
B78: FS164 Naledi (Fs) | C78: FS FREE STATE
B79: DC16 Xhariep | C79: FS FREE STATE
B80: FS181 Masilonyana | C80: FS FREE STATE
B81: FS182 Tokologo | C81: FS FREE STATE
B82: FS183 Tswelopele | C82: FS FREE STATE
B83: FS184 Matjhabeng | C83: FS FREE STATE
B84: FS185 Nala | C84: FS FREE STATE
B85: DC18 Lejweleputswa | C85: FS FREE STATE
B86: FS191 Setsoto | C86: FS FREE STATE
B87: FS192 Dihlabeng | C87: FS FREE STATE
B88: FS193 Nketoana | C88: FS FREE STATE
B89: FS194 Maluti-a-Phofung | C89: FS FREE STATE
B90: FS195 Phumelela | C90: FS FREE STATE
B91: FS196 Mantsopa | C91: FS FREE STATE
B92: DC19 Thabo Mofutsanyana | C92: FS FREE STATE
B93: FS201 Moqhaka | C93: FS FREE STATE
B94: FS203 Ngwathe | C94: FS FREE STATE
B95: FS204 Metsimaholo | C95: FS FREE STATE
B96: FS205 Mafube | C96: FS FREE STATE
B97: DC20 Fezile Dabi | C97: FS FREE STATE
B98: EKU Ekurhuleni Metro | C98: GT GAUTENG
B99: JHB City Of Johannesburg | C99: GT GAUTENG
B100: TSH City Of Tshwane | C100: GT GAUTENG
B101: GT421 Emfuleni | C101: GT GAUTENG
B102: GT422 Midvaal | C102: GT GAUTENG
B103: GT423 Lesedi | C103: GT GAUTENG
B104: DC42 Sedibeng | C104: GT GAUTENG
B105: GT481 Mogale City | C105: GT GAUTENG
B106: GT482 Randfontein | C106: GT GAUTENG
B107: GT483 Westonaria | C107: GT GAUTENG
B108: GT484 Merafong City | C108: GT GAUTENG
B109: DC48 West Rand | C109: GT GAUTENG
B110: ETH eThekwini | C110: KZN KWAZULU-NATAL
B111: KZN211 Vulamehlo | C111: KZN KWAZULU-NATAL
B112: KZN212 Umdoni | C112: KZN KWAZULU-NATAL
B113: KZN213 Umzumbe | C113: KZN KWAZULU-NATAL
B114: KZN214 uMuziwabantu | C114: KZN KWAZULU-NATAL
B115: KZN215 Ezinqoleni | C115: KZN KWAZULU-NATAL
B116: KZN216 Hibiscus Coast | C116: KZN KWAZULU-NATAL
B117: DC21 Ugu | C117: KZN KWAZULU-NATAL
B118: KZN221 uMshwathi | C118: KZN KWAZULU-NATAL
B119: KZN222 uMngeni | C119: KZN KWAZULU-NATAL
B120: KZN223 Mpofana | C120: KZN KWAZULU-NATAL
B121: KZN224 Impendle | C121: KZN KWAZULU-NATAL
B122: KZN225 Msunduzi | C122: KZN KWAZULU-NATAL
B123: KZN226 Mkhambathini | C123: KZN KWAZULU-NATAL
B124: KZN227 Richmond | C124: KZN KWAZULU-NATAL
B125: DC22 uMgungundlovu | C125: KZN KWAZULU-NATAL
B126: KZN232 Emnambithi/Ladysmith | C126: KZN KWAZULU-NATAL
B127: KZN233 Indaka | C127: KZN KWAZULU-NATAL
B128: KZN234 Umtshezi | C128: KZN KWAZULU-NATAL
B129: KZN235 Okhahlamba | C129: KZN KWAZULU-NATAL
B130: KZN236 Imbabazane | C130: KZN KWAZULU-NATAL
B131: DC23 Uthukela | C131: KZN KWAZULU-NATAL
B132: KZN241 Endumeni | C132: KZN KWAZULU-NATAL
B133: KZN242 Nquthu | C133: KZN KWAZULU-NATAL
B134: KZN244 Msinga | C134: KZN KWAZULU-NATAL
B135: KZN245 Umvoti | C135: KZN KWAZULU-NATAL
B136: DC24 Umzinyathi | C136: KZN KWAZULU-NATAL
B137: KZN252 Newcastle | C137: KZN KWAZULU-NATAL
B138: KZN253 eMadlangeni | C138: KZN KWAZULU-NATAL
B139: KZN254 Dannhauser | C139: KZN KWAZULU-NATAL
B140: DC25 Amajuba | C140: KZN KWAZULU-NATAL
B141: KZN261 eDumbe | C141: KZN KWAZULU-NATAL
B142: KZN262 uPhongolo | C142: KZN KWAZULU-NATAL
B143: KZN263 Abaqulusi | C143: KZN KWAZULU-NATAL
B144: KZN265 Nongoma | C144: KZN KWAZULU-NATAL
B145: KZN266 Ulundi | C145: KZN KWAZULU-NATAL
B146: DC26 Zululand | C146: KZN KWAZULU-NATAL
B147: KZN271 Umhlabuyalingana | C147: KZN KWAZULU-NATAL
B148: KZN272 Jozini | C148: KZN KWAZULU-NATAL
B149: KZN273 The Big 5 False Bay | C149: KZN KWAZULU-NATAL
B150: KZN274 Hlabisa | C150: KZN KWAZULU-NATAL
B151: KZN275 Mtubatuba | C151: KZN KWAZULU-NATAL
B152: DC27 Umkhanyakude | C152: KZN KWAZULU-NATAL
B153: KZN281 Mfolozi | C153: KZN KWAZULU-NATAL
B154: KZN282 uMhlathuze | C154: KZN KWAZULU-NATAL
B155: KZN283 Ntambanana | C155: KZN KWAZULU-NATAL
B156: KZN284 uMlalazi | C156: KZN KWAZULU-NATAL
B157: KZN285 Mthonjaneni | C157: KZN KWAZULU-NATAL
B158: KZN286 Nkandla | C158: KZN KWAZULU-NATAL
B159: DC28 uThungulu | C159: KZN KWAZULU-NATAL
B160: KZN291 Mandeni | C160: KZN KWAZULU-NATAL
B161: KZN292 KwaDukuza | C161: KZN KWAZULU-NATAL
B162: KZN293 Ndwedwe | C162: KZN KWAZULU-NATAL
B163: KZN294 Maphumulo | C163: KZN KWAZULU-NATAL
B164: DC29 iLembe | C164: KZN KWAZULU-NATAL
B165: KZN431 Ingwe | C165: KZN KWAZULU-NATAL
B166: KZN432 Kwa Sani | C166: KZN KWAZULU-NATAL
B167: KZN433 Greater Kokstad | C167: KZN KWAZULU-NATAL
B168: KZN434 Ubuhlebezwe | C168: KZN KWAZULU-NATAL
B169: KZN435 Umzimkhulu | C169: KZN KWAZULU-NATAL
B170: DC43 Sisonke | C170: KZN KWAZULU-NATAL
B171: LIM331 Greater Giyani | C171: LIM LIMPOPO
B172: LIM332 Greater Letaba | C172: LIM LIMPOPO
B173: LIM333 Greater Tzaneen | C173: LIM LIMPOPO
B174: LIM334 Ba-Phalaborwa | C174: LIM LIMPOPO
B175: LIM335 Maruleng | C175: LIM LIMPOPO
B176: DC33 Mopani | C176: LIM LIMPOPO
B177: LIM341 Musina | C177: LIM LIMPOPO
B178: LIM342 Mutale | C178: LIM LIMPOPO
B179: LIM343 Thulamela | C179: LIM LIMPOPO
B180: LIM344 Makhado | C180: LIM LIMPOPO
B181: DC34 Vhembe | C181: LIM LIMPOPO
B182: LIM351 Blouberg | C182: LIM LIMPOPO
B183: LIM352 Aganang | C183: LIM LIMPOPO
B184: LIM353 Molemole | C184: LIM LIMPOPO
B185: LIM354 Polokwane | C185: LIM LIMPOPO
B186: LIM355 Lepelle-Nkumpi | C186: LIM LIMPOPO
B187: DC35 Capricorn | C187: LIM LIMPOPO
B188: LIM361 Thabazimbi | C188: LIM LIMPOPO
B189: LIM362 Lephalale | C189: LIM LIMPOPO
B190: LIM364 Mookgopong | C190: LIM LIMPOPO
B191: LIM365 Modimolle | C191: LIM LIMPOPO
B192: LIM366 Bela Bela | C192: LIM LIMPOPO
B193: LIM367 Mogalakwena | C193: LIM LIMPOPO
B194: DC36 Waterberg | C194: LIM LIMPOPO
B195: LIM471 Ephraim Mogale | C195: LIM LIMPOPO
B196: LIM472 Elias Motsoaledi | C196: LIM LIMPOPO
B197: LIM473 Makhuduthamaga | C197: LIM LIMPOPO
B198: LIM474 Fetakgomo | C198: LIM LIMPOPO
B199: LIM475 Greater Tubatse | C199: LIM LIMPOPO
B200: DC47 Sekhukhune | C200: LIM LIMPOPO
B201: MP301 Albert Luthuli | C201: MP MPUMALANGA
B202: MP302 Msukaligwa | C202: MP MPUMALANGA
B203: MP303 Mkhondo | C203: MP MPUMALANGA
B204: MP304 Pixley Ka Seme (MP) | C204: MP MPUMALANGA
B205: MP305 Lekwa | C205: MP MPUMALANGA
B206: MP306 Dipaleseng | C206: MP MPUMALANGA
B207: MP307 Govan Mbeki | C207: MP MPUMALANGA
B208: DC30 Gert Sibande | C208: MP MPUMALANGA
B209: MP311 Victor Khanye | C209: MP MPUMALANGA
B210: MP312 Emalahleni (Mp) | C210: MP MPUMALANGA
B211: MP313 Steve Tshwete | C211: MP MPUMALANGA
B212: MP314 Emakhazeni | C212: MP MPUMALANGA
B213: MP315 Thembisile Hani | C213: MP MPUMALANGA
... 94 more rows

Sheet Org structure
A1: Organisational Structure Votes | C1: Organisational Structure Sub-Votes | E1: Display Sub-Votes
A2: =B2&" - "&C2 -> Vote 1 - Executive and Council | B2: Vote 1 | C2: Executive and Council
A3: =B13&" - "& C13 -> Vote 2 - Budget and Treasury | B3: 1.1 | C3: Executive and Council | D3: =CONCATENATE(B3, " - ", C3) -> 1.1 - Executive and Council | E3: 1,1 - Executive and Council
A4: =B24&" - "&C24 -> Vote 3 - Corporate Services | B4: 1.2 | C4: [Name of sub-vote] | D4: 1.2 - [Name of sub-vote]
A5: =B35&" - "&C35 -> Vote 4 - Planning and Development | B5: 1.3 | C5: [Name of sub-vote] | D5: 1.3 - [Name of sub-vote]
A6: =B46&" - "&C46 -> Vote 5 - Health | B6: 1.4 | C6: [Name of sub-vote] | D6: 1.4 - [Name of sub-vote]
A7: =B57&" - "&C57 -> Vote 6 - Community and Social Services | B7: 1.5 | C7: [Name of sub-vote] | D7: 1.5 - [Name of sub-vote]
A8: =B68&" - "&C68 -> Vote 7 - Housing | B8: 1.6 | C8: [Name of sub-vote] | D8: 1.6 - [Name of sub-vote]
A9: =B79&" - "&C79 -> Vote 8 - Public Safety | B9: 1.7 | C9: [Name of sub-vote] | D9: 1.7 - [Name of sub-vote]
A10: =B90&" - "&C90 -> Vote 9 - Sport and Recreation | B10: 1.8 | C10: [Name of sub-vote] | D10: 1.8 - [Name of sub-vote]
A11: =B101&" - "&C101 -> Vote 10 - Environmental Protection | B11: 1.9 | C11: [Name of sub-vote] | D11: 1.9 - [Name of sub-vote]
A12: =B112&" - "&C112 -> Vote 11 - Solid Waste Management | B12: 1.10 | C12: [Name of sub-vote] | D12: 1.10 - [Name of sub-vote]
A13: =B123&" - "&C123 -> Vote 12 - Waste Water Management | B13: Vote 2 | C13: Budget and Treasury
A14: =B134&" - "&C134 -> Vote 13 - Road Transport | B14: 2.1 | C14: Official Housing | D14: =CONCATENATE(B14, " - ", C14) -> 2.1 - Official Housing | E14: 2,1 - Official Housing
A15: =B145&" - "&C145 -> Vote 14 - Water | B15: 2.2 | C15: Rates | D15: 2.2 - Rates | E15: 2,2 - Rates
A16: =B156&" - "&C156 -> Vote 15 - Electricity | B16: 2.3 | C16: Commonage | D16: 2.3 - Commonage | E16: 2,3 - Commonage
B17: 2.4 | C17: Municipal Buildings | D17: 2.4 - Municipal Buildings | E17: 2,4 - Municipal Buildings
B18: 2.5 | C18: Budget and Treasury Office | D18: 2.5 - Budget and Treasury Office | E18: 2,5 - Budget and Treasury Office
B19: 2.6 | C19: Airport | D19: 2.6 - Airport | E19: 2,6 - Airport
B20: 2.7 | C20: Abattoir | D20: 2.7 - Abattoir | E20: 2.7 - Abattoir
B21: 2.8 | C21: [Name of sub-vote] | D21: 2.8 - [Name of sub-vote]
B22: 2.9 | C22: [Name of sub-vote] | D22: 2.9 - [Name of sub-vote]
B23: 2.10 | C23: [Name of sub-vote] | D23: 2.10 - [Name of sub-vote]
B24: Vote 3 | C24: Corporate Services
B25: 3.1 | C25: Corporate Services | D25: =CONCATENATE(B25, " - ", C25) -> 3.1 - Corporate Services | E25: 3,1 - Corporate Services
B26: 3.2 | C26: [Name of sub-vote] | D26: 3.2 - [Name of sub-vote]
B27: 3.3 | C27: [Name of sub-vote] | D27: 3.3 - [Name of sub-vote]
B28: 3.4 | C28: [Name of sub-vote] | D28: 3.4 - [Name of sub-vote]
B29: 3.5 | C29: [Name of sub-vote] | D29: 3.5 - [Name of sub-vote]
B30: 3.6 | C30: [Name of sub-vote] | D30: 3.6 - [Name of sub-vote]
B31: 3.7 | C31: [Name of sub-vote] | D31: 3.7 - [Name of sub-vote]
B32: 3.8 | C32: [Name of sub-vote] | D32: 3.8 - [Name of sub-vote]
B33: 3.9 | C33: [Name of sub-vote] | D33: 3.9 - [Name of sub-vote]
B34: 3.10 | C34: [Name of sub-vote] | D34: 3.10 - [Name of sub-vote]
B35: Vote 4 | C35: Planning and Development
B36: 4.1 | C36: [Name of sub-vote] | D36: =CONCATENATE(B36, " - ", C36) -> 4.1 - [Name of sub-vote] | E36: 4.1 - [Name of sub-vote]
B37: 4.2 | C37: [Name of sub-vote] | D37: 4.2 - [Name of sub-vote]
B38: 4.3 | C38: [Name of sub-vote] | D38: 4.3 - [Name of sub-vote]
B39: 4.4 | C39: [Name of sub-vote] | D39: 4.4 - [Name of sub-vote]
B40: 4.5 | C40: [Name of sub-vote] | D40: 4.5 - [Name of sub-vote]
B41: 4.6 | C41: [Name of sub-vote] | D41: 4.6 - [Name of sub-vote]
B42: 4.7 | C42: [Name of sub-vote] | D42: 4.7 - [Name of sub-vote]
B43: 4.8 | C43: [Name of sub-vote] | D43: 4.8 - [Name of sub-vote]
B44: 4.9 | C44: [Name of sub-vote] | D44: 4.9 - [Name of sub-vote]
B45: 4.10 | C45: [Name of sub-vote] | D45: 4.10 - [Name of sub-vote]
B46: Vote 5 | C46: Health
B47: 5.1 | C47: Health | D47: =CONCATENATE(B47, " - ", C47) -> 5.1 - Health | E47: 5,1 - Health
B48: 5.2 | C48: Clinics | D48: 5.2 - Clinics | E48: 5,2 - Clinics
B49: 5.3 | C49: [Name of sub-vote] | D49: 5.3 - [Name of sub-vote]
B50: 5.4 | C50: [Name of sub-vote] | D50: 5.4 - [Name of sub-vote]
B51: 5.5 | C51: [Name of sub-vote] | D51: 5.5 - [Name of sub-vote]
B52: 5.6 | C52: [Name of sub-vote] | D52: 5.6 - [Name of sub-vote]
B53: 5.7 | C53: [Name of sub-vote] | D53: 5.7 - [Name of sub-vote]
B54: 5.8 | C54: [Name of sub-vote] | D54: 5.8 - [Name of sub-vote]
B55: 5.9 | C55: [Name of sub-vote] | D55: 5.9 - [Name of sub-vote]
B56: 5.10 | C56: [Name of sub-vote] | D56: 5.10 - [Name of sub-vote]
B57: Vote 6 | C57: Community and Social Services
B58: 6.1 | C58: Cemetry | D58: =CONCATENATE(B58, " - ", C58) -> 6.1 - Cemetry | E58: 6,1 - Cemetry
B59: 6.2 | C59: Library | D59: 6.2 - Library | E59: 6,2 - Library
B60: 6.3 | C60: Museum | D60: 6.3 - Museum | E60: 6,3 - Museum
B61: 6.4 | C61: [Name of sub-vote] | D61: 6.4 - [Name of sub-vote]
B62: 6.5 | C62: [Name of sub-vote] | D62: 6.5 - [Name of sub-vote]
B63: 6.6 | C63: [Name of sub-vote] | D63: 6.6 - [Name of sub-vote]
B64: 6.7 | C64: [Name of sub-vote] | D64: 6.7 - [Name of sub-vote]
B65: 6.8 | C65: [Name of sub-vote] | D65: 6.8 - [Name of sub-vote]
B66: 6.9 | C66: [Name of sub-vote] | D66: 6.9 - [Name of sub-vote]
B67: 6.10 | C67: [Name of sub-vote] | D67: 6.10 - [Name of sub-vote]
B68: Vote 7 | C68: Housing
B69: 7.1 | C69: [Name of sub-vote] | D69: =CONCATENATE(B69, " - ", C69) -> 7.1 - [Name of sub-vote] | E69: 7.1 - [Name of sub-vote]
B70: 7.2 | C70: [Name of sub-vote] | D70: 7.2 - [Name of sub-vote]
B71: 7.3 | C71: [Name of sub-vote] | D71: 7.3 - [Name of sub-vote]
B72: 7.4 | C72: [Name of sub-vote] | D72: 7.4 - [Name of sub-vote]
B73: 7.5 | C73: [Name of sub-vote] | D73: 7.5 - [Name of sub-vote]
B74: 7.6 | C74: [Name of sub-vote] | D74: 7.6 - [Name of sub-vote]
B75: 7.7 | C75: [Name of sub-vote] | D75: 7.7 - [Name of sub-vote]
B76: 7.8 | C76: [Name of sub-vote] | D76: 7.8 - [Name of sub-vote]
B77: 7.9 | C77: [Name of sub-vote] | D77: 7.9 - [Name of sub-vote]
B78: 7.10 | C78: [Name of sub-vote] | D78: 7.10 - [Name of sub-vote]
B79: Vote 8 | C79: Public Safety
B80: 8.1 | C80: Fire Service | D80: =CONCATENATE(B80, " - ", C80) -> 8.1 - Fire Service | E80: 8,1 - Fire Service
B81: 8.2 | C81: Civil Defence | D81: 8.2 - Civil Defence | E81: 8,2 - Civil Defence
B82: 8.3 | C82: Pound | D82: 8.3 - Pound | E82: 8,3 - Pound
B83: 8.4 | C83: [Name of sub-vote] | D83: 8.4 - [Name of sub-vote]
B84: 8.5 | C84: [Name of sub-vote] | D84: 8.5 - [Name of sub-vote]
B85: 8.6 | C85: [Name of sub-vote] | D85: 8.6 - [Name of sub-vote]
B86: 8.7 | C86: [Name of sub-vote] | D86: 8.7 - [Name of sub-vote]
B87: 8.8 | C87: [Name of sub-vote] | D87: 8.8 - [Name of sub-vote]
B88: 8.9 | C88: [Name of sub-vote] | D88: 8.9 - [Name of sub-vote]
B89: 8.10 | C89: [Name of sub-vote] | D89: 8.10 - [Name of sub-vote]
B90: Vote 9 | C90: Sport and Recreation
B91: 9.1 | C91: Nature Reserve | D91: =CONCATENATE(B91, " - ", C91) -> 9.1 - Nature Reserve | E91: 9,1 - Nature Reserve
B92: 9.2 | C92: Parks and Gardens | D92: 9.2 - Parks and Gardens | E92: 9,2 - Parks and Gardens
B93: 9.3 | C93: Swimming Pool | D93: 9.3 - Swimming Pool | E93: 9,3 - Swimming Pool
B94: 9.4 | C94: Caravan Park | D94: 9.4 - Caravan Park | E94: 9,4 - Caravan Park
B95: 9.5 | C95: [Name of sub-vote] | D95: 9.5 - [Name of sub-vote]
B96: 9.6 | C96: [Name of sub-vote] | D96: 9.6 - [Name of sub-vote]
B97: 9.7 | C97: [Name of sub-vote] | D97: 9.7 - [Name of sub-vote]
B98: 9.8 | C98: [Name of sub-vote] | D98: 9.8 - [Name of sub-vote]
B99: 9.9 | C99: [Name of sub-vote] | D99: 9.9 - [Name of sub-vote]
B100: 9.10 | C100: [Name of sub-vote] | D100: 9.10 - [Name of sub-vote]
B101: Vote 10 | C101: Environmental Protection
B102: 10.1 | C102: [Name of sub-vote] | D102: =CONCATENATE(B102, " - ", C102) -> 10.1 - [Name of sub-vote] | E102: 10.1 - [Name of sub-vote]
B103: 10.2 | C103: [Name of sub-vote] | D103: 10.2 - [Name of sub-vote]
B104: 10.3 | C104: [Name of sub-vote] | D104: 10.3 - [Name of sub-vote]
B105: 10.4 | C105: [Name of sub-vote] | D105: 10.4 - [Name of sub-vote]
B106: 10.5 | C106: [Name of sub-vote] | D106: 10.5 - [Name of sub-vote]
B107: 10.6 | C107: [Name of sub-vote] | D107: 10.6 - [Name of sub-vote]
B108: 10.7 | C108: [Name of sub-vote] | D108: 10.7 - [Name of sub-vote]
B109: 10.8 | C109: [Name of sub-vote] | D109: 10.8 - [Name of sub-vote]
B110: 10.9 | C110: [Name of sub-vote] | D110: 10.9 - [Name of sub-vote]
B111: 10.10 | C111: [Name of sub-vote] | D111: 10.10 - [Name of sub-vote]
B112: Vote 11 | C112: Solid Waste Management
B113: 11.1 | C113: Refuse removal | D113: =CONCATENATE(B113, " - ", C113) -> 11.1 - Refuse removal | E113: 11,1 - Refuse removal
B114: 11.2 | C114: [Name of sub-vote] | D114: 11.2 - [Name of sub-vote]
B115: 11.3 | C115: [Name of sub-vote] | D115: 11.3 - [Name of sub-vote]
B116: 11.4 | C116: [Name of sub-vote] | D116: 11.4 - [Name of sub-vote]
B117: 11.5 | C117: [Name of sub-vote] | D117: 11.5 - [Name of sub-vote]
B118: 11.6 | C118: [Name of sub-vote] | D118: 11.6 - [Name of sub-vote]
B119: 11.7 | C119: [Name of sub-vote] | D119: 11.7 - [Name of sub-vote]
B120: 11.8 | C120: [Name of sub-vote] | D120: 11.8 - [Name of sub-vote]
B121: 11.9 | C121: [Name of sub-vote] | D121: 11.9 - [Name of sub-vote]
B122: 11.10 | C122: [Name of sub-vote] | D122: 11.10 - [Name of sub-vote]
B123: Vote 12 | C123: Waste Water Management
B124: 12.1 | C124: Sewerage | D124: =CONCATENATE(B124, " - ", C124) -> 12.1 - Sewerage | E124: 12,1 - Sewerage
B125: 12.2 | C125: [Name of sub-vote] | D125: 12.2 - [Name of sub-vote]
B126: 12.3 | C126: [Name of sub-vote] | D126: 12.3 - [Name of sub-vote]
B127: 12.4 | C127: [Name of sub-vote] | D127: 12.4 - [Name of sub-vote]
B128: 12.5 | C128: [Name of sub-vote] | D128: 12.5 - [Name of sub-vote]
B129: 12.6 | C129: [Name of sub-vote] | D129: 12.6 - [Name of sub-vote]
B130: 12.7 | C130: [Name of sub-vote] | D130: 12.7 - [Name of sub-vote]
B131: 12.8 | C131: [Name of sub-vote] | D131: 12.8 - [Name of sub-vote]
B132: 12.9 | C132: [Name of sub-vote] | D132: 12.9 - [Name of sub-vote]
B133: 12.10 | C133: [Name of sub-vote] | D133: 12.10 - [Name of sub-vote]
B134: Vote 13 | C134: Road Transport
B135: 13.1 | C135: Main Roads | D135: =CONCATENATE(B135, " - ", C135) -> 13.1 - Main Roads | E135: 13,1 - Main Roads
B136: 13.2 | C136: Public Works | D136: 13.2 - Public Works | E136: 13,2 - Public Works
B137: 13.3 | C137: Streets and Pavements | D137: 13.3 - Streets and Pavements | E137: 13,3 - Streets and Pavements
B138: 13.4 | C138: Traffic and licencing | D138: 13.4 - Traffic and licencing | E138: 13,4 - Traffic and licencing
B139: 13.5 | C139: [Name of sub-vote] | D139: 13.5 - [Name of sub-vote]
B140: 13.6 | C140: [Name of sub-vote] | D140: 13.6 - [Name of sub-vote]
B141: 13.7 | C141: [Name of sub-vote] | D141: 13.7 - [Name of sub-vote]
B142: 13.8 | C142: [Name of sub-vote] | D142: 13.8 - [Name of sub-vote]
B143: 13.9 | C143: [Name of sub-vote] | D143: 13.9 - [Name of sub-vote]
B144: 13.10 | C144: [Name of sub-vote] | D144: 13.10 - [Name of sub-vote]
B145: Vote 14 | C145: Water
B146: 14.1 | C146: Water Distribution | D146: =CONCATENATE(B146, " - ", C146) -> 14.1 - Water Distribution | E146: 14,1 - Water Distribution
B147: 14.2 | C147: Water Storage | D147: 14.2 - Water Storage | E147: 14,2 - Water Storage
B148: 14.3 | C148: [Name of sub-vote] | D148: 14.3 - [Name of sub-vote]
B149: 14.4 | C149: [Name of sub-vote] | D149: 14.4 - [Name of sub-vote]
B150: 14.5 | C150: [Name of sub-vote] | D150: 14.5 - [Name of sub-vote]
B151: 14.6 | C151: [Name of sub-vote] | D151: 14.6 - [Name of sub-vote]
B152: 14.7 | C152: [Name of sub-vote] | D152: 14.7 - [Name of sub-vote]
B153: 14.8 | C153: [Name of sub-vote] | D153: 14.8 - [Name of sub-vote]
B154: 14.9 | C154: [Name of sub-vote] | D154: 14.9 - [Name of sub-vote]
B155: 14.10 | C155: [Name of sub-vote] | D155: 14.10 - [Name of sub-vote]
B156: Vote 15 | C156: Electricity
B157: 15.1 | C157: Electricity Administration | D157: =CONCATENATE(B157, " - ", C157) -> 15.1 - Electricity Administration | E157: 15,1 - Electricity Administration
B158: 15.2 | C158: Electricity Distribution | D158: 15.2 - Electricity Distribution | E158: 15,2 - Electricity Distribution
B159: 15.3 | C159: Electricity Generation | D159: 15.3 - Electricity Generation | E159: 15,3 - Electricity Generation
B160: 15.4 | C160: [Name of sub-vote] | D160: 15.4 - [Name of sub-vote]
B161: 15.5 | C161: [Name of sub-vote] | D161: 15.5 - [Name of sub-vote]
B162: 15.6 | C162: [Name of sub-vote] | D162: 15.6 - [Name of sub-vote]
B163: 15.7 | C163: [Name of sub-vote] | D163: 15.7 - [Name of sub-vote]
B164: 15.8 | C164: [Name of sub-vote] | D164: 15.8 - [Name of sub-vote]
B165: 15.9 | C165: [Name of sub-vote] | D165: 15.9 - [Name of sub-vote]
B166: 15.10 | C166: [Name of sub-vote] | D166: 15.10 - [Name of sub-vote]

Sheet Contacts
A1: =muni&" - "&" Contact Information" -> NC074 Kareeberg - Contact Information
A3: A. GENERAL INFORMATION
A4: Municipality | B4: =muni -> NC074 Kareeberg | C4: Set name on 'Instructions' sheet
A6: Grade | B6: 2 | C6: 1 Grade in terms of the Remuneration of Public Office Bearers Act.
A8: Province | B8: =IF(B4>" ",VLOOKUP(B4,'Lookup and lists'!B28:C311,2, FALSE)," ") -> NC NORTHERN CAPE
A10: Web Address | B10: www.kareeberg.co.za
A12: e-mail Address | B12: kareeberg@xsinet.co.za
A14: B. CONTACT INFORMATION
A15: Postal address:
A16: P.O. Box | B16: 10
A17: City / Town | B17: CARNARVON
A18: Postal Code | B18: 8925
A20: Street address
A21: Building
A22: Street No. & Name | B22: Hanau Street
A23: City / Town | B23: CARNARVON
A24: Postal Code | B24: 8925
A26: General Contacts
A27: Telephone number | B27: 053-3823012
A28: Fax number | B28: 053-3823142
A30: C. POLITICAL LEADERSHIP
A31: Speaker: | C31: Secretary/PA to the Speaker:
A32: Name | C32: Name
A33: Telephone number | C33: Telephone number
A34: Cell number | C34: Cell number
A35: Fax number | C35: Fax number
A36: E-mail address | C36: E-mail address
A38: Mayor/Executive Mayor: | C38: Secretary/PA to the Mayor/Executive Mayor:
A39: Name | B39: NS Van Wyk | C39: Name
A40: Telephone number | B40: 053-3833053 | C40: Telephone number
A41: Cell number | C41: Cell number
A42: Fax number | B42: 053-3823142 | C42: Fax number
A43: E-mail address | C43: E-mail address
A45: Deputy Mayor/Executive Mayor: | C45: Secretary/PA to the Deputy Mayor/Executive Mayor:
A46: Name | C46: Name
A47: Telephone number | C47: Telephone number
A48: Cell number | C48: Cell number
A49: Fax number | C49: Fax number
A50: E-mail address | C50: E-mail address
A52: D. MANAGEMENT LEADERSHIP
A53: Municipal Manager: | C53: Secretary/PA to the Municipal Manager:
A54: Name | B54: FM Manuel | C54: Name
A55: Telephone number | B55: 053-3823012 | C55: Telephone number
A56: Cell number | C56: Cell number
A57: Fax number | B57: 053-3823142 | C57: Fax number
A58: E-mail address | C58: E-mail address
A60: Chief Financial Officer | C60: Secretary/PA to the Chief Financial Officer
A61: Name | B61: W De bruin | C61: Name
A62: Telephone number | B62: 053-3823012 | C62: Telephone number
A63: Cell number | B63: 832308617 | C63: Cell number
A64: Fax number | B64: 053-3823142 | C64: Fax number
A65: E-mail address | B65: wilmar@hotmail.com | C65: E-mail address
A67: Official responsible for submitting financial information
A68: Name | B68: T. de Kock
A69: Telephone number | B69: 053-3823012
A70: Cell number
A71: Fax number | B71: 053-3823142
A72: E-mail address | B72: kareeberg0@gmail.com
A73: Official responsible for submitting financial information
A74: Name
A75: Telephone number
A76: Cell number
A77: Fax number
A78: E-mail address
A79: Official responsible for submitting financial information
A80: Name
A81: Telephone number
A82: Cell number
A83: Fax number
A84: E-mail address

Sheet C1-Sum
A1: =muni& " - "&s71sum& " - "&date -> NC074 Kareeberg - Table C1 Monthly Budget Statement Summary - M01 July
A2: =desc -> Description | B2: =Head1 -> 2017/18 | C2: =Head2 -> Budget Year 2018/19
B3: =Head5 -> Audited Outcome | C3: =Head6 -> Original Budget | D3: =Head7 -> Adjusted Budget | E3: =Head38 -> Monthly actual | F3: =Head39 -> YearTD actual | G3: =Head40 -> YearTD budget | H3: =Head41 -> YTD variance | I3: =Head41 -> YTD variance | J3: =Head8 -> Full Year Forecast
A4: R thousands | I4: %
A5: Financial Performance
A6: Property rates | B6: =SUM('C4-FinPerf RE'!C6:C7) -> 0 | C6: =SUM('C4-FinPerf RE'!D6:D7) -> 7696716.35 | D6: =SUM('C4-FinPerf RE'!E6:E7) -> 0 | E6: =SUM('C4-FinPerf RE'!F6:F7) -> 12547.39 | F6: =SUM('C4-FinPerf RE'!G6:G7) -> 12547.39 | G6: =SUM('C4-FinPerf RE'!H6:H7) -> 641393.0292 | H6: =F6-G6 -> -628845.6392 | I6: =IF(H6=0,"",H6/G6) -> -0.9804372835 | J6: =SUM('C4-FinPerf RE'!K6:K7) -> 6927044.715
A7: Service charges | B7: =SUM('C4-FinPerf RE'!C8:C12) -> 0 | C7: =SUM('C4-FinPerf RE'!D8:D12) -> 17820301.96 | D7: =SUM('C4-FinPerf RE'!E8:E12) -> 0 | E7: =SUM('C4-FinPerf RE'!F8:F12) -> 2053940.05 | F7: =SUM('C4-FinPerf RE'!G8:G12) -> 2053940.05 | G7: =SUM('C4-FinPerf RE'!H8:H12) -> 1485025.164 | H7: =F7-G7 -> 568914.8863 | I7: =IF(H7=0,"",H7/G7) -> 0.3831011758 | J7: =SUM('C4-FinPerf RE'!K8:K12) -> 16038271.77
A8: Investment revenue | B8: ='C4-FinPerf RE'!C14 -> 0 | C8: ='C4-FinPerf RE'!D14 -> 1319350 | D8: ='C4-FinPerf RE'!E14 -> 0 | E8: ='C4-FinPerf RE'!F14 -> 163324.68 | F8: ='C4-FinPerf RE'!G14 -> 163324.68 | G8: ='C4-FinPerf RE'!H14 -> 109945.8333 | H8: =F8-G8 -> 53378.84667 | I8: =IF(H8=0,"",H8/G8) -> 0.485501315 | J8: ='C4-FinPerf RE'!K14 -> 1187415
A9: Transfers recognised - operational | B9: ='C4-FinPerf RE'!C20 -> 0 | C9: ='C4-FinPerf RE'!D20 -> 26106000 | D9: ='C4-FinPerf RE'!E20 -> 0 | E9: ='C4-FinPerf RE'!F20 -> 9177000 | F9: ='C4-FinPerf RE'!G20 -> 9177000 | G9: ='C4-FinPerf RE'!H20 -> 2175500 | H9: =F9-G9 -> 7001500 | I9: =IF(H9=0,"",H9/G9) -> 3.218340611 | J9: ='C4-FinPerf RE'!K20 -> 23495400
A10: Other own revenue | B10: ='C4-FinPerf RE'!C13+'C4-FinPerf RE'!C15+'C4-FinPerf RE'!C16+'C4-FinPerf RE'!C17+'C4-FinPerf RE'!C18+'C4-FinPerf RE'!C19+'C4-FinPerf RE'!C21+'C4-FinPerf RE'!C22 -> 0 | C10: ='C4-FinPerf RE'!D13+'C4-FinPerf RE'!D15+'C4-FinPerf RE'!D16+'C4-FinPerf RE'!D17+'C4-FinPerf RE'!D18+'C4-FinPerf RE'!D19+'C4-FinPerf RE'!D21+'C4-FinPerf RE'!D22 -> 20945914 | D10: ='C4-FinPerf RE'!E13+'C4-FinPerf RE'!E15+'C4-FinPerf RE'!E16+'C4-FinPerf RE'!E17+'C4-FinPerf RE'!E18+'C4-FinPerf RE'!E19+'C4-FinPerf RE'!E21+'C4-FinPerf RE'!E22 -> 0 | E10: ='C4-FinPerf RE'!F13+'C4-FinPerf RE'!F15+'C4-FinPerf RE'!F16+'C4-FinPerf RE'!F17+'C4-FinPerf RE'!F18+'C4-FinPerf RE'!F19+'C4-FinPerf RE'!F21+'C4-FinPerf RE'!F22 -> 332077.69 | F10: ='C4-FinPerf RE'!G13+'C4-FinPerf RE'!G15+'C4-FinPerf RE'!G16+'C4-FinPerf RE'!G17+'C4-FinPerf RE'!G18+'C4-FinPerf RE'!G19+'C4-FinPerf RE'!G21+'C4-FinPerf RE'!G22 -> 332077.69 | G10: ='C4-FinPerf RE'!H13+'C4-FinPerf RE'!H15+'C4-FinPerf RE'!H16+'C4-FinPerf RE'!H17+'C4-FinPerf RE'!H18+'C4-FinPerf RE'!H19+'C4-FinPerf RE'!H21+'C4-FinPerf RE'!H22 -> 1745492.833 | H10: =F10-G10 -> -1413415.143 | I10: =IF(H10=0,"",H10/G10) -> -0.80975133 | J10: ='C4-FinPerf RE'!K13+'C4-FinPerf RE'!K15+'C4-FinPerf RE'!K16+'C4-FinPerf RE'!K17+'C4-FinPerf RE'!K18+'C4-FinPerf RE'!K19+'C4-FinPerf RE'!K21+'C4-FinPerf RE'!K22 -> 18851322.6
A11: Total Revenue (excluding capital transfers and contributions) | B11: =SUM(B6:B10) -> 0 | C11: 73888282.31 | D11: 0 | E11: 11738889.81 | F11: 11738889.81 | G11: 6157356.86 | H11: =F11-G11 -> 5581532.95 | I11: =IF(H11=0,"",H11/G11) -> 0.9064819658 | J11: 66499454.08
A12: Employee costs | B12: ='C4-FinPerf RE'!C26 -> 0 | C12: ='C4-FinPerf RE'!D26 -> 21001756 | D12: ='C4-FinPerf RE'!E26 -> 0 | E12: ='C4-FinPerf RE'!F26 -> 1353773 | F12: ='C4-FinPerf RE'!G26 -> 1353773 | G12: ='C4-FinPerf RE'!H26 -> 1750146.333 | H12: -396373.3333 | I12: -0.2264801096 | J12: ='C4-FinPerf RE'!K26 -> 18901580.4
A13: Remuneration of Councillors | B13: ='C4-FinPerf RE'!C27 -> 0 | C13: ='C4-FinPerf RE'!D27 -> 2641835 | D13: ='C4-FinPerf RE'!E27 -> 0 | E13: ='C4-FinPerf RE'!F27 -> 224279 | F13: ='C4-FinPerf RE'!G27 -> 224279 | G13: ='C4-FinPerf RE'!H27 -> 220152.9167 | H13: 4126.083333 | I13: 0.0187418972 | J13: ='C4-FinPerf RE'!K27 -> 2377651.5
A14: Depreciation & asset impairment | B14: ='C4-FinPerf RE'!C29 -> 0 | C14: ='C4-FinPerf RE'!D29 -> 6153895 | D14: ='C4-FinPerf RE'!E29 -> 0 | E14: ='C4-FinPerf RE'!F29 -> 0 | F14: ='C4-FinPerf RE'!G29 -> 0 | G14: ='C4-FinPerf RE'!H29 -> 512824.5833 | H14: -512824.5833 | I14: -1 | J14: ='C4-FinPerf RE'!K29 -> 5538505.5
A15: Finance charges | B15: ='C4-FinPerf RE'!C30 -> 0 | C15: ='C4-FinPerf RE'!D30 -> 1117803 | D15: ='C4-FinPerf RE'!E30 -> 0 | E15: ='C4-FinPerf RE'!F30 -> 0 | F15: ='C4-FinPerf RE'!G30 -> 0 | G15: ='C4-FinPerf RE'!H30 -> 93150.25 | H15: -93150.25 | I15: -1 | J15: ='C4-FinPerf RE'!K30 -> 1006022.7
A16: Materials and bulk purchases | B16: =SUM('C4-FinPerf RE'!C31:C32) -> 0 | C16: =SUM('C4-FinPerf RE'!D31:D32) -> 13040262 | D16: =SUM('C4-FinPerf RE'!E31:E32) -> 0 | E16: =SUM('C4-FinPerf RE'!F31:F32) -> 834055 | F16: =SUM('C4-FinPerf RE'!G31:G32) -> 834055 | G16: =SUM('C4-FinPerf RE'!H31:H32) -> 1086688.5 | H16: -252633.5 | I16: -0.232480145 | J16: =SUM('C4-FinPerf RE'!K31:K32) -> 11736235.8
A17: Transfers and grants | B17: ='C4-FinPerf RE'!C34 -> 0 | C17: ='C4-FinPerf RE'!D34 -> 10666791 | D17: ='C4-FinPerf RE'!E34 -> 0 | E17: ='C4-FinPerf RE'!F34 -> 1360077 | F17: ='C4-FinPerf RE'!G34 -> 1360077 | G17: ='C4-FinPerf RE'!H34 -> 888899.25 | H17: 471177.75 | I17: 0.5300687901 | J17: ='C4-FinPerf RE'!K34 -> 9600111.9
A18: Other expenditure | B18: ='C4-FinPerf RE'!C37-SUM('C1-Sum'!B12:B17) -> 0 | C18: ='C4-FinPerf RE'!D37-SUM('C1-Sum'!C12:C17) -> 18621895 | D18: ='C4-FinPerf RE'!E37-SUM('C1-Sum'!D12:D17) -> 0 | E18: ='C4-FinPerf RE'!F37-SUM('C1-Sum'!E12:E17) -> 776406 | F18: ='C4-FinPerf RE'!G37-SUM('C1-Sum'!F12:F17) -> 776406 | G18: ='C4-FinPerf RE'!H37-SUM('C1-Sum'!G12:G17) -> 1551824.583 | H18: -775418.5833 | I18: -0.499681853 | J18: ='C4-FinPerf RE'!K37-SUM('C1-Sum'!J12:J17) -> 16759705.5
A19: Total Expenditure | B19: =SUM(B12:B18) -> 0 | C19: 73244237 | D19: 0 | E19: 4548590 | F19: 4548590 | G19: 6103686.417 | H19: -1555096.417 | I19: -0.2547798675 | J19: =SUM(J12:J18) -> 65919813.3
A20: Surplus/(Deficit) | B20: =B11-B19 -> 0 | C20: 644045.315 | D20: 0 | E20: 7190299.81 | F20: 7190299.81 | G20: 53670.44292 | H20: 7136629.367 | I20: 132.9713149 | J20: =J11-J19 -> 579640.7835
A21: Transfers recognised - capital | B21: ='C4-FinPerf RE'!C40 -> 0 | C21: ='C4-FinPerf RE'!D40 -> 60796000 | D21: ='C4-FinPerf RE'!E40 -> 0 | E21: ='C4-FinPerf RE'!F40 -> 1278126.79 | F21: ='C4-FinPerf RE'!G40 -> 1278126.79 | G21: ='C4-FinPerf RE'!H40 -> 5451868.333 | H21: -4173741.543 | I21: -0.7655616915 | J21: ='C4-FinPerf RE'!K40 -> 65422420
A22: Contributions & Contributed assets | B22: =SUM('C4-FinPerf RE'!C41:C42) -> 0 | C22: =SUM('C4-FinPerf RE'!D41:D42) -> 3386600 | D22: =SUM('C4-FinPerf RE'!E41:E42) -> 0 | E22: =SUM('C4-FinPerf RE'!F41:F42) -> 0 | F22: =SUM('C4-FinPerf RE'!G41:G42) -> 0 | G22: =SUM('C4-FinPerf RE'!H41:H42) -> 0 | H22: 0 | J22: =SUM('C4-FinPerf RE'!K41:K42) -> 3386600
A23: Surplus/(Deficit) after capital transfers & contributions | B23: =B20+B21+B22 -> 0 | C23: 64826645.31 | D23: 0 | E23: 8468426.6 | F23: 8468426.6 | G23: 5505538.776 | H23: 2962887.824 | I23: 0.5381649179 | J23: =J20+J21+J22 -> 69388660.78
A24: Share of surplus/ (deficit) of associate | B24: ='C4-FinPerf RE'!C48 -> 0 | C24: ='C4-FinPerf RE'!D48 -> 0 | D24: ='C4-FinPerf RE'!E48 -> 0 | E24: ='C4-FinPerf RE'!F48 -> 0 | F24: ='C4-FinPerf RE'!G48 -> 0 | G24: ='C4-FinPerf RE'!H48 -> 0 | H24: 0 | J24: ='C4-FinPerf RE'!K48 -> 0
A25: Surplus/ (Deficit) for the year | B25: =B23+B24 -> 0 | C25: 64826645.31 | D25: 0 | E25: 8468426.6 | F25: 8468426.6 | G25: 5505538.776 | H25: 2962887.824 | I25: 0.5381649179 | J25: =J23+J24 -> 69388660.78
A27: Capital expenditure & funds sources
A28: Capital expenditure | B28: ='C5-Capex'!C40 -> 0 | C28: ='C5-Capex'!D40 -> 64182600 | D28: ='C5-Capex'!E40 -> 0 | E28: ='C5-Capex'!F40 -> 1278126.79 | F28: ='C5-Capex'!G40 -> 1278126.79 | G28: ='C5-Capex'!H40 -> 5348550 | H28: =F28-G28 -> -4070423.21 | I28: =IF(H28=0,"",H28/G28) -> -0.7610330295 | J28: ='C5-Capex'!K40 -> 64182600
A29: Capital transfers recognised | B29: ='C5-Capex'!C70 -> 0 | C29: ='C5-Capex'!D70 -> 64182600 | D29: ='C5-Capex'!E70 -> 0 | E29: ='C5-Capex'!F70 -> 1278126.79 | F29: ='C5-Capex'!G70 -> 1278126.79 | G29: ='C5-Capex'!H70 -> 5348550 | H29: -4070423.21 | I29: -0.7610330295 | J29: ='C5-Capex'!K70 -> 64182600
A30: Public contributions & donations | B30: ='C5-Capex'!C71 -> 0 | C30: ='C5-Capex'!D71 -> 0 | D30: ='C5-Capex'!E71 -> 0 | E30: ='C5-Capex'!F71 -> 0 | F30: ='C5-Capex'!G71 -> 0 | G30: ='C5-Capex'!H71 -> 0 | H30: 0 | J30: ='C5-Capex'!K71 -> 0
A31: Borrowing | B31: ='C5-Capex'!C72 -> 0 | C31: ='C5-Capex'!D72 -> 0 | D31: ='C5-Capex'!E72 -> 0 | E31: ='C5-Capex'!F72 -> 0 | F31: ='C5-Capex'!G72 -> 0 | G31: ='C5-Capex'!H72 -> 0 | H31: 0 | J31: ='C5-Capex'!K72 -> 0
A32: Internally generated funds | B32: ='C5-Capex'!C73 -> 0 | C32: ='C5-Capex'!D73 -> 0 | D32: ='C5-Capex'!E73 -> 0 | E32: ='C5-Capex'!F73 -> 0 | F32: ='C5-Capex'!G73 -> 0 | G32: ='C5-Capex'!H73 -> 0 | H32: 0 | J32: ='C5-Capex'!K73 -> 0
A33: Total sources of capital funds | B33: =SUM(B29:B32) -> 0 | C33: 64182600 | D33: 0 | E33: =SUM(E29:E32) -> 1278126.79 | F33: =SUM(F29:F32) -> 1278126.79 | G33: =SUM(G29:G32) -> 5348550 | H33: -4070423.21 | I33: -0.7610330295 | J33: 64182600
A35: Financial position
A36: Total current assets | B36: ='C6-FinPos'!C13 -> 0 | C36: ='C6-FinPos'!D13 -> 34165490 | D36: ='C6-FinPos'!E13 -> 0 | F36: ='C6-FinPos'!F13 -> 59370299.77 | J36: ='C6-FinPos'!G13 -> 34165490
A37: Total non current assets | B37: ='C6-FinPos'!C25 -> 0 | C37: ='C6-FinPos'!D25 -> 176230141 | D37: ='C6-FinPos'!E25 -> 0 | F37: ='C6-FinPos'!F25 -> 151615024.8 | J37: ='C6-FinPos'!G25 -> 176230141
A38: Total current liabilities | B38: ='C6-FinPos'!C35 -> 0 | C38: ='C6-FinPos'!D35 -> 7221964 | D38: ='C6-FinPos'!E35 -> 0 | F38: ='C6-FinPos'!F35 -> 27746747.52 | J38: ='C6-FinPos'!G35 -> 7221964
A39: Total non current liabilities | B39: ='C6-FinPos'!C40 -> 0 | C39: ='C6-FinPos'!D40 -> 12586825 | D39: ='C6-FinPos'!E40 -> 0 | F39: ='C6-FinPos'!F40 -> 33743044.83 | J39: ='C6-FinPos'!G40 -> 12586825
A40: Community wealth/Equity | B40: ='C6-FinPos'!C48 -> 0 | C40: ='C6-FinPos'!D48 -> 190586842 | D40: ='C6-FinPos'!E48 -> 0 | F40: ='C6-FinPos'!F48 -> 149495532.1 | J40: ='C6-FinPos'!G48 -> 190586842
A42: Cash flows
A43: Net cash from (used) operating | B43: ='C7-CFlow'!C18 -> 0 | C43: ='C7-CFlow'!D18 -> 66785228 | D43: ='C7-CFlow'!E18 -> 0 | E43: ='C7-CFlow'!F18 -> 3591188.79 | F43: ='C7-CFlow'!G18 -> 3591188.79 | G43: ='C7-CFlow'!H18 -> 5565435.667 | H43: =G43-F43 -> 1974246.877 | I43: =IF(H43=0,"",H43/G43) -> 0.3547335725 | J43: ='C7-CFlow'!K18 -> 66785228
A44: Net cash from (used) investing | B44: ='C7-CFlow'!C28 -> 0 | C44: ='C7-CFlow'!D28 -> -60805930 | D44: ='C7-CFlow'!E28 -> 0 | E44: ='C7-CFlow'!F28 -> -1278126.79 | F44: ='C7-CFlow'!G28 -> -1278126.79 | G44: ='C7-CFlow'!H28 -> -5067160.833 | H44: =G44-F44 -> -3789034.043 | I44: =IF(H44=0,"",H44/G44) -> 0.747762735 | J44: ='C7-CFlow'!K28 -> -60805930
A45: Net cash from (used) financing | B45: ='C7-CFlow'!C37 -> 0 | C45: ='C7-CFlow'!D37 -> 10000 | D45: ='C7-CFlow'!E37 -> 0 | E45: ='C7-CFlow'!F37 -> 0 | F45: ='C7-CFlow'!G37 -> 0 | G45: ='C7-CFlow'!H37 -> 833.3333333 | H45: =G45-F45 -> 833.3333333 | I45: =IF(H45=0,"",H45/G45) -> 1 | J45: ='C7-CFlow'!K37 -> 10000
A46: Cash/cash equivalents at the month/year end | B46: ='C7-CFlow'!C41 -> 0 | C46: ='C7-CFlow'!D41 -> 5989298 | D46: ='C7-CFlow'!E41 -> 0 | E46: ='C7-CFlow'!F41 -> 0 | F46: ='C7-CFlow'!G41 -> 2313062 | G46: ='C7-CFlow'!H41 -> 499108.1667 | H46: =G46-F46 -> -1813953.833 | I46: =IF(H46=0,"",H46/G46) -> -3.634390207 | J46: ='C7-CFlow'!K41 -> 5989298
A48: Debtors & creditors analysis | B48: ='SC3'!C3 -> 0-30 Days | C48: ='SC3'!D3 -> 31-60 Days | D48: ='SC3'!E3 -> 61-90 Days | E48: ='SC3'!F3 -> 91-120 Days | F48: ='SC3'!G3 -> 121-150 Dys | G48: ='SC3'!H3 -> 151-180 Dys | H48: ='SC3'!I3 -> 181 Dys-1 Yr | I48: ='SC3'!J3 -> Over 1Yr | J48: Total
A49: =LEFT('SC3'!A4,20) -> Debtors Age Analysis
A50: ='SC3'!A14 -> Total By Income Source | B50: ='SC3'!C14 -> 2535006.28 | C50: ='SC3'!D14 -> 1781735.77 | D50: ='SC3'!E14 -> 81658.89 | E50: ='SC3'!F14 -> 81762.2 | F50: ='SC3'!G14 -> 581153.56 | G50: ='SC3'!H14 -> 37838.8 | H50: ='SC3'!I14 -> 33345.77 | I50: ='SC3'!J14 -> 402591.2 | J50: ='SC3'!K14 -> 5535092.47
A51: =LEFT('SC4'!A5,22) -> Creditors Age Analysis
A52: Total Creditors | B52: ='SC4'!C15 -> 47145 | C52: ='SC4'!D15 -> 576481 | D52: ='SC4'!E15 -> 322447 | E52: ='SC4'!F15 -> 0 | F52: ='SC4'!G15 -> 0 | G52: ='SC4'!H15 -> 0 | H52: ='SC4'!I15 -> 0 | I52: ='SC4'!J15 -> 0 | J52: ='SC4'!K15 -> 946073

Sheet C2-FinPerf SC
A1: =muni& " - "&S71A& " - "&date -> NC074 Kareeberg - Table C2 Monthly Budget Statement - Financial Performance (standard classification) - M01 July
A2: =desc -> Description | B2: =head27 -> Ref | C2: =Head1 -> 2017/18 | D2: =Head2 -> Budget Year 2018/19
C3: =Head5 -> Audited Outcome | D3: =Head6 -> Original Budget | E3: =Head7 -> Adjusted Budget | F3: =Head38 -> Monthly actual | G3: =Head39 -> YearTD actual | H3: =Head40 -> YearTD budget | I3: =Head41 -> YTD variance | J3: =Head41 -> YTD variance | K3: =Head8 -> Full Year Forecast
A4: R thousands | B4: 1 | J4: %
A5: Revenue - Standard
A6: Governance and administration | C6: =SUM(C7:C9) -> 0 | D6: 60531470.04 | E6: 0 | F6: 10022283.74 | G6: 10022283.74 | H6: 5044289.17 | I6: =G6-H6 -> 4977994.57 | J6: =IF(I6=0,"",I6/H6) -> 0.9868574942 | K6: =SUM(K7:K9) -> 54478323.03
A7: Executive and council | C7: ='C2C'!C7 -> 0 | D7: ='C2C'!D7 -> 36368070.05 | E7: ='C2C'!E7 -> 0 | F7: ='C2C'!F7 -> 9681441.36 | G7: ='C2C'!G7 -> 9681441.36 | H7: ='C2C'!H7 -> 3030672.504 | I7: 6650768.856 | J7: =IF(I7=0,"",I7/H7) -> 2.194486157 | K7: ='C2C'!K7 -> 32731263.04
A8: Budget and treasury office | C8: ='C2C'!C10 -> 0 | D8: ='C2C'!D10 -> 24163399.99 | E8: ='C2C'!E10 -> 0 | F8: ='C2C'!F10 -> 340842.38 | G8: ='C2C'!G10 -> 340842.38 | H8: ='C2C'!H10 -> 2013616.666 | I8: -1672774.286 | J8: -0.830731248 | K8: ='C2C'!K10 -> 21747059.99
A9: Corporate services | C9: ='C2C'!C11 -> 0 | D9: ='C2C'!D11 -> 0 | E9: ='C2C'!E11 -> 0 | F9: ='C2C'!F11 -> 0 | G9: ='C2C'!G11 -> 0 | H9: ='C2C'!H11 -> 0 | I9: 0 | K9: ='C2C'!K11 -> 0
A10: Community and public safety | C10: =SUM(C11:C15) -> 0 | D10: 1156413 | E10: 0 | F10: 3000 | G10: 3000 | H10: 96367.75 | I10: -93367.75 | J10: -0.9688692535 | K10: =SUM(K11:K15) -> 1594617.3
A11: Community and social services | C11: ='C2C'!C17 -> 0 | D11: ='C2C'!D17 -> 1137328 | E11: ='C2C'!E17 -> 0 | F11: ='C2C'!F17 -> 3000 | G11: ='C2C'!G17 -> 3000 | H11: ='C2C'!H17 -> 94777.33333 | I11: -91777.33333 | J11: -0.9683468621 | K11: ='C2C'!K17 -> 1577440.8
A12: Sport and recreation | C12: ='C2C'!C26 -> 0 | D12: ='C2C'!D26 -> 18345 | E12: ='C2C'!E26 -> 0 | F12: ='C2C'!F26 -> 0 | G12: ='C2C'!G26 -> 0 | H12: ='C2C'!H26 -> 1528.75 | I12: -1528.75 | J12: -1 | K12: ='C2C'!K26 -> 16510.5
A13: Public safety | C13: ='C2C'!C27 -> 0 | D13: ='C2C'!D27 -> 740 | E13: ='C2C'!E27 -> 0 | F13: ='C2C'!F27 -> 0 | G13: ='C2C'!G27 -> 0 | H13: ='C2C'!H27 -> 61.66666667 | I13: -61.66666667 | J13: -1 | K13: ='C2C'!K27 -> 666
A14: Housing | C14: ='C2C'!C33 -> 0 | D14: ='C2C'!D33 -> 0 | E14: ='C2C'!E33 -> 0 | F14: ='C2C'!F33 -> 0 | G14: ='C2C'!G33 -> 0 | H14: ='C2C'!H33 -> 0 | I14: =G14-H14 -> 0 | J14: =IF(I14=0,"",I14/H14) ->  | K14: ='C2C'!K33 -> 0
A15: Health | C15: ='C2C'!C34 -> 0 | D15: ='C2C'!D34 -> 0 | E15: ='C2C'!E34 -> 0 | F15: ='C2C'!F34 -> 0 | G15: ='C2C'!G34 -> 0 | H15: ='C2C'!H34 -> 0 | I15: 0 | K15: ='C2C'!K34 -> 0
A16: Economic and environmental services | C16: =SUM(C17:C19) -> 0 | D16: 1920 | E16: 0 | F16: 420 | G16: 420 | H16: 160 | I16: 260 | J16: 1.625 | K16: =SUM(K17:K19) -> 1728
A17: Planning and development | C17: ='C2C'!C39 -> 0 | D17: ='C2C'!D39 -> 0 | E17: ='C2C'!E39 -> 0 | F17: ='C2C'!F39 -> 0 | G17: ='C2C'!G39 -> 0 | H17: ='C2C'!H39 -> 0 | I17: 0 | K17: ='C2C'!K39 -> 0
A18: Road transport | C18: ='C2C'!C43 -> 0 | D18: ='C2C'!D43 -> 1920 | E18: ='C2C'!E43 -> 0 | F18: ='C2C'!F43 -> 420 | G18: ='C2C'!G43 -> 420 | H18: ='C2C'!H43 -> 160 | I18: 260 | J18: 1.625 | K18: ='C2C'!K43 -> 1728
A19: Environmental protection | C19: ='C2C'!C49 -> 0 | D19: ='C2C'!D49 -> 0 | E19: ='C2C'!E49 -> 0 | F19: ='C2C'!F49 -> 0 | G19: ='C2C'!G49 -> 0 | H19: ='C2C'!H49 -> 0 | I19: 0 | K19: ='C2C'!K49 -> 0
A20: Trading services | C20: =SUM(C21:C24) -> 0 | D20: =SUM(D21:D24) -> 36380309.42 | E20: 0 | F20: 2054028.45 | G20: 2054028.45 | H20: 3031692.452 | I20: -977664.0021 | J20: -0.3224812601 | K20: =SUM(K21:K24) -> 32742278.48
A21: Electricity | C21: ='C2C'!C54 -> 0 | D21: ='C2C'!D54 -> 13040985.02 | E21: ='C2C'!E54 -> 0 | F21: ='C2C'!F54 -> 946052.63 | G21: ='C2C'!G54 -> 946052.63 | H21: ='C2C'!H54 -> 1086748.752 | I21: =G21-H21 -> -140696.1221 | J21: -0.1294651793 | K21: ='C2C'!K54 -> 11736886.52
A22: Water | C22: ='C2C'!C57 -> 0 | D22: ='C2C'!D57 -> 8153581.68 | E22: ='C2C'!E57 -> 0 | F22: ='C2C'!F57 -> 413065.32 | G22: ='C2C'!G57 -> 413065.32 | H22: ='C2C'!H57 -> 679465.14 | I22: =G22-H22 -> -266399.82 | J22: -0.3920728295 | K22: ='C2C'!K57 -> 7338223.512
A23: Waste water management | C23: ='C2C'!C60 -> 0 | D23: ='C2C'!D60 -> 7746989.4 | E23: ='C2C'!E60 -> 0 | F23: ='C2C'!F60 -> 356139.65 | G23: ='C2C'!G60 -> 356139.65 | H23: ='C2C'!H60 -> 645582.45 | I23: =G23-H23 -> -289442.8 | J23: -0.4483436624 | K23: ='C2C'!K60 -> 6972290.46
A24: Waste management | C24: ='C2C'!C64 -> 0 | D24: ='C2C'!D64 -> 7438753.32 | E24: ='C2C'!E64 -> 0 | F24: ='C2C'!F64 -> 338770.85 | G24: ='C2C'!G64 -> 338770.85 | H24: ='C2C'!H64 -> 619896.11 | I24: =G24-H24 -> -281125.26 | J24: -0.4535038299 | K24: ='C2C'!K64 -> 6694877.988
A25: Other | B25: 4 | C25: ='C2C'!C66 -> 0 | D25: ='C2C'!D66 -> 0 | E25: ='C2C'!E66 -> 0 | F25: ='C2C'!F66 -> 0 | G25: ='C2C'!G66 -> 0 | H25: ='C2C'!H66 -> 0 | I25: =G25-H25 -> 0 | K25: ='C2C'!K66 -> 0
A26: Total Revenue - Standard | B26: 2 | C26: =C6+C10+C16+C20+C25 -> 0 | D26: =D6+D10+D16+D20+D25 -> 98070112.46 | E26: 0 | F26: 12079732.19 | G26: 12079732.19 | H26: 8172509.372 | I26: 3907222.818 | J26: 0.4780934032 | K26: =K6+K10+K16+K20+K25 -> 88816946.82
A28: Expenditure - Standard
A29: =A6 -> Governance and administration | C29: =SUM(C30:C32) -> 0 | D29: 54981733 | E29: 0 | F29: 3375507 | G29: 3375507 | H29: 4581811.083 | I29: =G29-H29 -> -1206304.083 | J29: =IF(I29=0,"",I29/H29) -> -0.263281061 | K29: =SUM(K30:K32) -> 49483559.7
A30: =A7 -> Executive and council | C30: ='C2C'!C76 -> 0 | D30: ='C2C'!D76 -> 38091090 | E30: ='C2C'!E76 -> 0 | F30: ='C2C'!F76 -> 2767664 | G30: ='C2C'!G76 -> 2767664 | H30: ='C2C'!H76 -> 3174257.5 | I30: -406593.5 | J30: =IF(I30=0,"",I30/H30) -> -0.1280909 | K30: ='C2C'!K76 -> 34281981
A31: Budget and treasury office | C31: ='C2C'!C79 -> 0 | D31: ='C2C'!D79 -> 13741966 | E31: ='C2C'!E79 -> 0 | F31: ='C2C'!F79 -> 297247 | G31: ='C2C'!G79 -> 297247 | H31: ='C2C'!H79 -> 1145163.833 | I31: -847916.8333 | J31: -0.7404327736 | K31: ='C2C'!K79 -> 12367769.4
A32: Corporate services | C32: ='C2C'!C80 -> 0 | D32: ='C2C'!D80 -> 3148677 | E32: ='C2C'!E80 -> 0 | F32: ='C2C'!F80 -> 310596 | G32: ='C2C'!G80 -> 310596 | H32: ='C2C'!H80 -> 262389.75 | I32: 48206.25 | J32: 0.1837200196 | K32: ='C2C'!K80 -> 2833809.3
A33: Community and public safety | C33: =SUM(C34:C38) -> 0 | D33: 4134354 | E33: 0 | F33: 43862 | G33: 43862 | H33: 344529.5 | I33: -300667.5 | J33: -0.872690147 | K33: =SUM(K34:K38) -> 5321645.8
A34: Community and social services | C34: ='C2C'!C86 -> 0 | D34: ='C2C'!D86 -> 3584229 | E34: ='C2C'!E86 -> 0 | F34: ='C2C'!F86 -> 34804 | G34: ='C2C'!G86 -> 34804 | H34: ='C2C'!H86 -> 298685.75 | I34: -263881.75 | J34: -0.8834761953 | K34: ='C2C'!K86 -> 4826533.3
A35: Sport and recreation | C35: ='C2C'!C95 -> 0 | D35: ='C2C'!D95 -> 428377 | E35: ='C2C'!E95 -> 0 | F35: ='C2C'!F95 -> 9058 | G35: ='C2C'!G95 -> 9058 | H35: ='C2C'!H95 -> 35698.08333 | I35: -26640.08333 | J35: -0.746260887 | K35: ='C2C'!K95 -> 385539.3
A36: Public safety | C36: ='C2C'!C96 -> 0 | D36: ='C2C'!D96 -> 67577 | E36: ='C2C'!E96 -> 0 | F36: ='C2C'!F96 -> 0 | G36: ='C2C'!G96 -> 0 | H36: ='C2C'!H96 -> 5631.416667 | I36: -5631.416667 | J36: -1 | K36: ='C2C'!K96 -> 60819.3
A37: Housing | C37: ='C2C'!C102 -> 0 | D37: ='C2C'!D102 -> 0 | E37: ='C2C'!E102 -> 0 | F37: ='C2C'!F102 -> 0 | G37: ='C2C'!G102 -> 0 | H37: ='C2C'!H102 -> 0 | I37: 0 | K37: ='C2C'!K102 -> 0
A38: Health | C38: ='C2C'!C103 -> 0 | D38: ='C2C'!D103 -> 54171 | E38: ='C2C'!E103 -> 0 | F38: ='C2C'!F103 -> 0 | G38: ='C2C'!G103 -> 0 | H38: ='C2C'!H103 -> 4514.25 | I38: -4514.25 | J38: -1 | K38: ='C2C'!K103 -> 48753.9
A39: Economic and environmental services | C39: =SUM(C40:C42) -> 0 | D39: 3615504 | E39: 0 | F39: 138452 | G39: 138452 | H39: 301292 | I39: -162840 | J39: -0.5404723657 | K39: =SUM(K40:K42) -> 3253953.6
A40: Planning and development | C40: ='C2C'!C108 -> 0 | D40: ='C2C'!D108 -> 0 | E40: ='C2C'!E108 -> 0 | F40: ='C2C'!F108 -> 0 | G40: ='C2C'!G108 -> 0 | H40: ='C2C'!H108 -> 0 | I40: 0 | K40: ='C2C'!K108 -> 0
A41: Road transport | C41: ='C2C'!C112 -> 0 | D41: ='C2C'!D112 -> 3615504 | E41: ='C2C'!E112 -> 0 | F41: ='C2C'!F112 -> 138452 | G41: ='C2C'!G112 -> 138452 | H41: ='C2C'!H112 -> 301292 | I41: -162840 | J41: -0.5404723657 | K41: ='C2C'!K112 -> 3253953.6
A42: Environmental protection | C42: ='C2C'!C118 -> 0 | D42: ='C2C'!D118 -> 0 | E42: ='C2C'!E118 -> 0 | F42: ='C2C'!F118 -> 0 | G42: ='C2C'!G118 -> 0 | H42: ='C2C'!H118 -> 0 | I42: 0 | K42: ='C2C'!K118 -> 0
A43: Trading services | C43: =SUM(C44:C47) -> 0 | D43: =SUM(D44:D47) -> 24683203 | E43: 0 | F43: 1297074 | G43: 1297074 | H43: 407426555.8 | I43: -406129481.8 | J43: -0.9968164225 | K43: =SUM(K44:K47) -> 22214882.7
A44: Electricity | C44: ='C2C'!C123 -> 0 | D44: ='C2C'!D123 -> 13068865 | E44: ='C2C'!E123 -> 0 | F44: ='C2C'!F123 -> 855998 | G44: ='C2C'!G123 -> 855998 | H44: ='C2C'!H123 -> 1089072.083 | I44: -233074.0833 | J44: -0.2140116223 | K44: ='C2C'!K123 -> 11761978.5
A45: Water | C45: ='C2C'!C126 -> 0 | D45: ='C2C'!D126 -> 2385126 | E45: ='C2C'!E126 -> 0 | F45: ='C2C'!F126 -> 79261 | G45: ='C2C'!G126 -> 79261 | H45: ='C2C'!H126 -> 198760.5 | I45: -119499.5 | J45: -0.6012235832 | K45: ='C2C'!K126 -> 2146613.4
A46: Waste water management | C46: ='C2C'!C129 -> 0 | D46: ='C2C'!D129 -> 5172135 | E46: ='C2C'!E129 -> 0 | F46: ='C2C'!F129 -> 259905 | G46: ='C2C'!G129 -> 259905 | H46: ='C2C'!H129 -> 431011.25 | I46: -171106.25 | J46: -0.3969878976 | K46: ='C2C'!K129 -> 4654921.5
A47: Waste management | C47: ='C2C'!C133 -> 0 | D47: ='C2C'!D133 -> 4057077 | E47: ='C2C'!E133 -> 0 | F47: ='C2C'!F133 -> 101910 | G47: ='C2C'!G133 -> 101910 | H47: ='C2C'!H133 -> 405707712 | I47: -405605802 | J47: -0.9997488093 | K47: ='C2C'!K133 -> 3651369.3
A48: Other | C48: ='C2C'!C135 -> 0 | D48: ='C2C'!D135 -> 0 | E48: ='C2C'!E135 -> 0 | F48: ='C2C'!F135 -> 0 | G48: ='C2C'!G135 -> 0 | H48: ='C2C'!H135 -> 0 | I48: 0 | K48: ='C2C'!K135 -> 0
A49: Total Expenditure - Standard | B49: 3 | C49: =C29+C33+C39+C43+C48 -> 0 | D49: =D29+D33+D39+D43+D48 -> 87414794 | E49: 0 | F49: 4854895 | G49: 4854895 | H49: 412654188.4 | I49: -407799293.4 | J49: -0.9882349552 | K49: =K29+K33+K39+K43+K48 -> 80274041.8
A50: Surplus/ (Deficit) for the year | C50: =C26-C49 -> 0 | D50: 10655318.46 | E50: 0 | F50: 7224837.19 | G50: 7224837.19 | H50: -404481679 | I50: =I26-I49 -> 411706516.2 | J50: =IF(I50=0,"",I50/H50) -> -1.017861964 | K50: =K26-K49 -> 8542905.017
A51: =head27a -> References
A52: 1. Government Finance Statistics Functions and Sub-functions are standardised to assist the compilation of national and international accounts for comparison purposes
A53: 2. Total Revenue by standard classification must reconcile to Total Operating Revenue shown in the Financial Performance Statement
A54: 3. Total Expenditure by standard classification must reconcile to total operating expenditure shown in 'Financial Performance Statement'
A55: 4. All amounts must be classified under a standard classification (modified GFS). The GFS function 'Other' is only for Abbatoirs, Air Transport, Markets and Tourism - and if used must be supported by footnotes. Nothing else may be placed under 'Other'. Assign associate share to relevant classification

Sheet C2C
A1: =muni& " - "&S71A& " - "&date -> NC074 Kareeberg - Table C2 Monthly Budget Statement - Financial Performance (standard classification) - M01 July
A2: =desc -> Description | B2: =head27 -> Ref | C2: =Head1 -> 2017/18 | D2: =Head2 -> Budget Year 2018/19
C3: =Head5 -> Audited Outcome | D3: =Head6 -> Original Budget | E3: =Head7 -> Adjusted Budget | F3: =Head38 -> Monthly actual | G3: =Head39 -> YearTD actual | H3: =Head40 -> YearTD budget | I3: =Head41 -> YTD variance | J3: =Head41 -> YTD variance | K3: =Head8 -> Full Year Forecast
A4: R thousands | B4: 1 | J4: %
A5: Revenue - Standard
A6: Municipal governance and administration | C6: =C7+C11 -> 0 | D6: =D7+D11 -> 36368070.05 | E6: =E7+E11 -> 0 | F6: 9681441.36 | G6: 9681441.36 | H6: 3030672.504 | I6: =G6-H6 -> 6650768.856 | J6: =IF(I6=0,"",I6/H6) -> 2.194486157 | K6: =K7+K11 -> 32731263.04
A7: Executive and council | C7: =C8+C9+C10 -> 0 | D7: =D8+D9+D10 -> 36368070.05 | E7: =E8+E9+E10 -> 0 | F7: 9681441.36 | G7: 9681441.36 | H7: 3030672.504 | I7: =G7-H7 -> 6650768.856 | J7: =IF(I7=0,"",I7/H7) -> 2.194486157 | K7: =K8+K9+K10 -> 32731263.04
A8: Mayor and Council | D8: 12204670.06 | F8: 9340598.98 | G8: 9340598.98 | H8: =12204670.0610426/12 -> 1017055.838 | I8: 8323543.142 | J8: =IF(I8=0,"",I8/H8) -> 8.183958862 | K8: =12204670.0610426*0.9 -> 10984203.05
A9: Municipal Manager | I9: 0
A10: Budget and treasury office | D10: 24163399.99 | F10: 340842.38 | G10: 340842.38 | H10: =24163399.9887/12 -> 2013616.666 | I10: -1672774.286 | J10: -0.830731248 | K10: =24163399.9887*0.9 -> 21747059.99
A11: Corporate services | C11: =C12+C13+C14+C15 -> 0 | D11: =D12+D13+D14+D15 -> 0 | E11: =E12+E13+E14+E15 -> 0 | F11: 0 | G11: 0 | H11: 0 | I11: 0 | K11: =K12+K13+K14+K15 -> 0
A12: Human Resources | F12: 0 | G12: 0 | I12: 0
A13: Information Technology | I13: 0
A14: Property Services | I14: 0
A15: Other Admin | I15: 0
A16: Community and public safety | C16: =C17+C27+C34 -> 0 | D16: =D17+D27+D34 -> 1138068 | E16: =E17+E27+E34 -> 0 | F16: 3000 | G16: 3000 | H16: 94839 | I16: -91839 | J16: -0.9683674438 | K16: =K17+K27+K34 -> 1578106.8
A17: Community and social services | C17: =C18+C19+C20+C21+C22+C23+C24+C25+C26 -> 0 | D17: =D18+D19+D20+D21+D22+D23+D24+D25+D26 -> 1137328 | E17: =E18+E19+E20+E21+E22+E23+E24+E25+E26 -> 0 | F17: 3000 | G17: 3000 | H17: 94777.33333 | I17: -91777.33333 | J17: -0.9683468621 | K17: =K18+K19+K20+K21+K22+K23+K24+K25+K26 -> 1577440.8
A18: Libraries and Archives | D18: 1112767 | F18: 170 | G18: 170 | H18: =1112767/12 -> 92730.58333 | I18: -92560.58333 | J18: -0.9981667321 | K18: =1112767*0.9 -> 1001490.3
A19: Museums & Art Galleries etc | I19: 0
A20: Community halls and Facilities | I20: 0
A21: Cemeteries & Crematoriums | D21: 6216 | F21: 2830 | G21: 2830 | H21: =6216/12 -> 518 | I21: 2312 | J21: 4.463320463 | K21: =6216*90 -> 559440
A22: Child Care | I22: 0
A23: Aged Care | I23: 0
A24: Other Community | I24: 0
A25: Other Social | I25: 0
A26: Sport and recreation | D26: 18345 | F26: 0 | G26: 0 | H26: =18345/12 -> 1528.75 | I26: -1528.75 | J26: -1 | K26: =18345*0.9 -> 16510.5
A27: Public safety | C27: =C28+C29+C30+C31+C32+C33 -> 0 | D27: =D28+D29+D30+D31+D32+D33 -> 740 | E27: =E28+E29+E30+E31+E32+E33 -> 0 | F27: 0 | G27: 0 | H27: 61.66666667 | I27: -61.66666667 | J27: -1 | K27: =K28+K29+K30+K31+K32+K33 -> 666
A28: Police | I28: 0
A29: Fire | F29: 0 | G29: 0 | I29: 0
A30: Civil Defence | F30: 0 | G30: 0 | I30: 0
A31: Street Lighting | I31: 0
A32: Other | D32: 740 | F32: 0 | G32: 0 | H32: =740/12 -> 61.66666667 | I32: -61.66666667 | J32: -1 | K32: =740*0.9 -> 666
A33: Housing | I33: 0
A34: Health | C34: =C35+C36+C37 -> 0 | D34: =D35+D36+D37 -> 0 | E34: =E35+E36+E37 -> 0 | F34: 0 | G34: 0 | H34: 0 | I34: 0 | K34: =K35+K36+K37 -> 0
A35: Clinics | F35: 0 | G35: 0 | I35: 0
A36: Ambulance | F36: 0 | G36: 0 | I36: 0
A37: Other | F37: 0 | G37: 0 | I37: 0
A38: Economic and environmental services | C38: =C39+C43+C49 -> 0 | D38: =D39+D43+D49 -> 1920 | E38: =E39+E43+E49 -> 0 | F38: 420 | G38: 420 | H38: 160 | I38: 260 | J38: 1.625 | K38: =K39+K43+K49 -> 1728
A39: Planning and development | C39: =C40+C41+C42 -> 0 | D39: =D40+D41+D42 -> 0 | E39: =E40+E41+E42 -> 0 | F39: 0 | G39: 0 | H39: 0 | I39: 0 | K39: =K40+K41+K42 -> 0
A40: Economic Development/Planning | F40: 0 | G40: 0 | I40: 0
A41: Town Planning/Building enforcement | F41: 0 | G41: 0 | I41: 0
A42: Licensing & Regulation | F42: 0 | G42: 0 | I42: 0
A43: Road transport | C43: =C44+C45+C46+C47+C48 -> 0 | D43: =D44+D45+D46+D47+D48 -> 1920 | E43: =E44+E45+E46+E47+E48 -> 0 | F43: 420 | G43: 420 | H43: 160 | I43: 260 | J43: 1.625 | K43: =K44+K45+K46+K47+K48 -> 1728
A44: Roads | D44: 420 | F44: 0 | G44: 0 | H44: =420/12 -> 35 | I44: -35 | J44: -1 | K44: =420*0.9 -> 378
A45: Public Buses | I45: 0
A46: Parking Garages | I46: 0
A47: Vehicle Licensing and Testing | D47: 1500 | F47: 420 | G47: 420 | H47: =1500/12 -> 125 | I47: 295 | J47: 2.36 | K47: =1500*0.9 -> 1350
A48: Other | F48: 0 | G48: 0 | I48: 0
A49: Environmental protection | C49: =C50+C51+C52 -> 0 | D49: =D50+D51+D52 -> 0 | E49: =E50+E51+E52 -> 0 | F49: 0 | G49: 0 | H49: 0 | I49: 0 | K49: =K50+K51+K52 -> 0
A50: Pollution Control | I50: 0
A51: Biodiversity & Landscape | I51: 0
A52: Other | I52: 0
A53: Trading services | C53: =C54+C57+C60+C64 -> 0 | D53: =D54+D57+D60+D64 -> 36380309.42 | E53: =E54+E57+E60+E64 -> 0 | F53: 2054028.45 | G53: 2054028.45 | H53: 3031692.452 | I53: -977664.0021 | J53: -0.3224812601 | K53: =K54+K57+K60+K64 -> 32742278.48
A54: Electricity | C54: =C55+C56 -> 0 | D54: =D55+D56 -> 13040985.02 | E54: =E55+E56 -> 0 | F54: 946052.63 | G54: 946052.63 | H54: 1086748.752 | I54: -140696.1221 | J54: -0.1294651793 | K54: =K55+K56 -> 11736886.52
A55: Electricity Distribution | D55: 13040985.02 | F55: 946052.63 | G55: 946052.63 | H55: =13040985.0249915/12 -> 1086748.752 | I55: -140696.1221 | J55: -0.1294651793 | K55: =13040985.0249915*0.9 -> 11736886.52
A56: Electricity Generation | I56: 0
A57: Water | C57: =C58+C59 -> 0 | D57: =D58+D59 -> 8153581.68 | E57: =E58+E59 -> 0 | F57: 413065.32 | G57: 413065.32 | H57: 679465.14 | I57: -266399.82 | J57: -0.3920728295 | K57: =K58+K59 -> 7338223.512
A58: Water Distribution | D58: 8153581.68 | F58: 413065.32 | G58: 413065.32 | H58: =8153581.68/12 -> 679465.14 | I58: -266399.82 | J58: -0.3920728295 | K58: =8153581.68*0.9 -> 7338223.512
A59: Water Storage | I59: 0
A60: Waste water management | C60: =C61+C62+C63 -> 0 | D60: =D61+D62+D63 -> 7746989.4 | E60: =E61+E62+E63 -> 0 | F60: 356139.65 | G60: 356139.65 | H60: 645582.45 | I60: -289442.8 | J60: -0.4483436624 | K60: =K61+K62+K63 -> 6972290.46
A61: Sewerage | D61: 7746989.4 | F61: 356139.65 | G61: 356139.65 | H61: =7746989.4/12 -> 645582.45 | I61: -289442.8 | J61: -0.4483436624 | K61: =7746989.4*0.9 -> 6972290.46
A62: Storm Water Management | I62: 0
A63: Public Toilets | I63: 0
A64: Waste management | C64: =C65 -> 0 | D64: =D65 -> 7438753.32 | E64: =E65 -> 0 | F64: 338770.85 | G64: 338770.85 | H64: 619896.11 | I64: -281125.26 | J64: -0.4535038299 | K64: =K65 -> 6694877.988
A65: Solid Waste | D65: 7438753.32 | F65: 338770.85 | G65: 338770.85 | H65: =7438753.32/12 -> 619896.11 | I65: -281125.26 | J65: -0.4535038299 | K65: =7438753.32*0.9 -> 6694877.988
A66: Other | C66: =C67+C68+C69+C70+C71 -> 0 | D66: =D67+D68+D69+D70+D71 -> 0 | E66: =E67+E68+E69+E70+E71 -> 0 | F66: 0 | G66: 0 | H66: 0 | I66: 0 | K66: =K67+K68+K69+K70+K71 -> 0
A67: Air Transport | I67: 0
A68: Abattoirs | I68: 0
A69: Tourism | I69: 0
A70: Forestry | I70: 0
A71: Markets | I71: =G71-H71 -> 0 | J71: =IF(I71=0,"",I71/H71) -> 
A72: ="Total "&A5 -> Total Revenue - Standard | B72: 2 | C72: =C66+C53+C38+C16+C6 -> 0 | D72: =D66+D53+D38+D16+D6 -> 73888367.47 | E72: =E66+E53+E38+E16+E6 -> 0 | F72: 11738889.81 | G72: 11738889.81 | H72: 6157363.956 | I72: 5581525.854 | J72: 0.9064797685 | K72: =K66+K53+K38+K16+K6 -> 67053376.33
A74: Expenditure - Standard
A75: =A6 -> Municipal governance and administration | C75: =C76+C80 -> 0 | D75: =D76+D80 -> 41239767 | E75: 0 | F75: 3078260 | G75: 3078260 | H75: 3436647.25 | I75: =G75-H75 -> -358387.25 | J75: -0.1042839791 | K75: =K76+K80 -> 37115790.3
A76: =A7 -> Executive and council | C76: =C77+C78+C79 -> 0 | D76: =D77+D78+D79 -> 38091090 | E76: 0 | F76: 2767664 | G76: 2767664 | H76: 3174257.5 | I76: -406593.5 | J76: -0.1280909 | K76: =K77+K78+K79 -> 34281981
A77: Mayor and Council | D77: 24349124 | F77: 2470417 | G77: 2470417 | H77: =24349124/12 -> 2029093.667 | I77: 441323.3333 | J77: 0.217497763 | K77: =24349124*0.9 -> 21914211.6
A78: Municipal Manager | I78: 0
A79: Budget and treasury office | D79: 13741966 | F79: 297247 | G79: 297247 | H79: =13741966/12 -> 1145163.833 | I79: -847916.8333 | J79: -0.7404327736 | K79: =13741966*0.9 -> 12367769.4
A80: Corporate services | C80: =C81+C82+C83+C84 -> 0 | D80: =D81+D82+D83+D84 -> 3148677 | E80: 0 | F80: 310596 | G80: 310596 | H80: 262389.75 | I80: 48206.25 | J80: 0.1837200196 | K80: =K81+K82+K83+K84 -> 2833809.3
A81: Human Resources | D81: 3148677 | F81: 310596 | G81: 310596 | H81: =3148677/12 -> 262389.75 | I81: 48206.25 | J81: 0.1837200196 | K81: =3148677*0.9 -> 2833809.3
A82: Information Technology | I82: 0
A83: Property Services | I83: 0
A84: Other Admin | I84: 0
A85: Community and public safety | C85: =C86+C96+C103 -> 0 | D85: =D86+D96+D103 -> 3705977 | E85: 0 | F85: 34804 | G85: 34804 | H85: 308831.4167 | I85: -274027.4167 | J85: -0.8873042115 | K85: =K86+K96+K103 -> 4936106.5
A86: Community and social services | C86: =C87+C88+C89+C90+C91+C92+C93+C94+C95 -> 0 | D86: =D87+D88+D89+D90+D91+D92+D93+D94+D95 -> 3584229 | E86: 0 | F86: 34804 | G86: 34804 | H86: 298685.75 | I86: -263881.75 | J86: -0.8834761953 | K86: =K87+K88+K89+K90+K91+K92+K93+K94+K95 -> 4826533.3
A87: Libraries and Archives | D87: 2942743 | F87: 4141 | G87: 4141 | H87: =2942743/12 -> 245228.5833 | I87: -241087.5833 | J87: -0.983113714 | K87: =2942743*0.9 -> 2648468.7
A88: Museums & Art Galleries etc | D88: 37206 | F88: 0 | G88: 0 | H88: =37206/12 -> 3100.5 | I88: -3100.5 | J88: -1 | K88: =37206*0.9 -> 33485.4
A89: Community halls and Facilities | I89: 0
A90: Cemeteries & Crematoriums | D90: 175903 | F90: 21605 | G90: 21605 | H90: =175903/12 -> 14658.58333 | I90: 6946.416667 | J90: 0.473880491 | K90: =1759039.9 -> 1759039.9
A91: Child Care | I91: 0
A92: Aged Care | I92: 0
A93: Other Community | I93: 0
A94: Other Social | I94: 0
A95: Sport and recreation | D95: 428377 | F95: 9058 | G95: 9058 | H95: =428377/12 -> 35698.08333 | I95: -26640.08333 | J95: -0.746260887 | K95: =428377*0.9 -> 385539.3
A96: Public safety | C96: =C97+C98+C99+C100+C101+C102 -> 0 | D96: =D97+D98+D99+D100+D101+D102 -> 67577 | E96: 0 | F96: 0 | G96: 0 | H96: 5631.416667 | I96: -5631.416667 | J96: -1 | K96: =K97+K98+K99+K100+K101+K102 -> 60819.3
A97: Police | I97: 0
A98: Fire | D98: 4873 | F98: 0 | G98: 0 | H98: =4873/12 -> 406.0833333 | I98: -406.0833333 | J98: -1 | K98: =4873*0.9 -> 4385.7
A99: Civil Defence | D99: 6127 | F99: 0 | G99: 0 | H99: =6127/12 -> 510.5833333 | I99: -510.5833333 | J99: -1 | K99: =6127*0.9 -> 5514.3
A100: Street Lighting | I100: 0
A101: Other | D101: 56577 | F101: 0 | G101: 0 | H101: =56577/12 -> 4714.75 | I101: -4714.75 | J101: -1 | K101: =56577*0.9 -> 50919.3
A102: Housing | I102: 0
A103: Health | C103: =C104+C105+C106 -> 0 | D103: =D104+D105+D106 -> 54171 | E103: 0 | F103: 0 | G103: 0 | H103: 4514.25 | I103: -4514.25 | J103: -1 | K103: =K104+K105+K106 -> 48753.9
A104: Clinics | I104: 0
A105: Ambulance | I105: 0
A106: Other | D106: 54171 | F106: 0 | G106: 0 | H106: =54171/12 -> 4514.25 | I106: -4514.25 | J106: -1 | K106: =54171*0.9 -> 48753.9
A107: Economic and environmental services | C107: =C108+C112+C118 -> 0 | D107: =D108+D112+D118 -> 3615504 | E107: 0 | F107: 138452 | G107: 138452 | H107: 301292 | I107: -162840 | J107: -0.5404723657 | K107: =K108+K112+K118 -> 3253953.6
A108: Planning and development | C108: =C109+C110+C111 -> 0 | D108: =D109+D110+D111 -> 0 | E108: 0 | F108: 0 | G108: 0 | H108: 0 | I108: 0 | K108: =K109+K110+K111 -> 0
A109: Economic Development/Planning | I109: 0
A110: Town Planning/Building enforcement | I110: 0
A111: Licensing & Regulation | I111: 0
A112: Road transport | C112: =C113+C114+C115+C116+C117 -> 0 | D112: =D113+D114+D115+D116+D117 -> 3615504 | E112: 0 | F112: 138452 | G112: 138452 | H112: 301292 | I112: -162840 | J112: -0.5404723657 | K112: =K113+K114+K115+K116+K117 -> 3253953.6
A113: Roads | D113: 3615504 | F113: 138452 | G113: 138452 | H113: =3615504/12 -> 301292 | I113: -162840 | J113: -0.5404723657 | K113: =3615504*0.9 -> 3253953.6
A114: Public Buses | I114: 0
A115: Parking Garages | I115: 0
A116: Vehicle Licensing and Testing | I116: 0
A117: Other | I117: 0
A118: Environmental protection | C118: =C119+C120+C121 -> 0 | D118: =D119+D120+D121 -> 0 | E118: 0 | F118: 0 | G118: 0 | H118: 0 | I118: 0 | K118: =K119+K120+K121 -> 0
A119: Pollution Control | I119: 0
A120: Biodiversity & Landscape | I120: 0
A121: Other | I121: 0
A122: Trading services | C122: =C123+C126+C129+C133 -> 0 | D122: =D123+D126+D129+D133 -> 24683203 | E122: 0 | F122: 1297074 | G122: 1297074 | H122: 407426555.8 | I122: -406129481.8 | J122: -0.9968164225 | K122: =K123+K126+K129+K133 -> 22214882.7
A123: Electricity | C123: =C124+C125 -> 0 | D123: =D124+D125 -> 13068865 | E123: 0 | F123: 855998 | G123: 855998 | H123: 1089072.083 | I123: -233074.0833 | J123: -0.2140116223 | K123: =K124+K125 -> 11761978.5
A124: Electricity Distribution | D124: 13068865 | F124: 855998 | G124: 855998 | H124: =13068865/12 -> 1089072.083 | I124: -233074.0833 | J124: -0.2140116223 | K124: =13068865*0.9 -> 11761978.5
A125: Electricity Generation | I125: 0
A126: Water | C126: =C127+C128 -> 0 | D126: =D127+D128 -> 2385126 | E126: 0 | F126: 79261 | G126: 79261 | H126: 198760.5 | I126: -119499.5 | J126: -0.6012235832 | K126: =K127+K128 -> 2146613.4
A127: Water Distribution | D127: 2385126 | F127: 79261 | G127: 79261 | H127: =2385126/12 -> 198760.5 | I127: -119499.5 | J127: -0.6012235832 | K127: =2385126*0.9 -> 2146613.4
A128: Water Storage | I128: 0
A129: Waste water management | C129: =C130+C131+C132 -> 0 | D129: =D130+D131+D132 -> 5172135 | E129: 0 | F129: 259905 | G129: 259905 | H129: 431011.25 | I129: -171106.25 | J129: -0.3969878976 | K129: =K130+K131+K132 -> 4654921.5
A130: Sewerage | D130: =5356135-184000 -> 5172135 | F130: 259905 | G130: 259905 | H130: =5172135/12 -> 431011.25 | I130: -171106.25 | J130: -0.3969878976 | K130: =5172135*0.9 -> 4654921.5
A131: Storm Water Management | I131: 0
A132: Public Toilets | I132: 0
A133: Waste management | C133: =C134 -> 0 | D133: =D134 -> 4057077 | E133: 0 | F133: 101910 | G133: 101910 | H133: 405707712 | I133: -405605802 | J133: -0.9997488093 | K133: =K134 -> 3651369.3
A134: Solid Waste | D134: 4057077 | F134: 101910 | G134: 101910 | H134: =405707712 -> 405707712 | I134: -405605802 | J134: -0.9997488093 | K134: =4057077*0.9 -> 3651369.3
A135: Other | C135: =C136+C137+C138+C139+C140 -> 0 | D135: =D136+D137+D138+D139+D140 -> 0 | E135: 0 | F135: 0 | G135: 0 | H135: 0 | I135: 0 | J135: =IF(I135=0,"",I135/H135) ->  | K135: =K136+K137+K138+K139+K140 -> 0
A136: Air Transport | I136: 0
A137: Abattoirs | I137: 0
A138: Tourism | I138: 0
A139: Forestry | I139: =G139-H139 -> 0
A140: =A71 -> Markets | I140: 0
A141: ="Total "&A74 -> Total Expenditure - Standard | B141: 3 | C141: =C75+C85+C107+C122+C135 -> 0 | D141: =D75+D85+D107+D122+D135 -> 73244451 | E141: 0 | F141: 4548590 | G141: 4548590 | H141: 411473326.5 | I141: -406924736.5 | J141: -0.9889456018 | K141: =K75+K85+K107+K122+K135 -> 67520733.1
A142: =result -> Surplus/ (Deficit) for the year | C142: =C72-C141 -> 0 | D142: 643916.4747 | E142: 0 | F142: 7190299.81 | G142: 7190299.81 | H142: -405315962.5 | I142: 412506262.4 | J142: -1.017739987 | K142: -467356.7727
A143: =head27a -> References
A144: 1. Government Finance Statistics Functions and Sub-functions are standardised to assist national and international accounts and comparison
A145: 2. Total Revenue by Standard Classification must reconcile to total operating revenue shown in Financial Performance (revenue and expenditure)
A146: 3. Total Expenditure by Standard Classification must reconcile to total operating expenditure shown in Financial Performance (revenue and expenditure)
A147: 4. All amounts must be classified under a Standard (modified GFS) classification. The GFS function 'Other' is only for Abbatoirs, Air Transport, Markets and Tourism - and if used must be supported by footnotes. Nothing else may be placed under 'Other'. Assign associate share to relevant classification
A150: check oprev balance | C150: =C72 -> 0 | D150: 0 | E150: 0 | F150: 0 | G150: 0 | H150: 0 | I150: 0 | K150: 0
A151: check opexp balance | C151: 0 | D151: 0 | E151: 0 | F151: 0 | G151: 0 | H151: 0 | I151: 0 | K151: 0

Sheet C3-FinPerf V
A1: =muni& " - "&S71C& " - "&date -> NC074 Kareeberg - Table C3 Monthly Budget Statement - Financial Performance (revenue and expenditure by municipal vote) - M01 July
A2: =Vdesc -> Vote Description | B2: =head27 -> Ref | C2: =Head1 -> 2017/18 | D2: =Head2 -> Budget Year 2018/19
C3: =Head5 -> Audited Outcome | D3: =Head6 -> Original Budget | E3: =Head7 -> Adjusted Budget | F3: =Head38 -> Monthly actual | G3: =Head39 -> YearTD actual | H3: =Head40 -> YearTD budget | I3: =Head41 -> YTD variance | J3: =Head41 -> YTD variance | K3: =Head8 -> Full Year Forecast
A4: R thousands | J4: %
A5: Revenue by Vote | B5: 1
A6: ='Org structure'!A2 -> Vote 1 - Executive and Council | C6: ='C3C'!C6 -> 0 | D6: ='C3C'!D6 -> 12204670.06 | E6: ='C3C'!E6 -> 0 | F6: ='C3C'!F6 -> 9340598.98 | G6: ='C3C'!G6 -> 9340598.98 | H6: ='C3C'!H6 -> 1017055.838 | I6: =G6-H6 -> 8323543.142 | J6: =IF(I6=0,"",I6/H6) -> 8.183958862 | K6: ='C3C'!K6 -> 10984203.05
A7: ='Org structure'!A3 -> Vote 2 - Budget and Treasury | C7: ='C3C'!C17 -> 0 | D7: ='C3C'!D17 -> 24163399.99 | E7: ='C3C'!E17 -> 0 | F7: ='C3C'!F17 -> 340842.38 | G7: ='C3C'!G17 -> 340842.38 | H7: ='C3C'!H17 -> 2013616.666 | I7: =G7-H7 -> -1672774.286 | J7: =IF(I7=0,"",I7/H7) -> -0.830731248 | K7: ='C3C'!K17 -> 21747059.99
A8: ='Org structure'!A4 -> Vote 3 - Corporate Services | C8: ='C3C'!C28 -> 0 | D8: ='C3C'!D28 -> 0 | E8: ='C3C'!E28 -> 0 | F8: ='C3C'!F28 -> 0 | G8: ='C3C'!G28 -> 0 | H8: ='C3C'!H28 -> 0 | I8: 0 | K8: ='C3C'!K28 -> 0
A9: ='Org structure'!A5 -> Vote 4 - Planning and Development | C9: ='C3C'!C39 -> 0 | D9: ='C3C'!D39 -> 0 | E9: ='C3C'!E39 -> 0 | F9: ='C3C'!F39 -> 0 | G9: ='C3C'!G39 -> 0 | H9: ='C3C'!H39 -> 0 | I9: 0 | K9: ='C3C'!K39 -> 0
A10: ='Org structure'!A6 -> Vote 5 - Health | C10: ='C3C'!C50 -> 0 | D10: ='C3C'!D50 -> 0 | E10: ='C3C'!E50 -> 0 | F10: ='C3C'!F50 -> 0 | G10: ='C3C'!G50 -> 0 | H10: ='C3C'!H50 -> 0 | I10: 0 | K10: ='C3C'!K50 -> 0
A11: ='Org structure'!A7 -> Vote 6 - Community and Social Services | C11: ='C3C'!C61 -> 0 | D11: ='C3C'!D61 -> 1118983 | E11: ='C3C'!E61 -> 0 | F11: ='C3C'!F61 -> 3000 | G11: ='C3C'!G61 -> 3000 | H11: ='C3C'!H61 -> 93248.58333 | I11: -90248.58333 | J11: -0.9678279295 | K11: ='C3C'!K61 -> 1007084.7
A12: ='Org structure'!A8 -> Vote 7 - Housing | C12: ='C3C'!C72 -> 0 | D12: ='C3C'!D72 -> 0 | E12: ='C3C'!E72 -> 0 | F12: ='C3C'!F72 -> 0 | G12: ='C3C'!G72 -> 0 | H12: ='C3C'!H72 -> 0 | I12: 0 | K12: ='C3C'!K72 -> 0
A13: ='Org structure'!A9 -> Vote 8 - Public Safety | C13: ='C3C'!C83 -> 0 | D13: ='C3C'!D83 -> 740 | E13: ='C3C'!E83 -> 0 | F13: ='C3C'!F83 -> 0 | G13: ='C3C'!G83 -> 0 | H13: ='C3C'!H83 -> 61.66666667 | I13: -61.66666667 | J13: -1 | K13: ='C3C'!K83 -> 666
A14: ='Org structure'!A10 -> Vote 9 - Sport and Recreation | C14: ='C3C'!C94 -> 0 | D14: ='C3C'!D94 -> 18345 | E14: ='C3C'!E94 -> 0 | F14: ='C3C'!F94 -> 0 | G14: ='C3C'!G94 -> 0 | H14: ='C3C'!H94 -> 1528.75 | I14: -1528.75 | J14: -1 | K14: ='C3C'!K94 -> 16510.5
A15: ='Org structure'!A11 -> Vote 10 - Environmental Protection | C15: ='C3C'!C105 -> 0 | D15: ='C3C'!D105 -> 0 | E15: ='C3C'!E105 -> 0 | F15: ='C3C'!F105 -> 0 | G15: ='C3C'!G105 -> 0 | H15: ='C3C'!H105 -> 0 | I15: 0 | K15: ='C3C'!K105 -> 0
A16: ='Org structure'!A12 -> Vote 11 - Solid Waste Management | C16: ='C3C'!C116 -> 0 | D16: ='C3C'!D116 -> 7438753.32 | E16: ='C3C'!E116 -> 0 | F16: ='C3C'!F116 -> 338770.85 | G16: ='C3C'!G116 -> 338770.85 | H16: ='C3C'!H116 -> 619896.11 | I16: -281125.26 | J16: -0.4535038299 | K16: ='C3C'!K116 -> 6694877.988
A17: ='Org structure'!A13 -> Vote 12 - Waste Water Management | C17: ='C3C'!C127 -> 0 | D17: ='C3C'!D127 -> 7746989.4 | E17: ='C3C'!E127 -> 0 | F17: ='C3C'!F127 -> 356139.65 | G17: ='C3C'!G127 -> 356139.65 | H17: ='C3C'!H127 -> 645582.45 | I17: -289442.8 | J17: -0.4483436624 | K17: ='C3C'!K127 -> 6972290.46
A18: ='Org structure'!A14 -> Vote 13 - Road Transport | C18: ='C3C'!C138 -> 0 | D18: ='C3C'!D138 -> 2025 | E18: ='C3C'!E138 -> 0 | F18: ='C3C'!F138 -> 420 | G18: ='C3C'!G138 -> 420 | H18: ='C3C'!H138 -> 168.75 | I18: 251.25 | J18: 1.488888889 | K18: ='C3C'!K138 -> 1822.5
A19: ='Org structure'!A15 -> Vote 14 - Water | C19: ='C3C'!C149 -> 0 | D19: ='C3C'!D149 -> 8153581.68 | E19: ='C3C'!E149 -> 0 | F19: ='C3C'!F149 -> 413065.32 | G19: ='C3C'!G149 -> 413065.32 | H19: ='C3C'!H149 -> 679465.14 | I19: -266399.82 | J19: -0.3920728295 | K19: ='C3C'!K149 -> 7338223.512
A20: ='Org structure'!A16 -> Vote 15 - Electricity | C20: ='C3C'!C160 -> 0 | D20: ='C3C'!D160 -> 13040985.02 | E20: ='C3C'!E160 -> 0 | F20: ='C3C'!F160 -> 946052.63 | G20: ='C3C'!G160 -> 946052.63 | H20: ='C3C'!H160 -> 1086748.752 | I20: -140696.1221 | J20: -0.1294651793 | K20: ='C3C'!K160 -> 11736886.52
A21: Total Revenue by Vote | B21: 2 | C21: =SUM(C6:C20) -> 0 | D21: =SUM(D6:D20) -> 73888472.47 | E21: 0 | F21: 11738889.81 | G21: 11738889.81 | H21: 6157372.706 | I21: 5581517.104 | J21: 0.9064770593 | K21: =SUM(K6:K20) -> 66499625.23
A23: Expenditure by Vote | B23: 1
A24: ='Org structure'!A2 -> Vote 1 - Executive and Council | C24: ='C3C'!C174 -> 0 | D24: ='C3C'!D174 -> 24349124 | E24: ='C3C'!E174 -> 0 | F24: ='C3C'!F174 -> 2470417 | G24: ='C3C'!G174 -> 2470417 | H24: ='C3C'!H174 -> 2029093.667 | I24: =G24-H24 -> 441323.3333 | J24: =IF(I24=0,"",I24/H24) -> 0.217497763 | K24: ='C3C'!K174 -> 0
A25: ='Org structure'!A3 -> Vote 2 - Budget and Treasury | C25: ='C3C'!C185 -> 0 | D25: ='C3C'!D185 -> 13557966 | E25: ='C3C'!E185 -> 0 | F25: ='C3C'!F185 -> 297246 | G25: ='C3C'!G185 -> 297146 | H25: ='C3C'!H185 -> 1129830.5 | I25: -832684.5 | J25: -0.736999488 | K25: ='C3C'!K185 -> 12202169.4
A26: ='Org structure'!A4 -> Vote 3 - Corporate Services | C26: ='C3C'!C196 -> 0 | D26: ='C3C'!D196 -> 3148677 | E26: ='C3C'!E196 -> 0 | F26: ='C3C'!F196 -> 310596 | G26: ='C3C'!G196 -> 310596 | H26: ='C3C'!H196 -> 262389.75 | I26: 48206.25 | J26: 0.1837200196 | K26: ='C3C'!K196 -> 2833809.3
A27: ='Org structure'!A5 -> Vote 4 - Planning and Development | C27: ='C3C'!C207 -> 0 | D27: ='C3C'!D207 -> 0 | E27: ='C3C'!E207 -> 0 | F27: ='C3C'!F207 -> 0 | G27: ='C3C'!G207 -> 0 | H27: ='C3C'!H207 -> 0 | I27: 0 | K27: ='C3C'!K207 -> 0
A28: ='Org structure'!A6 -> Vote 5 - Health | C28: ='C3C'!C218 -> 0 | D28: ='C3C'!D218 -> 54171 | E28: ='C3C'!E218 -> 0 | F28: ='C3C'!F218 -> 0 | G28: ='C3C'!G218 -> 0 | H28: ='C3C'!H218 -> 4514.25 | I28: -4514.25 | J28: -1 | K28: ='C3C'!K218 -> 48753.9
A29: ='Org structure'!A7 -> Vote 6 - Community and Social Services | C29: ='C3C'!C229 -> 0 | D29: ='C3C'!D229 -> 3155852 | E29: ='C3C'!E229 -> 0 | F29: ='C3C'!F229 -> 25746 | G29: ='C3C'!G229 -> 21605 | H29: ='C3C'!H229 -> 262987.6667 | I29: -241382.6667 | J29: -0.9178478585 | K29: ='C3C'!K229 -> 2840266.8
A30: ='Org structure'!A8 -> Vote 7 - Housing | C30: ='C3C'!C240 -> 0 | D30: ='C3C'!D240 -> 0 | E30: ='C3C'!E240 -> 0 | F30: ='C3C'!F240 -> 0 | G30: ='C3C'!G240 -> 0 | H30: ='C3C'!H240 -> 0 | I30: 0 | J30: =IF(I30=0,"",I30/H30) ->  | K30: ='C3C'!K240 -> 0
A31: ='Org structure'!A9 -> Vote 8 - Public Safety | C31: ='C3C'!C251 -> 0 | D31: ='C3C'!D251 -> 67577 | E31: ='C3C'!E251 -> 0 | F31: ='C3C'!F251 -> 0 | G31: ='C3C'!G251 -> 0 | H31: ='C3C'!H251 -> 5631.416667 | I31: -5631.416667 | J31: -1 | K31: ='C3C'!K251 -> 60819.3
A32: ='Org structure'!A10 -> Vote 9 - Sport and Recreation | C32: ='C3C'!C262 -> 0 | D32: ='C3C'!D262 -> 428377 | E32: ='C3C'!E262 -> 0 | F32: ='C3C'!F262 -> 9057 | G32: ='C3C'!G262 -> 9057 | H32: ='C3C'!H262 -> 35698.08333 | I32: -26641.08333 | J32: -0.7462888997 | K32: ='C3C'!K262 -> 385539.3
A33: ='Org structure'!A11 -> Vote 10 - Environmental Protection | C33: ='C3C'!C273 -> 0 | D33: ='C3C'!D273 -> 0 | E33: ='C3C'!E273 -> 0 | F33: ='C3C'!F273 -> 0 | G33: ='C3C'!G273 -> 0 | H33: ='C3C'!H273 -> 0 | I33: 0 | J33: =IF(I33=0,"",I33/H33) ->  | K33: ='C3C'!K273 -> 0
A34: ='Org structure'!A12 -> Vote 11 - Solid Waste Management | C34: ='C3C'!C284 -> 0 | D34: ='C3C'!D284 -> 4057077 | E34: ='C3C'!E284 -> 0 | F34: ='C3C'!F284 -> 101910 | G34: ='C3C'!G284 -> 101910 | H34: ='C3C'!H284 -> 338089.75 | I34: -236179.75 | J34: =IF(I34=0,"",I34/H34) -> -0.6985711634 | K34: ='C3C'!K284 -> 3651369.3
A35: ='Org structure'!A13 -> Vote 12 - Waste Water Management | C35: ='C3C'!C295 -> 0 | D35: ='C3C'!D295 -> 5356135 | E35: ='C3C'!E295 -> 0 | F35: ='C3C'!F295 -> 259905 | G35: ='C3C'!G295 -> 259905 | H35: ='C3C'!H295 -> 446344.5833 | I35: -186439.5833 | J35: =IF(I35=0,"",I35/H35) -> -0.4177032506 | K35: ='C3C'!K295 -> 4820521.5
A36: ='Org structure'!A14 -> Vote 13 - Road Transport | C36: ='C3C'!C306 -> 0 | D36: ='C3C'!D306 -> 3615504 | E36: ='C3C'!E306 -> 0 | F36: ='C3C'!F306 -> 138451 | G36: ='C3C'!G306 -> 138451 | H36: ='C3C'!H306 -> 301292 | I36: -162841 | J36: =IF(I36=0,"",I36/H36) -> -0.5404756847 | K36: ='C3C'!K306 -> 3253953.6
A37: ='Org structure'!A15 -> Vote 14 - Water | C37: ='C3C'!C317 -> 0 | D37: ='C3C'!D317 -> 2385126 | E37: ='C3C'!E317 -> 0 | F37: ='C3C'!F317 -> 79261 | G37: ='C3C'!G317 -> 79261 | H37: ='C3C'!H317 -> 198760.5 | I37: -119499.5 | J37: =IF(I37=0,"",I37/H37) -> -0.6012235832 | K37: ='C3C'!K317 -> 2146613.4
A38: ='Org structure'!A16 -> Vote 15 - Electricity | C38: ='C3C'!C328 -> 0 | D38: ='C3C'!D328 -> 13068865 | E38: ='C3C'!E328 -> 0 | F38: ='C3C'!F328 -> 855998 | G38: ='C3C'!G328 -> 855998 | H38: ='C3C'!H328 -> 1089072.083 | I38: -233074.0833 | J38: -0.2140116223 | K38: ='C3C'!K328 -> 11761978.5
A39: Total Expenditure by Vote | B39: 2 | C39: =SUM(C24:C38) -> 0 | D39: =SUM(D24:D38) -> 73244451 | E39: 0 | F39: 4548587 | G39: 4544346 | H39: 6103704.25 | I39: -1559358.25 | J39: =IF(I39=0,"",I39/H39) -> -0.2554773603 | K39: =SUM(K24:K38) -> 44005794.3
A40: =result -> Surplus/ (Deficit) for the year | B40: 2 | C40: =C21-C39 -> 0 | D40: 644021.4747 | E40: 0 | F40: 7190302.81 | G40: 7194543.81 | H40: 53668.45623 | I40: =I21-I39 -> 7140875.354 | J40: =IF(I40=0,"",I40/H40) -> 133.0553524 | K40: =K21-K39 -> 22493830.93
A41: =head27a -> References
A42: 1. Insert 'Vote'; e.g. Department, if different to standard classification structure
A43: 2. Must reconcile to Monthly Budget Statement - Financial Performance Statement (standard classification)

Sheet C3C
A1: =muni& " - "&S71C& " - "&"A"& " - "&date -> NC074 Kareeberg - Table C3 Monthly Budget Statement - Financial Performance (revenue and expenditure by municipal vote) - A - M01 July
A2: =Vdesc -> Vote Description | B2: =head27 -> Ref | C2: =Head1 -> 2017/18 | D2: =Head2 -> Budget Year 2018/19 | L2: =Head4 -> 
A3: R thousand | C3: =Head5 -> Audited Outcome | D3: =Head6 -> Original Budget | E3: =Head7 -> Adjusted Budget | F3: =Head38 -> Monthly actual | G3: =Head39 -> YearTD actual | H3: =Head40 -> YearTD budget | I3: =Head41 -> YTD variance | J3: =Head41 -> YTD variance | K3: =Head8 -> Full Year Forecast | L3: =Head12 -> Forecast 2010/11 | M3: =Head13 -> Forecast 2011/12 | N3: =Head14 -> Forecast 2012/13 | O3: =Head15 -> Forecast 2013/14 | P3: =Head16 -> Forecast 2014/15 | Q3: =Head17 -> Forecast 2015/16 | R3: =Head18 -> Forecast 2016/17 | S3: =Head19 -> Forecast 2017/18 | T3: =Head20 -> Forecast 2018/19 | U3: =Head21 -> Forecast 2019/20 | V3: =Head22 -> Forecast 2020/21 | W3: =Head23 -> Forecast 2021/22
J4: %
A5: Revenue by Vote | B5: 1
A6: ='Org structure'!A2 -> Vote 1 - Executive and Council | C6: =C7 -> 0 | D6: =D7 -> 12204670.06 | E6: 0 | F6: 9340598.98 | G6: 9340598.98 | H6: 1017055.838 | I6: =G6-H6 -> 8323543.142 | J6: =IF(I6=0,"",I6/H6) -> 8.183958862 | K6: 10984203.05
A7: ='Org structure'!E3 -> 1,1 - Executive and Council | D7: 12204670.06 | F7: 9340598.98 | G7: 9340598.98 | H7: =12204670.0610426/12 -> 1017055.838 | I7: =G7-H7 -> 8323543.142 | J7: =IF(I7=0,"",I7/H7) -> 8.183958862 | K7: =12204670.0610426*0.9 -> 10984203.05
A8: ='Org structure'!E4 -> 0
A9: ='Org structure'!E5 -> 0
A10: ='Org structure'!E6 -> 0
A11: ='Org structure'!E7 -> 0
A12: ='Org structure'!E8 -> 0
A13: ='Org structure'!E9 -> 0
A14: ='Org structure'!E10 -> 0
A15: ='Org structure'!E11 -> 0
A16: ='Org structure'!E12 -> 0
A17: ='Org structure'!A3 -> Vote 2 - Budget and Treasury | C17: =C18+C19+C20+C21+C22+C23+C24 -> 0 | D17: =D18+D19+D20+D21+D22+D23+D24 -> 24163399.99 | E17: 0 | F17: 340842.38 | G17: 340842.38 | H17: 2013616.666 | I17: =G17-H17 -> -1672774.286 | J17: =IF(I17=0,"",I17/H17) -> -0.830731248 | K17: 21747059.99
A18: ='Org structure'!E14 -> 2,1 - Official Housing | D18: 6300 | F18: 700 | G18: 700 | H18: =6300/12 -> 525 | I18: 175 | J18: 0.3333333333 | K18: =6300*0.9 -> 5670
A19: ='Org structure'!E15 -> 2,2 - Rates | D19: 9758425.35 | F19: 0 | G19: 0 | H19: =9758425.35/12 -> 813202.1125 | I19: -813202.1125 | J19: -1 | K19: =9758425.35*0.9 -> 8782582.815
A20: ='Org structure'!E16 -> 2,3 - Commonage | D20: 275778.3687 | F20: 119398.28 | G20: 119398.28 | H20: =275778.3687/12 -> 22981.53073 | I20: 96416.74927 | J20: 4.195401535 | K20: =275778.3687*0.9 -> 248200.5318
A21: ='Org structure'!E17 -> 2,4 - Municipal Buildings | D21: 88111.27 | F21: 2005.65 | G21: 2005.65 | H21: =88111.27/12 -> 7342.605833 | I21: -5336.955833 | J21: -0.7268476552 | K21: =88111.27*0.9 -> 79300.143
A22: ='Org structure'!E18 -> 2,5 - Budget and Treasury Office | D22: 14034470 | F22: 218738.45 | G22: 218738.45 | H22: =14034470/12 -> 1169539.167 | I22: -950800.7167 | J22: -0.8129703936 | K22: =14034470*0.9 -> 12631023
A23: ='Org structure'!E19 -> 2,6 - Airport | D23: 315 | H23: =315/12 -> 26.25 | I23: -26.25 | J23: -1 | K23: =315*0.9 -> 283.5
A24: ='Org structure'!E20 -> 2.7 - Abattoir | D24: 0 | H24: =0/12 -> 0 | I24: 0 | K24: 0
A25: ='Org structure'!E21 -> 0
A26: ='Org structure'!E22 -> 0
A27: ='Org structure'!E23 -> 0
A28: ='Org structure'!A4 -> Vote 3 - Corporate Services | C28: =C29 -> 0 | D28: =D29 -> 0 | E28: 0 | F28: 0 | G28: 0 | H28: 0 | I28: =G28-H28 -> 0 | J28: =IF(I28=0,"",I28/H28) ->  | K28: 0
A29: ='Org structure'!E25 -> 3,1 - Corporate Services | F29: 0 | G29: 0
A30: ='Org structure'!E26 -> 0
A31: ='Org structure'!E27 -> 0
A32: ='Org structure'!E28 -> 0
A33: ='Org structure'!E29 -> 0
A34: ='Org structure'!E30 -> 0
A35: ='Org structure'!E31 -> 0
A36: ='Org structure'!E32 -> 0
A37: ='Org structure'!E33 -> 0
A38: ='Org structure'!E34 -> 0
A39: ='Org structure'!A5 -> Vote 4 - Planning and Development | C39: =C40 -> 0 | D39: =D40 -> 0 | E39: 0 | F39: 0 | G39: 0 | H39: 0 | I39: =G39-H39 -> 0 | J39: =IF(I39=0,"",I39/H39) ->  | K39: 0
A40: ='Org structure'!E36 -> 4.1 - [Name of sub-vote] | I40: 0
A41: ='Org structure'!E37 -> 0 | I41: 0
A42: ='Org structure'!E38 -> 0 | I42: 0
A43: ='Org structure'!E39 -> 0 | I43: 0
A44: ='Org structure'!E40 -> 0 | I44: 0
A45: ='Org structure'!E41 -> 0 | I45: 0
A46: ='Org structure'!E42 -> 0 | I46: 0
A47: ='Org structure'!E43 -> 0 | I47: 0
A48: ='Org structure'!E44 -> 0 | I48: 0
A49: ='Org structure'!E45 -> 0 | I49: 0
A50: ='Org structure'!A6 -> Vote 5 - Health | C50: =C51+C52 -> 0 | D50: =D51+D52 -> 0 | E50: 0 | F50: 0 | G50: 0 | H50: 0 | I50: 0 | K50: 0
A51: ='Org structure'!E47 -> 5,1 - Health | I51: 0
A52: ='Org structure'!E48 -> 5,2 - Clinics | I52: 0
A53: ='Org structure'!E49 -> 0 | I53: 0
A54: ='Org structure'!E50 -> 0 | I54: 0
A55: ='Org structure'!E51 -> 0 | I55: 0
A56: ='Org structure'!E52 -> 0 | I56: 0
A57: ='Org structure'!E53 -> 0 | I57: 0
A58: ='Org structure'!E54 -> 0 | I58: 0
A59: ='Org structure'!E55 -> 0 | I59: 0
A60: ='Org structure'!E56 -> 0 | I60: 0
A61: ='Org structure'!A7 -> Vote 6 - Community and Social Services | C61: =C62+C63+C64 -> 0 | D61: =D62+D63+D64 -> 1118983 | E61: 0 | F61: 3000 | G61: 3000 | H61: 93248.58333 | I61: -90248.58333 | J61: -0.9678279295 | K61: 1007084.7
A62: ='Org structure'!E58 -> 6,1 - Cemetry | D62: 6216 | F62: 2830 | G62: 2830 | H62: =6216/12 -> 518 | I62: 2312 | J62: 4.463320463 | K62: =6216*0.9 -> 5594.4
A63: ='Org structure'!E59 -> 6,2 - Library | D63: 1112767 | F63: 170 | G63: 170 | H63: =1112767/12 -> 92730.58333 | I63: -92560.58333 | J63: -0.9981667321 | K63: =1112767*0.9 -> 1001490.3
A64: ='Org structure'!E60 -> 6,3 - Museum | D64: 0 | F64: 0 | G64: 0 | H64: 0 | I64: 0 | K64: 0
A65: ='Org structure'!E61 -> 0 | I65: 0
A66: ='Org structure'!E62 -> 0 | I66: 0
A67: ='Org structure'!E63 -> 0 | I67: 0
A68: ='Org structure'!E64 -> 0 | I68: 0
A69: ='Org structure'!E65 -> 0 | I69: 0
A70: ='Org structure'!E66 -> 0 | I70: 0
A71: ='Org structure'!E67 -> 0 | I71: 0
A72: ='Org structure'!A8 -> Vote 7 - Housing | C72: =C73 -> 0 | I72: 0
A73: ='Org structure'!E69 -> 7.1 - [Name of sub-vote] | I73: 0
A74: ='Org structure'!E70 -> 0 | I74: 0
A75: ='Org structure'!E71 -> 0 | I75: 0
A76: ='Org structure'!E72 -> 0 | I76: 0
A77: ='Org structure'!E73 -> 0 | I77: 0
A78: ='Org structure'!E74 -> 0 | I78: 0
A79: ='Org structure'!E75 -> 0 | I79: 0
A80: ='Org structure'!E76 -> 0 | I80: 0
A81: ='Org structure'!E77 -> 0 | I81: 0
A82: ='Org structure'!E78 -> 0 | I82: 0
A83: ='Org structure'!A9 -> Vote 8 - Public Safety | C83: =C84+C85+C86 -> 0 | D83: =D84+D85+D86 -> 740 | E83: 0 | F83: 0 | G83: 0 | H83: 61.66666667 | I83: -61.66666667 | J83: -1 | K83: 666
A84: ='Org structure'!E80 -> 8,1 - Fire Service | D84: 0 | F84: 0 | G84: 0 | H84: 0 | I84: 0 | K84: 0
A85: ='Org structure'!E81 -> 8,2 - Civil Defence | F85: 0 | G85: 0 | I85: 0
A86: ='Org structure'!E82 -> 8,3 - Pound | D86: 740 | F86: 0 | G86: 0 | H86: =740/12 -> 61.66666667 | I86: -61.66666667 | J86: -1 | K86: =740*0.9 -> 666
A87: ='Org structure'!E83 -> 0 | I87: 0
A88: ='Org structure'!E84 -> 0 | I88: 0
A89: ='Org structure'!E85 -> 0 | I89: 0
A90: ='Org structure'!E86 -> 0 | I90: 0
A91: ='Org structure'!E87 -> 0 | I91: 0
A92: ='Org structure'!E88 -> 0 | I92: 0
A93: ='Org structure'!E89 -> 0 | I93: 0
A94: ='Org structure'!A10 -> Vote 9 - Sport and Recreation | C94: =C95+C96+C97+C98 -> 0 | D94: =D95+D96+D97+D98 -> 18345 | E94: 0 | F94: 0 | G94: 0 | H94: 1528.75 | I94: -1528.75 | J94: -1 | K94: 16510.5
A95: ='Org structure'!E91 -> 9,1 - Nature Reserve | D95: 5430 | F95: 0 | G95: 0 | H95: =5430/12 -> 452.5 | I95: -452.5 | J95: -1 | K95: =5430*0.9 -> 4887
A96: ='Org structure'!E92 -> 9,2 - Parks and Gardens | D96: 210 | F96: 0 | G96: 0 | H96: =210/12 -> 17.5 | I96: -17.5 | J96: -1 | K96: =210*0.9 -> 189
A97: ='Org structure'!E93 -> 9,3 - Swimming Pool | D97: 9450 | F97: 0 | G97: 0 | H97: =9450/12 -> 787.5 | I97: -787.5 | J97: -1 | K97: =9450*0.9 -> 8505
A98: ='Org structure'!E94 -> 9,4 - Caravan Park | D98: 3255 | F98: 0 | G98: 0 | H98: =3255/12 -> 271.25 | I98: -271.25 | J98: -1 | K98: =3255*0.9 -> 2929.5
A99: ='Org structure'!E95 -> 0 | I99: 0
A100: ='Org structure'!E96 -> 0 | I100: 0
A101: ='Org structure'!E97 -> 0 | I101: 0
A102: ='Org structure'!E98 -> 0 | I102: 0
A103: ='Org structure'!E99 -> 0 | I103: =G103-H103 -> 0 | J103: =IF(I103=0,"",I103/H103) -> 
A104: ='Org structure'!E100 -> 0 | I104: 0
A105: ='Org structure'!A11 -> Vote 10 - Environmental Protection | C105: =C106 -> 0 | D105: =D106 -> 0 | E105: 0 | F105: 0 | G105: 0 | H105: 0 | I105: 0 | K105: 0
A106: ='Org structure'!E102 -> 10.1 - [Name of sub-vote] | I106: 0
A107: ='Org structure'!E103 -> 0 | I107: 0
A108: ='Org structure'!E104 -> 0 | I108: 0
A109: ='Org structure'!E105 -> 0 | I109: 0
A110: ='Org structure'!E106 -> 0 | I110: 0
A111: ='Org structure'!E107 -> 0 | I111: 0
A112: ='Org structure'!E108 -> 0 | I112: 0
A113: ='Org structure'!E109 -> 0 | I113: 0
A114: ='Org structure'!E110 -> 0 | I114: 0
A115: ='Org structure'!E111 -> 0 | I115: 0
A116: ='Org structure'!A12 -> Vote 11 - Solid Waste Management | C116: =C117 -> 0 | D116: =D117 -> 7438753.32 | E116: 0 | F116: 338770.85 | G116: 338770.85 | H116: 619896.11 | I116: -281125.26 | J116: -0.4535038299 | K116: 6694877.988
A117: ='Org structure'!E113 -> 11,1 - Refuse removal | D117: 7438753.32 | F117: 338770.85 | G117: 338770.85 | H117: =7438753.32/12 -> 619896.11 | I117: -281125.26 | J117: -0.4535038299 | K117: =7438753.32*0.9 -> 6694877.988
A118: ='Org structure'!E114 -> 0 | I118: 0
A119: ='Org structure'!E115 -> 0 | I119: 0
A120: ='Org structure'!E116 -> 0 | I120: 0
A121: ='Org structure'!E117 -> 0 | I121: 0
A122: ='Org structure'!E118 -> 0 | I122: 0
A123: ='Org structure'!E119 -> 0 | I123: 0
A124: ='Org structure'!E120 -> 0 | I124: 0
A125: ='Org structure'!E121 -> 0 | I125: 0
A126: ='Org structure'!E122 -> 0 | I126: 0
A127: ='Org structure'!A13 -> Vote 12 - Waste Water Management | C127: =C128 -> 0 | D127: =D128 -> 7746989.4 | E127: 0 | F127: 356139.65 | G127: 356139.65 | H127: 645582.45 | I127: -289442.8 | J127: -0.4483436624 | K127: 6972290.46
A128: ='Org structure'!E124 -> 12,1 - Sewerage | D128: 7746989.4 | F128: 356139.65 | G128: 356139.65 | H128: =7746989.4/12 -> 645582.45 | I128: -289442.8 | J128: -0.4483436624 | K128: =7746989.4*0.9 -> 6972290.46
A129: ='Org structure'!E125 -> 0 | I129: 0
A130: ='Org structure'!E126 -> 0 | I130: 0
A131: ='Org structure'!E127 -> 0 | I131: 0
A132: ='Org structure'!E128 -> 0 | I132: 0
A133: ='Org structure'!E129 -> 0 | I133: 0
A134: ='Org structure'!E130 -> 0 | I134: 0
A135: ='Org structure'!E131 -> 0 | I135: 0
A136: ='Org structure'!E132 -> 0 | I136: 0
A137: ='Org structure'!E133 -> 0 | I137: 0
A138: ='Org structure'!A14 -> Vote 13 - Road Transport | C138: =C139+C140+C141+C142 -> 0 | D138: =D139+D140+D141+D142 -> 2025 | E138: 0 | F138: 420 | G138: 420 | H138: 168.75 | I138: 251.25 | J138: 1.488888889 | K138: 1822.5
A139: ='Org structure'!E135 -> 13,1 - Main Roads | D139: 0 | F139: 0 | G139: 0 | H139: 0 | I139: 0 | K139: 0
A140: ='Org structure'!E136 -> 13,2 - Public Works | D140: 105 | F140: 0 | G140: 0 | H140: =105/12 -> 8.75 | I140: -8.75 | J140: -1 | K140: =105*0.9 -> 94.5
A141: ='Org structure'!E137 -> 13,3 - Streets and Pavements | D141: 420 | F141: 0 | G141: 0 | H141: =420/12 -> 35 | I141: -35 | J141: -1 | K141: =420*0.9 -> 378
A142: ='Org structure'!E138 -> 13,4 - Traffic and licencing | D142: 1500 | F142: 420 | G142: 420 | H142: =1500/12 -> 125 | I142: 295 | J142: 2.36 | K142: =1500*0.9 -> 1350
A143: ='Org structure'!E139 -> 0 | I143: 0
A144: ='Org structure'!E140 -> 0 | I144: 0
A145: ='Org structure'!E141 -> 0 | I145: 0
A146: ='Org structure'!E142 -> 0 | I146: 0
A147: ='Org structure'!E143 -> 0 | I147: 0
A148: ='Org structure'!E144 -> 0 | I148: 0
A149: ='Org structure'!A15 -> Vote 14 - Water | C149: =C150+C151 -> 0 | D149: =D150+D151 -> 8153581.68 | E149: 0 | F149: 413065.32 | G149: 413065.32 | H149: 679465.14 | I149: -266399.82 | J149: -0.3920728295 | K149: 7338223.512
A150: ='Org structure'!E146 -> 14,1 - Water Distribution | D150: 8153581.68 | F150: 0 | G150: 0 | H150: =8153581.68/12 -> 679465.14 | I150: -679465.14 | J150: -1 | K150: =8153581.68*0.9 -> 7338223.512
A151: ='Org structure'!E147 -> 14,2 - Water Storage | F151: 413065.32 | G151: 413065.32 | I151: 413065.32
A152: ='Org structure'!E148 -> 0 | I152: 0
A153: ='Org structure'!E149 -> 0 | I153: 0
A154: ='Org structure'!E150 -> 0 | I154: 0
A155: ='Org structure'!E151 -> 0 | I155: 0
A156: ='Org structure'!E152 -> 0 | I156: 0
A157: ='Org structure'!E153 -> 0 | I157: 0
A158: ='Org structure'!E154 -> 0 | I158: 0
A159: ='Org structure'!E155 -> 0 | I159: 0
A160: ='Org structure'!A16 -> Vote 15 - Electricity | C160: =C161+C162+C163 -> 0 | D160: =D161+D162+D163 -> 13040985.02 | E160: 0 | F160: 946052.63 | G160: 946052.63 | H160: 1086748.752 | I160: -140696.1221 | J160: -0.1294651793 | K160: 11736886.52
A161: ='Org structure'!E157 -> 15,1 - Electricity Administration | D161: 13040985.02 | F161: 946052.63 | G161: 946052.63 | H161: =13040985.0249915/12 -> 1086748.752 | I161: -140696.1221 | J161: -0.1294651793 | K161: =13040985.0249915*0.9 -> 11736886.52
A162: ='Org structure'!E158 -> 15,2 - Electricity Distribution | F162: 0 | G162: 0 | I162: 0
A163: ='Org structure'!E159 -> 15,3 - Electricity Generation | F163: 0 | G163: 0 | I163: 0
A164: ='Org structure'!E160 -> 0 | I164: 0
A165: ='Org structure'!E161 -> 0 | I165: 0
A166: ='Org structure'!E162 -> 0 | I166: 0
A167: ='Org structure'!E163 -> 0 | I167: =G167-H167 -> 0 | J167: =IF(I167=0,"",I167/H167) -> 
A168: ='Org structure'!E164 -> 0 | I168: 0
A169: ='Org structure'!E165 -> 0 | I169: 0
A170: ='Org structure'!E166 -> 0 | I170: 0 | L170: =SUM(L78:L81) -> 0 | M170: 0 | N170: 0 | O170: 0 | P170: 0 | Q170: 0 | R170: 0 | S170: 0 | T170: 0 | U170: 0 | V170: 0 | W170: 0
A171: Total Revenue by Vote | B171: 2 | C171: =C160+C149+C138+C127+C116+C105+C94+C83+C72+C61+C50+C39+C28+C17+C6 -> 0 | D171: =D160+D149+D138+D127+D116+D105+D94+D83+D72+D61+D50+D39+D28+D17+D6 -> 73888472.47 | E171: =E160+E149+E138+E127+E116+E105+E94+E83+E72+E61+E50+E39+E28+E17+E6 -> 0 | F171: =F160+F149+F138+F127+F116+F105+F94+F83+F72+F61+F50+F39+F28+F17+F6 -> 11738889.81 | G171: 11738889.81 | H171: 6157372.706 | I171: 5581517.104 | J171: 0.9064770593 | K171: 73888472.47
A173: Expenditure by Vote | B173: 1
A174: ='Org structure'!A2 -> Vote 1 - Executive and Council | C174: =C175 -> 0 | D174: 24349124 | E174: 0 | F174: 2470417 | G174: 2470417 | H174: 2029093.667 | I174: =G174-H174 -> 441323.3333 | J174: =IF(I174=0,"",I174/H174) -> 0.217497763
A175: ='Org structure'!E3 -> 1,1 - Executive and Council | D175: 24349124 | F175: 2470417 | G175: 2470417 | H175: =24349124/12 -> 2029093.667 | I175: 441323.3333 | J175: 0.217497763 | K175: =24349124*0.9 -> 21914211.6
A176: ='Org structure'!E4 -> 0 | I176: 0
A177: ='Org structure'!E5 -> 0 | I177: 0
A178: ='Org structure'!E6 -> 0 | I178: 0
A179: ='Org structure'!E7 -> 0 | I179: 0
A180: ='Org structure'!E8 -> 0 | I180: 0
A181: ='Org structure'!E9 -> 0 | I181: 0
A182: ='Org structure'!E10 -> 0 | I182: 0
A183: ='Org structure'!E11 -> 0 | I183: 0
A184: ='Org structure'!E12 -> 0 | I184: 0
A185: ='Org structure'!A3 -> Vote 2 - Budget and Treasury | C185: =C186+C187+C188+C189+C190+C191+C192+C193+C194+C195 -> 0 | D185: =D186+D187+D188+D189+D190+D191+D192+D193+D194+D195 -> 13557966 | E185: 0 | F185: 297246 | G185: 297146 | H185: 1129830.5 | I185: -832684.5 | J185: -0.736999488 | K185: 12202169.4
A186: ='Org structure'!E14 -> 2,1 - Official Housing | D186: 4043 | F186: 0 | G186: 0 | H186: =4043/12 -> 336.9166667 | I186: -336.9166667 | J186: -1 | K186: =4043*0.9 -> 3638.7
A187: ='Org structure'!E15 -> 2,2 - Rates | D187: 0 | F187: 0 | G187: 0 | H187: 0 | I187: 0 | K187: 0
A188: ='Org structure'!E16 -> 2,3 - Commonage | D188: 66418 | F188: 0 | G188: 0 | H188: =66418/12 -> 5534.833333 | I188: -5534.833333 | J188: -1 | K188: =66418*0.9 -> 59776.2
A189: ='Org structure'!E17 -> 2,4 - Municipal Buildings | D189: 463323 | F189: 9702 | G189: 9702 | H189: =463323/12 -> 38610.25 | I189: -28908.25 | J189: -0.7487195758 | K189: =463323*0.9 -> 416990.7
A190: ='Org structure'!E18 -> 2,5 - Budget and Treasury Office | D190: 12999378 | F190: 287345 | G190: 287245 | H190: =12999378/12 -> 1083281.5 | I190: -796036.5 | J190: -0.7348380823 | K190: =12999378*0.9 -> 11699440.2
A191: ='Org structure'!E19 -> 2,6 - Airport | D191: 24245 | F191: 199 | G191: 199 | H191: =24245/12 -> 2020.416667 | I191: -1821.416667 | J191: -0.901505465 | K191: =24245*0.9 -> 21820.5
A192: ='Org structure'!E20 -> 2.7 - Abattoir | D192: 559 | F192: 0 | G192: 0 | H192: =559/12 -> 46.58333333 | I192: -46.58333333 | J192: -1 | K192: =559*0.9 -> 503.1
A193: ='Org structure'!E21 -> 0 | I193: 0
A194: ='Org structure'!E22 -> 0 | I194: 0
A195: ='Org structure'!E23 -> 0 | I195: 0
A196: ='Org structure'!A4 -> Vote 3 - Corporate Services | C196: =C197 -> 0 | D196: =D197 -> 3148677 | E196: 0 | F196: 310596 | G196: 310596 | H196: 262389.75 | I196: 48206.25 | J196: 0.1837200196 | K196: 2833809.3
A197: ='Org structure'!E25 -> 3,1 - Corporate Services | D197: 3148677 | F197: 310596 | G197: 310596 | H197: =3148677/12 -> 262389.75 | I197: 48206.25 | J197: 0.1837200196 | K197: =3148677*0.9 -> 2833809.3
A198: ='Org structure'!E26 -> 0 | I198: 0
A199: ='Org structure'!E27 -> 0 | I199: 0
A200: ='Org structure'!E28 -> 0 | I200: 0
A201: ='Org structure'!E29 -> 0 | I201: 0
... 146 more rows

Sheet C4-FinPerf RE
A1: =muni& " - "&S71B& " - "&date -> NC074 Kareeberg - Table C4 Monthly Budget Statement - Financial Performance (revenue and expenditure) - M01 July
A2: =desc -> Description | B2: =head27 -> Ref | C2: =Head1 -> 2017/18 | D2: =Head2 -> Budget Year 2018/19
C3: =Head5 -> Audited Outcome | D3: =Head6 -> Original Budget | E3: =Head7 -> Adjusted Budget | F3: =Head38 -> Monthly actual | G3: =Head39 -> YearTD actual | H3: =Head40 -> YearTD budget | I3: =Head41 -> YTD variance | J3: =Head41 -> YTD variance | K3: =Head8 -> Full Year Forecast
A4: R thousands | J4: %
A5: Revenue By Source
A6: Property rates | D6: 7497216.35 | F6: 0 | G6: 0 | H6: =7497216.35/12 -> 624768.0292 | I6: =G6-H6 -> -624768.0292 | J6: =IF(I6=0,"",I6/H6) -> -1 | K6: =7497216.35*0.9 -> 6747494.715
A7: Property rates - penalties & collection charges | D7: 199500 | F7: 12547.39 | G7: 12547.39 | H7: =199500/12 -> 16625 | I7: -4077.61 | J7: -0.2452697744 | K7: =199500*0.9 -> 179550
A8: Service charges - electricity revenue | D8: 10388494.62 | F8: 946052.63 | G8: 946052.63 | H8: =10388494.6249915/12 -> 865707.8854 | I8: 80344.74458 | J8: 0.09280814688 | K8: =10388494.6249915*0.9 -> 9349645.162
A9: Service charges - water revenue | D9: 2700329.88 | F9: 413065.32 | G9: 413065.32 | H9: =2700329.88/12 -> 225027.49 | I9: 188037.83 | J9: 0.8356215945 | K9: =2700329.88*0.9 -> 2430296.892
A10: Service charges - sanitation revenue | D10: 2590847.54 | F10: 356139.65 | G10: 356139.65 | H10: =2590847.54/12 -> 215903.9617 | I10: 140235.6883 | J10: 0.6495280923 | K10: =2590847.54*0.9 -> 2331762.786
A11: Service charges - refuse revenue | D11: 2140629.92 | F11: 338682.45 | G11: 338682.45 | H11: =2140629.92/12 -> 178385.8267 | I11: 160296.6233 | J11: 0.898595064 | K11: =2140629.92*0.9 -> 1926566.928
A12: Service charges - other | I12: 0
A13: Rental of facilities and equipment | D13: 376415 | F13: 122673.93 | G13: 122673.93 | H13: =376415/12 -> 31367.91667 | I13: 91306.01333 | J13: 2.910808974 | K13: =376415*0.9 -> 338773.5
A14: Interest earned - external investments | D14: 1319350 | F14: 163324.68 | G14: 163324.68 | H14: =1319350/12 -> 109945.8333 | I14: 53378.84667 | J14: 0.485501315 | K14: =1319350*0.9 -> 1187415
A15: Interest earned - outstanding debtors | D15: 3465 | F15: 94.3 | G15: 94.3 | H15: =3465/12 -> 288.75 | I15: -194.45 | J15: -0.6734199134 | K15: =3465*0.9 -> 3118.5
A16: Dividends received | I16: 0
A17: Fines | D17: 12842 | F17: 170 | G17: 170 | H17: =12842/12 -> 1070.166667 | I17: -900.1666667 | J17: -0.8411462389 | K17: =12842*0.9 -> 11557.8
A18: Licences and permits | D18: 4791 | F18: 692 | G18: 692 | H18: =4791/12 -> 399.25 | I18: 292.75 | J18: 0.7332498435 | K18: =4791*0.9 -> 4311.9
A19: Agency services | D19: 18500 | F19: 13777.04 | G19: 13777.04 | H19: =18500/12 -> 1541.666667 | I19: 12235.37333 | J19: 7.936458378 | K19: =18500*0.9 -> 16650
A20: Transfers recognised - operational | D20: 26106000 | F20: 9177000 | G20: 9177000 | H20: =26106000/12 -> 2175500 | I20: 7001500 | J20: 3.218340611 | K20: =26106000*0.9 -> 23495400
A21: Other revenue | D21: 20529901 | F21: 194670.42 | G21: 194670.42 | H21: =20529901/12 -> 1710825.083 | I21: -1516154.663 | J21: -0.8862125521 | K21: =20529901*0.9 -> 18476910.9
A22: Gains on disposal of PPE | I22: 0
A23: Total Revenue (excluding capital transfers and contributions) | C23: =SUM(C6:C22) -> 0 | D23: 73888282.31 | E23: 0 | F23: 11738889.81 | G23: 11738889.81 | H23: 6157356.86 | I23: 5581532.95 | J23: 0.9064819658 | K23: =SUM(K6:K22) -> 66499454.08
A25: Expenditure By Type
A26: Employee related costs | D26: 21001756 | F26: =1155760+198013 -> 1353773 | G26: 1353773 | H26: =21001756/12 -> 1750146.333 | I26: =G26-H26 -> -396373.3333 | J26: =IF(I26=0,"",I26/H26) -> -0.2264801096 | K26: =21001756*0.9 -> 18901580.4
A27: Remuneration of councillors | D27: 2641835 | F27: 224279 | G27: 224279 | H27: =2641835/12 -> 220152.9167 | I27: 4126.083333 | J27: 0.0187418972 | K27: =2641835*0.9 -> 2377651.5
A28: Debt impairment | D28: 3401247 | F28: 0 | G28: 0 | H28: =3401247/12 -> 283437.25 | I28: -283437.25 | J28: -1 | K28: =3401247*0.9 -> 3061122.3
A29: Depreciation & asset impairment | D29: 6153895 | F29: 0 | G29: 0 | H29: =6153895/12 -> 512824.5833 | I29: -512824.5833 | J29: -1 | K29: =6153895*0.9 -> 5538505.5
A30: Finance charges | D30: 1117803 | H30: =1117803/12 -> 93150.25 | I30: -93150.25 | J30: -1 | K30: =1117803*0.9 -> 1006022.7
A31: Bulk purchases | D31: 11812072 | F31: 807956 | G31: 807956 | H31: =11812072/12 -> 984339.3333 | I31: -176383.3333 | J31: -0.1791895613 | K31: =11812072*0.9 -> 10630864.8
A32: Other materials | D32: 1228190 | F32: 26099 | G32: 26099 | H32: =1228190/12 -> 102349.1667 | I32: -76250.16667 | J32: -0.7450003664 | K32: =1228190*0.9 -> 1105371
A33: Contracted services | D33: 2346450 | F33: 43992 | G33: 43992 | H33: =2346450/12 -> 195537.5 | I33: -151545.5 | J33: -0.7750201368 | K33: =2346450*0.9 -> 2111805
A34: Transfers and grants | D34: 10666791 | F34: 1360077 | G34: 1360077 | H34: =10666791/12 -> 888899.25 | I34: 471177.75 | J34: 0.5300687901 | K34: =10666791*0.9 -> 9600111.9
A35: Other expenditure | D35: 12872098 | F35: 732414 | G35: 732414 | H35: =12872098/12 -> 1072674.833 | I35: -340260.8333 | J35: -0.3172078087 | K35: =12872098*0.9 -> 11584888.2
A36: Loss on disposal of PPE | D36: 2100 | H36: =2100/12 -> 175 | I36: -175 | J36: -1 | K36: =2100*0.9 -> 1890
A37: Total Expenditure | C37: =SUM(C26:C36) -> 0 | D37: =SUM(D26:D36) -> 73244237 | E37: =SUM(E26:E36) -> 0 | F37: 4548590 | G37: 4548590 | H37: 6103686.417 | I37: -1555096.417 | J37: -0.2547798675 | K37: 65919813.3
A39: Surplus/(Deficit) | C39: =C23-C37 -> 0 | D39: 644045.315 | E39: 0 | F39: 7190299.81 | G39: 7190299.81 | H39: 53670.44292 | I39: =I23-I37 -> 7136629.367 | J39: 132.9713149 | K39: =K23-K37 -> 579640.7835
A40: Transfers recognised - capital | D40: 60796000 | F40: 1278126.79 | G40: 1278126.79 | H40: =65422420/12 -> 5451868.333 | I40: =G40-H40 -> -4173741.543 | J40: -0.7655616915 | K40: 65422420
A41: Contributions recognised - capital | D41: 3386600 | F41: 0 | G41: 0 | H41: =E41/12 -> 0 | I41: =G41-H41 -> 0 | K41: 3386600
A42: Contributed assets | D42: 0 | F42: 0 | G42: 0 | H42: 0 | I42: =G42-H42 -> 0 | K42: 0
A43: Surplus/(Deficit) after capital transfers & contributions | C43: =C39+SUM(C40:C42) -> 0 | D43: 64826645.31 | E43: 0 | F43: 8468426.6 | G43: 8468426.6 | H43: 5505538.776 | K43: =K39+SUM(K40:K42) -> 69388660.78
A44: Taxation | I44: =G44-H44 -> 0 | J44: =IF(I44=0,"",I44/H44) -> 
A45: Surplus/(Deficit) after taxation | C45: =C43-C44 -> 0 | D45: 64826645.31 | E45: 0 | F45: 8468426.6 | G45: 8468426.6 | H45: 5505538.776 | K45: =K43-K44 -> 69388660.78
A46: Attributable to minorities
A47: Surplus/(Deficit) attributable to municipality | C47: =SUM(C45:C46) -> 0 | D47: 64826645.31 | E47: 0 | F47: 8468426.6 | G47: 8468426.6 | H47: 5505538.776 | K47: =SUM(K45:K46) -> 69388660.78
A48: Share of surplus/ (deficit) of associate
A49: Surplus/ (Deficit) for the year | C49: =C47+C48 -> 0 | D49: 64826645.31 | E49: 0 | F49: 8468426.6 | G49: 8468426.6 | H49: 5505538.776 | K49: =K47+K48 -> 69388660.78
A50: =head27a -> References
A51: 1. Material variances to be explained on Table SC1
A54: =A23&" including capital transfers/contributions etc" -> Total Revenue (excluding capital transfers and contributions) including capital transfers/contributions etc | C54: =C23+SUM(C40:C42) -> 0 | D54: 138070882.3 | E54: 0 | F54: 13017016.6 | G54: 13017016.6 | H54: 11609225.19 | K54: =K23+SUM(K40:K42) -> 135308474.1

Sheet C5-Capex
A1: =muni& " - "&S71D& " - "&date -> NC074 Kareeberg - Table C5 Monthly Budget Statement - Capital Expenditure (municipal vote, standard classification and funding) - M01 July
A2: =Vdesc -> Vote Description | B2: =head27 -> Ref | C2: =Head1 -> 2017/18 | D2: =Head2 -> Budget Year 2018/19
C3: =Head5 -> Audited Outcome | D3: =Head6 -> Original Budget | E3: =Head7 -> Adjusted Budget | F3: =Head38 -> Monthly actual | G3: =Head39 -> YearTD actual | H3: =Head40 -> YearTD budget | I3: =Head41 -> YTD variance | J3: =Head41 -> YTD variance | K3: =Head8 -> Full Year Forecast
A4: R thousands | B4: 1 | J4: %
A5: Multi-Year expenditure appropriation | B5: 2
A6: ='Org structure'!A2 -> Vote 1 - Executive and Council | C6: ='C5C'!C7 -> 0 | D6: ='C5C'!D7 -> 0 | E6: ='C5C'!E7 -> 0 | F6: ='C5C'!F7 -> 0 | G6: ='C5C'!G7 -> 0 | H6: ='C5C'!H7 -> 0 | I6: =G6-H6 -> 0 | J6: =IF(I6=0,"",I6/H6) ->  | K6: ='C5C'!K7 -> 0
A7: ='Org structure'!A3 -> Vote 2 - Budget and Treasury | C7: ='C5C'!C18 -> 0 | D7: ='C5C'!D18 -> 0 | E7: ='C5C'!E18 -> 0 | F7: ='C5C'!F18 -> 0 | G7: ='C5C'!G18 -> 0 | H7: ='C5C'!H18 -> 0 | I7: =G7-H7 -> 0 | J7: =IF(I7=0,"",I7/H7) ->  | K7: ='C5C'!K18 -> 0
A8: ='Org structure'!A4 -> Vote 3 - Corporate Services | C8: ='C5C'!C29 -> 0 | D8: ='C5C'!D29 -> 0 | E8: ='C5C'!E29 -> 0 | F8: ='C5C'!F29 -> 0 | G8: ='C5C'!G29 -> 0 | H8: ='C5C'!H29 -> 0 | I8: =G8-H8 -> 0 | J8: =IF(I8=0,"",I8/H8) ->  | K8: ='C5C'!K29 -> 0
A9: ='Org structure'!A5 -> Vote 4 - Planning and Development | C9: ='C5C'!C40 -> 0 | D9: ='C5C'!D40 -> 0 | E9: ='C5C'!E40 -> 0 | F9: ='C5C'!F40 -> 0 | G9: ='C5C'!G40 -> 0 | H9: ='C5C'!H40 -> 0 | I9: 0 | K9: ='C5C'!K40 -> 0
A10: ='Org structure'!A6 -> Vote 5 - Health | C10: ='C5C'!C51 -> 0 | D10: ='C5C'!D51 -> 0 | E10: ='C5C'!E51 -> 0 | F10: ='C5C'!F51 -> 0 | G10: ='C5C'!G51 -> 0 | H10: ='C5C'!H51 -> 0 | I10: 0 | K10: ='C5C'!K51 -> 0
A11: ='Org structure'!A7 -> Vote 6 - Community and Social Services | C11: ='C5C'!C62 -> 0 | D11: ='C5C'!D62 -> 0 | E11: ='C5C'!E62 -> 0 | F11: ='C5C'!F62 -> 0 | G11: ='C5C'!G62 -> 0 | H11: ='C5C'!H62 -> 0 | I11: 0 | K11: ='C5C'!K62 -> 0
A12: ='Org structure'!A8 -> Vote 7 - Housing | C12: ='C5C'!C73 -> 0 | D12: ='C5C'!D73 -> 0 | E12: ='C5C'!E73 -> 0 | F12: ='C5C'!F73 -> 0 | G12: ='C5C'!G73 -> 0 | H12: ='C5C'!H73 -> 0 | I12: 0 | K12: ='C5C'!K73 -> 0
A13: ='Org structure'!A9 -> Vote 8 - Public Safety | C13: ='C5C'!C84 -> 0 | D13: ='C5C'!D84 -> 0 | E13: ='C5C'!E84 -> 0 | F13: ='C5C'!F84 -> 0 | G13: ='C5C'!G84 -> 0 | H13: ='C5C'!H84 -> 0 | I13: 0 | K13: ='C5C'!K84 -> 0
A14: ='Org structure'!A10 -> Vote 9 - Sport and Recreation | C14: ='C5C'!C95 -> 0 | D14: ='C5C'!D95 -> 0 | E14: ='C5C'!E95 -> 0 | F14: ='C5C'!F95 -> 0 | G14: ='C5C'!G95 -> 0 | H14: ='C5C'!H95 -> 0 | I14: 0 | K14: ='C5C'!K95 -> 0
A15: ='Org structure'!A11 -> Vote 10 - Environmental Protection | C15: ='C5C'!C106 -> 0 | D15: ='C5C'!D106 -> 0 | E15: ='C5C'!E106 -> 0 | F15: ='C5C'!F106 -> 0 | G15: ='C5C'!G106 -> 0 | H15: ='C5C'!H106 -> 0 | I15: 0 | K15: ='C5C'!K106 -> 0
A16: ='Org structure'!A12 -> Vote 11 - Solid Waste Management | C16: ='C5C'!C117 -> 0 | D16: ='C5C'!D117 -> 0 | E16: ='C5C'!E117 -> 0 | F16: ='C5C'!F117 -> 0 | G16: ='C5C'!G117 -> 0 | H16: ='C5C'!H117 -> 0 | I16: 0 | K16: ='C5C'!K117 -> 0
A17: ='Org structure'!A13 -> Vote 12 - Waste Water Management | C17: ='C5C'!C128 -> 0 | D17: ='C5C'!D128 -> 0 | E17: ='C5C'!E128 -> 0 | F17: ='C5C'!F128 -> 0 | G17: ='C5C'!G128 -> 0 | H17: ='C5C'!H128 -> 0 | I17: 0 | K17: ='C5C'!K128 -> 0
A18: ='Org structure'!A14 -> Vote 13 - Road Transport | C18: ='C5C'!C139 -> 0 | D18: ='C5C'!D139 -> 0 | E18: ='C5C'!E139 -> 0 | F18: ='C5C'!F139 -> 0 | G18: ='C5C'!G139 -> 0 | H18: ='C5C'!H139 -> 0 | I18: =G18-H18 -> 0 | J18: =IF(I18=0,"",I18/H18) ->  | K18: ='C5C'!K139 -> 0
A19: ='Org structure'!A15 -> Vote 14 - Water | C19: ='C5C'!C150 -> 0 | D19: ='C5C'!D150 -> 0 | E19: ='C5C'!E150 -> 0 | F19: ='C5C'!F150 -> 0 | G19: ='C5C'!G150 -> 0 | H19: ='C5C'!H150 -> 0 | I19: =G19-H19 -> 0 | J19: =IF(I19=0,"",I19/H19) ->  | K19: ='C5C'!K150 -> 0
A20: ='Org structure'!A16 -> Vote 15 - Electricity | C20: ='C5C'!C161 -> 0 | D20: ='C5C'!D161 -> 0 | E20: ='C5C'!E161 -> 0 | F20: ='C5C'!F161 -> 0 | G20: ='C5C'!G161 -> 0 | H20: ='C5C'!H161 -> 0 | I20: =G20-H20 -> 0 | J20: =IF(I20=0,"",I20/H20) ->  | K20: ='C5C'!K161 -> 0
A21: Total Capital Multi-year expenditure | B21: 4,7 | C21: =SUM(C6:C20) -> 0 | D21: =SUM(D6:D20) -> 0 | E21: 0 | F21: 0 | G21: 0 | H21: 0 | I21: 0 | J21: =IF(I21=0,"",I21/H21) ->  | K21: =SUM(K6:K20) -> 0
A23: Single Year expenditure appropriation | B23: 2
A24: ='Org structure'!A2 -> Vote 1 - Executive and Council | C24: ='C5C'!C176 -> 0 | D24: ='C5C'!D176 -> 7972000 | E24: ='C5C'!E176 -> 0 | F24: ='C5C'!F176 -> 0 | G24: ='C5C'!G176 -> 0 | H24: ='C5C'!H176 -> 664333.3333 | I24: ='C5C'!I176 -> -664333.3333 | J24: =IF(I24=0,"",I24/H24) -> -1 | K24: ='C5C'!K176 -> 7972000
A25: ='Org structure'!A3 -> Vote 2 - Budget and Treasury | C25: ='C5C'!C187 -> 0 | D25: ='C5C'!D187 -> 3386600 | E25: ='C5C'!E187 -> 0 | F25: ='C5C'!F187 -> 0 | G25: ='C5C'!G187 -> 0 | H25: ='C5C'!H187 -> 282216.6667 | I25: ='C5C'!I187 -> -282216.6667 | J25: =IF(I25=0,"",I25/H25) -> -1 | K25: ='C5C'!K187 -> 3386600
A26: ='Org structure'!A4 -> Vote 3 - Corporate Services | C26: ='C5C'!C198 -> 0 | D26: ='C5C'!D198 -> 0 | E26: ='C5C'!E198 -> 0 | F26: ='C5C'!F198 -> 0 | G26: ='C5C'!G198 -> 0 | H26: ='C5C'!H198 -> 0 | I26: ='C5C'!I198 -> 0 | K26: ='C5C'!K198 -> 0
A27: ='Org structure'!A5 -> Vote 4 - Planning and Development | C27: ='C5C'!C209 -> 0 | D27: ='C5C'!D209 -> 0 | E27: ='C5C'!E209 -> 0 | F27: ='C5C'!F209 -> 0 | G27: ='C5C'!G209 -> 0 | H27: ='C5C'!H209 -> 0 | I27: ='C5C'!I209 -> 0 | K27: ='C5C'!K209 -> 0
A28: ='Org structure'!A6 -> Vote 5 - Health | C28: ='C5C'!C220 -> 0 | D28: ='C5C'!D220 -> 0 | E28: ='C5C'!E220 -> 0 | F28: ='C5C'!F220 -> 0 | G28: ='C5C'!G220 -> 0 | H28: ='C5C'!H220 -> 0 | I28: ='C5C'!I220 -> 0 | K28: ='C5C'!K220 -> 0
A29: ='Org structure'!A7 -> Vote 6 - Community and Social Services | C29: ='C5C'!C231 -> 0 | D29: ='C5C'!D231 -> 0 | E29: ='C5C'!E231 -> 0 | F29: ='C5C'!F231 -> 0 | G29: ='C5C'!G231 -> 0 | H29: ='C5C'!H231 -> 0 | I29: ='C5C'!I231 -> 0 | K29: ='C5C'!K231 -> 0
A30: ='Org structure'!A8 -> Vote 7 - Housing | C30: ='C5C'!C242 -> 0 | D30: ='C5C'!D242 -> 0 | E30: ='C5C'!E242 -> 0 | F30: ='C5C'!F242 -> 0 | G30: ='C5C'!G242 -> 0 | H30: ='C5C'!H242 -> 0 | I30: ='C5C'!I242 -> 0 | K30: ='C5C'!K242 -> 0
A31: ='Org structure'!A9 -> Vote 8 - Public Safety | C31: ='C5C'!C253 -> 0 | D31: ='C5C'!D253 -> 0 | E31: ='C5C'!E253 -> 0 | F31: ='C5C'!F253 -> 0 | G31: ='C5C'!G253 -> 0 | H31: ='C5C'!H253 -> 0 | I31: ='C5C'!I253 -> 0 | K31: ='C5C'!K253 -> 0
A32: ='Org structure'!A10 -> Vote 9 - Sport and Recreation | C32: ='C5C'!C264 -> 0 | D32: ='C5C'!D264 -> 0 | E32: ='C5C'!E264 -> 0 | F32: ='C5C'!F264 -> 0 | G32: ='C5C'!G264 -> 0 | H32: ='C5C'!H264 -> 0 | I32: ='C5C'!I264 -> 0 | K32: ='C5C'!K264 -> 0
A33: ='Org structure'!A11 -> Vote 10 - Environmental Protection | C33: ='C5C'!C275 -> 0 | D33: ='C5C'!D275 -> 0 | E33: ='C5C'!E275 -> 0 | F33: ='C5C'!F275 -> 0 | G33: ='C5C'!G275 -> 0 | H33: ='C5C'!H275 -> 0 | I33: ='C5C'!I275 -> 0 | K33: ='C5C'!K275 -> 0
A34: ='Org structure'!A12 -> Vote 11 - Solid Waste Management | C34: ='C5C'!C286 -> 0 | D34: ='C5C'!D286 -> 0 | E34: ='C5C'!E286 -> 0 | F34: ='C5C'!F286 -> 0 | G34: ='C5C'!G286 -> 0 | H34: ='C5C'!H286 -> 0 | I34: ='C5C'!I286 -> 0 | K34: ='C5C'!K286 -> 0
A35: ='Org structure'!A13 -> Vote 12 - Waste Water Management | C35: ='C5C'!C297 -> 0 | D35: ='C5C'!D297 -> 0 | E35: ='C5C'!E297 -> 0 | F35: ='C5C'!F297 -> 0 | G35: ='C5C'!G297 -> 0 | H35: ='C5C'!H297 -> 0 | I35: ='C5C'!I297 -> 0 | K35: ='C5C'!K297 -> 0
A36: ='Org structure'!A14 -> Vote 13 - Road Transport | C36: ='C5C'!C308 -> 0 | D36: ='C5C'!D308 -> 0 | E36: ='C5C'!E308 -> 0 | F36: ='C5C'!F308 -> 0 | G36: ='C5C'!G308 -> 0 | H36: ='C5C'!H308 -> 0 | I36: ='C5C'!I308 -> 0 | K36: ='C5C'!K308 -> 0
A37: ='Org structure'!A15 -> Vote 14 - Water | C37: ='C5C'!C319 -> 0 | D37: ='C5C'!D319 -> 51824000 | E37: ='C5C'!E319 -> 0 | F37: ='C5C'!F319 -> 1278126.79 | G37: ='C5C'!G319 -> 1278126.79 | H37: ='C5C'!H319 -> 4318666.667 | I37: ='C5C'!I319 -> -3040539.877 | J37: -0.7040459733 | K37: ='C5C'!K319 -> 51824000
A38: ='Org structure'!A16 -> Vote 15 - Electricity | C38: ='C5C'!C330 -> 0 | D38: ='C5C'!D330 -> 1000000 | E38: ='C5C'!E330 -> 0 | F38: ='C5C'!F330 -> 0 | G38: ='C5C'!G330 -> 0 | H38: ='C5C'!H330 -> 83333.33333 | I38: ='C5C'!I330 -> -83333.33333 | J38: -1 | K38: ='C5C'!K330 -> 1000000
A39: Total Capital single-year expenditure | B39: 4 | C39: =SUM(C24:C38) -> 0 | D39: 64182600 | E39: 0 | F39: 1278126.79 | G39: 1278126.79 | H39: 5348550 | I39: -4070423.21 | J39: -0.7610330295 | K39: =SUM(K24:K38) -> 64182600
A40: Total Capital Expenditure | C40: =C39+C21 -> 0 | D40: 64182600 | E40: 0 | F40: 1278126.79 | G40: 1278126.79 | H40: 5348550 | I40: -4070423.21 | J40: =IF(I40=0,"",I40/H40) -> -0.7610330295 | K40: =K39+K21 -> 64182600
A42: Capital Expenditure - Standard Classification
A43: ='C2-FinPerf SC'!A29 -> Governance and administration | C43: =SUM(C44:C46) -> 0 | D43: 11358600 | E43: 0 | F43: 0 | G43: 0 | H43: 946550 | I43: =G43-H43 -> -946550 | J43: =IF(I43=0,"",I43/H43) -> -1 | K43: =SUM(K44:K46) -> 11358600
A44: ='C2-FinPerf SC'!A30 -> Executive and council | D44: 7972000 | F44: 0 | G44: 0 | H44: =7972000/12 -> 664333.3333 | I44: -664333.3333 | J44: =IF(I44=0,"",I44/H44) -> -1 | K44: 7972000
A45: ='C2-FinPerf SC'!A31 -> Budget and treasury office | D45: 3386600 | F45: 0 | G45: 0 | H45: 282216.6667 | I45: -282216.6667 | J45: -1 | K45: 3386600
A46: ='C2-FinPerf SC'!A32 -> Corporate services | I46: 0
A47: ='C2-FinPerf SC'!A33 -> Community and public safety | C47: =SUM(C48:C52) -> 0 | D47: 0 | E47: 0 | F47: 0 | G47: 0 | H47: 0 | I47: 0 | K47: =SUM(K48:K52) -> 0
A48: ='C2-FinPerf SC'!A34 -> Community and social services | I48: 0
A49: ='C2-FinPerf SC'!A35 -> Sport and recreation | I49: 0
A50: ='C2-FinPerf SC'!A36 -> Public safety | I50: 0
A51: ='C2-FinPerf SC'!A37 -> Housing | I51: 0
A52: ='C2-FinPerf SC'!A38 -> Health | I52: 0
A53: ='C2-FinPerf SC'!A39 -> Economic and environmental services | C53: =SUM(C54:C56) -> 0 | D53: 0 | E53: 0 | F53: 0 | G53: 0 | H53: 0 | I53: 0 | K53: =SUM(K54:K56) -> 0
A54: ='C2-FinPerf SC'!A40 -> Planning and development | I54: 0
A55: ='C2-FinPerf SC'!A41 -> Road transport | I55: 0
A56: ='C2-FinPerf SC'!A42 -> Environmental protection | I56: 0
A57: ='C2-FinPerf SC'!A43 -> Trading services | C57: =SUM(C58:C61) -> 0 | D57: 52824000 | E57: 0 | F57: 1278126.79 | G57: 1278126.79 | H57: 4402000 | I57: -3123873.21 | J57: -0.7096486165 | K57: =SUM(K58:K61) -> 52824000
A58: ='C2-FinPerf SC'!A44 -> Electricity | D58: 1000000 | F58: 0 | G58: 0 | H58: =1000000/12 -> 83333.33333 | I58: -83333.33333 | J58: -1 | K58: 1000000
A59: ='C2-FinPerf SC'!A45 -> Water | D59: 51824000 | F59: 1278126.79 | G59: 1278126.79 | H59: =51824000/12 -> 4318666.667 | I59: -3040539.877 | J59: -0.7040459733 | K59: 51824000
A60: ='C2-FinPerf SC'!A46 -> Waste water management | I60: 0
A61: ='C2-FinPerf SC'!A47 -> Waste management | I61: 0
A62: ='C2-FinPerf SC'!A48 -> Other | I62: 0
A63: Total Capital Expenditure - Standard Classification | B63: 3 | C63: =C43+C47+C53+C57+C62 -> 0 | D63: =D43+D47+D53+D57+D62 -> 64182600 | E63: 0 | F63: 1278126.79 | G63: 1278126.79 | H63: 5348550 | I63: -4070423.21 | J63: -0.7610330295 | K63: =K43+K47+K53+K57+K62 -> 64182600
A65: Funded by:
A66: National Government | D66: 60796000 | F66: 1278126.79 | G66: 1278126.79 | H66: =60796000/12 -> 5066333.333 | I66: =G66-H66 -> -3788206.543 | J66: =IF(I66=0,"",I66/H66) -> -0.7477215363 | K66: 60796000
A67: Provincial Government | I67: 0
A68: District Municipality | I68: 0
A69: Other transfers and grants | D69: 3386600 | F69: 0 | G69: 0 | H69: =3386600/12 -> 282216.6667 | I69: -282216.6667 | J69: -1 | K69: 3386600
A70: Transfers recognised - capital | C70: =SUM(C66:C69) -> 0 | D70: 64182600 | E70: 0 | F70: 1278126.79 | G70: 1278126.79 | H70: 5348550 | I70: -4070423.21 | J70: -0.7610330295 | K70: =SUM(K66:K69) -> 64182600
A71: Public contributions & donations | B71: 5 | I71: 0
A72: Borrowing | B72: 6 | I72: 0
A73: Internally generated funds | I73: 0
A74: Total Capital Funding | C74: =SUM(C70:C73) -> 0 | D74: 64182600 | E74: 0 | F74: =SUM(F70:F73) -> 1278126.79 | G74: =SUM(G70:G73) -> 1278126.79 | H74: =SUM(H70:H73) -> 5348550 | I74: -4070423.21 | J74: -0.7610330295 | K74: 64182600
A75: =head27a -> References
A76: 1. Municipalities may choose to appropriate for capital expenditure for three years or for one year (if one year appropriation projected expenditure required for yr2 and yr3).
A77: 2. Include capital component of PPP unitary payment
A78: 3. Capital expenditure by standard classification must reconcile to the total of multi-year and single year appropriations
A79: 4. Include expenditure on investment property, intangible and biological assets
A80: 5. Must reconcile to Monthly Budget Statement Financial Performance (revenue and expenditure)
A81: 6. Include finance leases and PPP capital funding component of unitary payment - total borrowing/repayments to reconcile to changes in Table SA17
A86: check balance | C86: =C40-C74 -> 0 | D86: =D40-D74 -> 0 | E86: 0 | F86: 0 | G86: 0 | H86: 0 | K86: 0

Sheet C5C
A1: =muni& " - "&S71D& " - "&"A"& " - "&date -> NC074 Kareeberg - Table C5 Monthly Budget Statement - Capital Expenditure (municipal vote, standard classification and funding) - A - M01 July
A2: =Vdesc -> Vote Description | B2: =head27 -> Ref | C2: =Head1 -> 2017/18 | D2: =Head2 -> Budget Year 2018/19 | L2: =Head4 -> 
A3: R thousand | C3: =Head5 -> Audited Outcome | D3: =Head6 -> Original Budget | E3: =Head7 -> Adjusted Budget | F3: =Head38 -> Monthly actual | G3: =Head39 -> YearTD actual | H3: =Head40 -> YearTD budget | I3: =Head41 -> YTD variance | J3: =Head41 -> YTD variance | K3: =Head8 -> Full Year Forecast | L3: =Head12 -> Forecast 2010/11 | M3: =Head13 -> Forecast 2011/12 | N3: =Head14 -> Forecast 2012/13 | O3: =Head15 -> Forecast 2013/14 | P3: =Head16 -> Forecast 2014/15 | Q3: =Head17 -> Forecast 2015/16 | R3: =Head18 -> Forecast 2016/17 | S3: =Head19 -> Forecast 2017/18 | T3: =Head20 -> Forecast 2018/19 | U3: =Head21 -> Forecast 2019/20 | V3: =Head22 -> Forecast 2020/21 | W3: =Head23 -> Forecast 2021/22
J4: %
A5: Capital expenditure - Municipal Vote
A6: Expenditure of multi-year capital appropriation | B6: 1
A7: ='Org structure'!A2 -> Vote 1 - Executive and Council | C7: =SUM(C8:C17) -> 0 | D7: =SUM(D8:D17) -> 0 | E7: 0 | F7: 0 | G7: 0 | H7: 0 | I7: =G7-H7 -> 0 | J7: =IF(I7=0,"",I7/H7) ->  | K7: 0
A8: ='Org structure'!E3 -> 1,1 - Executive and Council | I8: 0
A9: ='Org structure'!E4 -> 0 | I9: =G9-H9 -> 0 | J9: =IF(I9=0,"",I9/H9) -> 
A10: ='Org structure'!E5 -> 0 | I10: 0
A11: ='Org structure'!E6 -> 0 | I11: 0
A12: ='Org structure'!E7 -> 0 | I12: 0
A13: ='Org structure'!E8 -> 0 | I13: 0
A14: ='Org structure'!E9 -> 0 | I14: 0
A15: ='Org structure'!E10 -> 0 | I15: 0
A16: ='Org structure'!E11 -> 0 | I16: 0
A17: ='Org structure'!E12 -> 0 | I17: 0
A18: ='Org structure'!A3 -> Vote 2 - Budget and Treasury | C18: =SUM(C19:C28) -> 0 | D18: =SUM(D19:D28) -> 0 | E18: 0 | F18: 0 | G18: 0 | H18: 0 | I18: 0 | K18: 0
A19: ='Org structure'!E14 -> 2,1 - Official Housing | I19: 0
A20: ='Org structure'!E15 -> 2,2 - Rates | I20: 0
A21: ='Org structure'!E16 -> 2,3 - Commonage | I21: 0
A22: ='Org structure'!E17 -> 2,4 - Municipal Buildings | I22: =G22-H22 -> 0 | J22: =IF(I22=0,"",I22/H22) -> 
A23: ='Org structure'!E18 -> 2,5 - Budget and Treasury Office | I23: 0
A24: ='Org structure'!E19 -> 2,6 - Airport | I24: 0
A25: ='Org structure'!E20 -> 2.7 - Abattoir | I25: 0
A26: ='Org structure'!E21 -> 0 | I26: 0
A27: ='Org structure'!E22 -> 0 | I27: 0
A28: ='Org structure'!E23 -> 0 | I28: 0
A29: ='Org structure'!A4 -> Vote 3 - Corporate Services | C29: =SUM(C30:C39) -> 0 | D29: 0 | E29: 0 | F29: 0 | G29: 0 | H29: 0 | I29: 0 | K29: 0
A30: ='Org structure'!E25 -> 3,1 - Corporate Services | I30: 0
A31: ='Org structure'!E26 -> 0 | I31: 0
A32: ='Org structure'!E27 -> 0 | I32: 0
A33: ='Org structure'!E28 -> 0 | I33: 0
A34: ='Org structure'!E29 -> 0 | I34: 0
A35: ='Org structure'!E30 -> 0 | I35: 0
A36: ='Org structure'!E31 -> 0 | I36: 0
A37: ='Org structure'!E32 -> 0 | I37: 0
A38: ='Org structure'!E33 -> 0 | I38: 0
A39: ='Org structure'!E34 -> 0 | I39: 0
A40: ='Org structure'!A5 -> Vote 4 - Planning and Development | C40: =SUM(C41:C50) -> 0 | D40: 0 | E40: 0 | F40: 0 | G40: 0 | H40: 0 | I40: 0 | K40: 0
A41: ='Org structure'!E36 -> 4.1 - [Name of sub-vote] | I41: 0
A42: ='Org structure'!E37 -> 0 | I42: 0
A43: ='Org structure'!E38 -> 0 | I43: 0
A44: ='Org structure'!E39 -> 0 | I44: 0
A45: ='Org structure'!E40 -> 0 | I45: 0
A46: ='Org structure'!E41 -> 0 | I46: 0
A47: ='Org structure'!E42 -> 0 | I47: 0
A48: ='Org structure'!E43 -> 0 | I48: 0
A49: ='Org structure'!E44 -> 0 | I49: 0
A50: ='Org structure'!E45 -> 0 | I50: 0
A51: ='Org structure'!A6 -> Vote 5 - Health | C51: =SUM(C52:C61) -> 0 | D51: =SUM(D52:D61) -> 0 | E51: 0 | F51: 0 | G51: 0 | H51: 0 | I51: 0 | K51: 0
A52: ='Org structure'!E47 -> 5,1 - Health | I52: 0
A53: ='Org structure'!E48 -> 5,2 - Clinics | I53: 0
A54: ='Org structure'!E49 -> 0 | I54: 0
A55: ='Org structure'!E50 -> 0 | I55: 0
A56: ='Org structure'!E51 -> 0 | I56: 0
A57: ='Org structure'!E52 -> 0 | I57: 0
A58: ='Org structure'!E53 -> 0 | I58: 0
A59: ='Org structure'!E54 -> 0 | I59: 0
A60: ='Org structure'!E55 -> 0 | I60: 0
A61: ='Org structure'!E56 -> 0 | I61: 0
A62: ='Org structure'!A7 -> Vote 6 - Community and Social Services | C62: =SUM(C63:C72) -> 0 | D62: =SUM(D63:D72) -> 0 | E62: 0 | F62: 0 | G62: 0 | H62: 0 | I62: 0 | K62: 0
A63: ='Org structure'!E58 -> 6,1 - Cemetry | I63: 0
A64: ='Org structure'!E59 -> 6,2 - Library | I64: 0
A65: ='Org structure'!E60 -> 6,3 - Museum | I65: 0
A66: ='Org structure'!E61 -> 0 | I66: 0
A67: ='Org structure'!E62 -> 0 | I67: 0
A68: ='Org structure'!E63 -> 0 | I68: 0
A69: ='Org structure'!E64 -> 0 | I69: 0
A70: ='Org structure'!E65 -> 0 | I70: 0
A71: ='Org structure'!E66 -> 0 | I71: =G71-H71 -> 0 | J71: =IF(I71=0,"",I71/H71) -> 
A72: ='Org structure'!E67 -> 0 | I72: 0
A73: ='Org structure'!A8 -> Vote 7 - Housing | C73: =SUM(C74:C83) -> 0 | D73: 0 | E73: 0 | F73: 0 | G73: 0 | H73: 0 | I73: 0 | K73: 0
A74: ='Org structure'!E69 -> 7.1 - [Name of sub-vote] | I74: 0
A75: ='Org structure'!E70 -> 0 | I75: 0
A76: ='Org structure'!E71 -> 0 | I76: 0
A77: ='Org structure'!E72 -> 0 | I77: 0
A78: ='Org structure'!E73 -> 0 | I78: 0
A79: ='Org structure'!E74 -> 0 | I79: 0
A80: ='Org structure'!E75 -> 0 | I80: 0
A81: ='Org structure'!E76 -> 0 | I81: 0
A82: ='Org structure'!E77 -> 0 | I82: 0
A83: ='Org structure'!E78 -> 0 | I83: 0
A84: ='Org structure'!A9 -> Vote 8 - Public Safety | C84: =SUM(C85:C94) -> 0 | D84: =SUM(D85:D94) -> 0 | E84: 0 | F84: 0 | G84: 0 | H84: 0 | I84: 0 | K84: 0
A85: ='Org structure'!E80 -> 8,1 - Fire Service | I85: 0
A86: ='Org structure'!E81 -> 8,2 - Civil Defence | I86: 0
A87: ='Org structure'!E82 -> 8,3 - Pound | I87: 0
A88: ='Org structure'!E83 -> 0 | I88: 0
A89: ='Org structure'!E84 -> 0 | I89: 0
A90: ='Org structure'!E85 -> 0 | I90: 0
A91: ='Org structure'!E86 -> 0 | I91: 0
A92: ='Org structure'!E87 -> 0 | I92: 0
A93: ='Org structure'!E88 -> 0 | I93: 0
A94: ='Org structure'!E89 -> 0 | I94: 0
A95: ='Org structure'!A10 -> Vote 9 - Sport and Recreation | C95: =SUM(C96:C105) -> 0 | D95: =SUM(D96:D105) -> 0 | E95: 0 | F95: 0 | G95: 0 | H95: 0 | I95: 0 | K95: 0
A96: ='Org structure'!E91 -> 9,1 - Nature Reserve | I96: 0
A97: ='Org structure'!E92 -> 9,2 - Parks and Gardens | I97: 0
A98: ='Org structure'!E93 -> 9,3 - Swimming Pool | I98: 0
A99: ='Org structure'!E94 -> 9,4 - Caravan Park | I99: 0
A100: ='Org structure'!E95 -> 0 | I100: 0
A101: ='Org structure'!E96 -> 0 | I101: 0
A102: ='Org structure'!E97 -> 0 | I102: 0
A103: ='Org structure'!E98 -> 0 | I103: 0
A104: ='Org structure'!E99 -> 0 | I104: 0
A105: ='Org structure'!E100 -> 0 | I105: 0
A106: ='Org structure'!A11 -> Vote 10 - Environmental Protection | C106: =SUM(C107:C116) -> 0 | D106: =SUM(D107:D116) -> 0 | E106: 0 | F106: 0 | G106: 0 | H106: 0 | I106: 0 | K106: 0
A107: ='Org structure'!E102 -> 10.1 - [Name of sub-vote] | I107: 0
A108: ='Org structure'!E103 -> 0 | I108: 0
A109: ='Org structure'!E104 -> 0 | I109: 0
A110: ='Org structure'!E105 -> 0 | I110: 0
A111: ='Org structure'!E106 -> 0 | I111: 0
A112: ='Org structure'!E107 -> 0 | I112: 0
A113: ='Org structure'!E108 -> 0 | I113: 0
A114: ='Org structure'!E109 -> 0 | I114: 0
A115: ='Org structure'!E110 -> 0 | I115: 0
A116: ='Org structure'!E111 -> 0 | I116: 0
A117: ='Org structure'!A12 -> Vote 11 - Solid Waste Management | C117: =SUM(C118:C127) -> 0 | D117: =SUM(D118:D127) -> 0 | E117: 0 | F117: 0 | G117: 0 | H117: 0 | I117: 0 | K117: 0
A118: ='Org structure'!E113 -> 11,1 - Refuse removal | I118: 0
A119: ='Org structure'!E114 -> 0 | I119: 0
A120: ='Org structure'!E115 -> 0 | I120: 0
A121: ='Org structure'!E116 -> 0 | I121: 0
A122: ='Org structure'!E117 -> 0 | I122: 0
A123: ='Org structure'!E118 -> 0 | I123: 0
A124: ='Org structure'!E119 -> 0 | I124: 0
A125: ='Org structure'!E120 -> 0 | I125: 0
A126: ='Org structure'!E121 -> 0 | I126: 0
A127: ='Org structure'!E122 -> 0 | I127: 0
A128: ='Org structure'!A13 -> Vote 12 - Waste Water Management | C128: =SUM(C129:C138) -> 0 | D128: =SUM(D129:D138) -> 0 | E128: 0 | F128: 0 | G128: 0 | H128: 0 | I128: 0 | K128: 0
A129: ='Org structure'!E124 -> 12,1 - Sewerage | I129: 0
A130: ='Org structure'!E125 -> 0 | I130: 0
A131: ='Org structure'!E126 -> 0 | I131: 0
A132: ='Org structure'!E127 -> 0 | I132: 0
A133: ='Org structure'!E128 -> 0 | I133: 0
A134: ='Org structure'!E129 -> 0 | I134: 0
A135: ='Org structure'!E130 -> 0 | I135: =G135-H135 -> 0 | J135: =IF(I135=0,"",I135/H135) -> 
A136: ='Org structure'!E131 -> 0 | I136: 0
A137: ='Org structure'!E132 -> 0 | I137: 0
A138: ='Org structure'!E133 -> 0 | I138: 0
A139: ='Org structure'!A14 -> Vote 13 - Road Transport | C139: =SUM(C140:C149) -> 0 | D139: =SUM(D140:D149) -> 0 | E139: 0 | F139: 0 | G139: 0 | H139: 0 | I139: 0 | K139: 0
A140: ='Org structure'!E135 -> 13,1 - Main Roads | I140: 0
A141: ='Org structure'!E136 -> 13,2 - Public Works | I141: 0
A142: ='Org structure'!E137 -> 13,3 - Streets and Pavements | I142: 0
A143: ='Org structure'!E138 -> 13,4 - Traffic and licencing | I143: 0
A144: ='Org structure'!E139 -> 0 | I144: 0
A145: ='Org structure'!E140 -> 0 | I145: 0
A146: ='Org structure'!E141 -> 0 | I146: 0
A147: ='Org structure'!E142 -> 0 | I147: 0
A148: ='Org structure'!E143 -> 0 | I148: 0
A149: ='Org structure'!E144 -> 0 | I149: 0
A150: ='Org structure'!A15 -> Vote 14 - Water | C150: =SUM(C151:C160) -> 0 | D150: =SUM(D151:D160) -> 0 | E150: 0 | F150: 0 | G150: 0 | H150: 0 | I150: 0 | K150: 0
A151: ='Org structure'!E146 -> 14,1 - Water Distribution | I151: 0
A152: ='Org structure'!E147 -> 14,2 - Water Storage | I152: 0
A153: ='Org structure'!E148 -> 0 | I153: 0
A154: ='Org structure'!E149 -> 0 | I154: 0
A155: ='Org structure'!E150 -> 0 | I155: 0
A156: ='Org structure'!E151 -> 0 | I156: 0
A157: ='Org structure'!E152 -> 0 | I157: 0
A158: ='Org structure'!E153 -> 0 | I158: 0
A159: ='Org structure'!E154 -> 0 | I159: 0
A160: ='Org structure'!E155 -> 0 | I160: 0
A161: ='Org structure'!A16 -> Vote 15 - Electricity | C161: =SUM(C162:C171) -> 0 | D161: =SUM(D162:D171) -> 0 | E161: 0 | F161: 0 | G161: 0 | H161: 0 | I161: 0 | K161: 0
A162: ='Org structure'!E157 -> 15,1 - Electricity Administration | I162: 0
A163: ='Org structure'!E158 -> 15,2 - Electricity Distribution | I163: 0
A164: ='Org structure'!E159 -> 15,3 - Electricity Generation | I164: 0
A165: ='Org structure'!E160 -> 0 | I165: 0
A166: ='Org structure'!E161 -> 0 | I166: 0
A167: ='Org structure'!E162 -> 0 | I167: 0
A168: ='Org structure'!E163 -> 0 | I168: 0
A169: ='Org structure'!E164 -> 0 | I169: 0
A170: ='Org structure'!E165 -> 0 | I170: 0
A171: ='Org structure'!E166 -> 0 | I171: 0 | L171: =SUM(L79:L82) -> 0 | M171: 0 | N171: 0 | O171: 0 | P171: 0 | Q171: 0 | R171: 0 | S171: 0 | T171: 0 | U171: 0 | V171: 0 | W171: 0
A172: Total multi-year capital expenditure | C172: =C7+C18+C29+C40+C51+C62+C73+C84+C95+C106+C117+C128+C139+C150+C161 -> 0 | D172: =D7+D18+D29+D40+D51+D62+D73+D84+D95+D106+D117+D128+D139+D150+D161 -> 0 | E172: 0 | F172: 0 | G172: 0 | H172: 0 | I172: 0 | K172: 0
I173: 0
A174: Capital expenditure - Municipal Vote
A175: Expenditue of single-year capital appropriation | B175: 1 | I175: 0
A176: ='Org structure'!A2 -> Vote 1 - Executive and Council | C176: =SUM(C177:C186) -> 0 | D176: 7972000 | E176: 0 | F176: 0 | G176: 0 | H176: 664333.3333 | I176: -664333.3333 | J176: -1 | K176: 7972000
A177: ='Org structure'!E3 -> 1,1 - Executive and Council | D177: 7972000 | F177: 0 | G177: 0 | H177: 664333.3333 | I177: -664333.3333 | J177: -1 | K177: 7972000
A178: ='Org structure'!E4 -> 0 | I178: 0
A179: ='Org structure'!E5 -> 0 | I179: 0
A180: ='Org structure'!E6 -> 0 | I180: 0
A181: ='Org structure'!E7 -> 0 | I181: 0
A182: ='Org structure'!E8 -> 0 | I182: 0
A183: ='Org structure'!E9 -> 0 | I183: 0
A184: ='Org structure'!E10 -> 0 | I184: 0
A185: ='Org structure'!E11 -> 0 | I185: 0
A186: ='Org structure'!E12 -> 0 | I186: 0
A187: ='Org structure'!A3 -> Vote 2 - Budget and Treasury | D187: =SUM(D188:D197) -> 3386600 | E187: =SUM(E188:E197) -> 0 | F187: 0 | G187: 0 | H187: 282216.6667 | I187: -282216.6667 | J187: -1 | K187: 3386600
A188: ='Org structure'!E14 -> 2,1 - Official Housing | I188: 0
A189: ='Org structure'!E15 -> 2,2 - Rates | I189: 0
A190: ='Org structure'!E16 -> 2,3 - Commonage | I190: 0
A191: ='Org structure'!E17 -> 2,4 - Municipal Buildings | I191: 0
A192: ='Org structure'!E18 -> 2,5 - Budget and Treasury Office | D192: 3386600 | F192: 0 | G192: 0 | H192: =3386600/12 -> 282216.6667 | I192: -282216.6667 | J192: -1 | K192: 3386600
A193: ='Org structure'!E19 -> 2,6 - Airport | I193: 0
A194: ='Org structure'!E20 -> 2.7 - Abattoir | I194: 0
A195: ='Org structure'!E21 -> 0 | I195: 0
A196: ='Org structure'!E22 -> 0 | I196: 0
A197: ='Org structure'!E23 -> 0 | I197: 0
A198: ='Org structure'!A4 -> Vote 3 - Corporate Services | C198: =SUM(C199:C208) -> 0 | D198: 0 | E198: 0 | F198: 0 | G198: 0 | H198: 0 | I198: 0 | K198: 0
A199: ='Org structure'!E25 -> 3,1 - Corporate Services | I199: 0
A200: ='Org structure'!E26 -> 0 | I200: =G200-H200 -> 0 | J200: =IF(I200=0,"",I200/H200) -> 
... 145 more rows

Sheet C6-FinPos
A1: =muni& " - "&S71E& " - "&date -> NC074 Kareeberg - Table C6 Monthly Budget Statement - Financial Position - M01 July
A2: =desc -> Description | B2: =head27 -> Ref | C2: =Head1 -> 2017/18 | D2: =Head2 -> Budget Year 2018/19
C3: =Head5 -> Audited Outcome | D3: =Head6 -> Original Budget | E3: =Head7 -> Adjusted Budget | F3: =Head39 -> YearTD actual | G3: =Head8 -> Full Year Forecast
A4: R thousands | B4: 1
A5: ASSETS
A6: Current assets
A7: Cash | D7: 1538120 | F7: 55207421.49 | G7: 1538120
A8: Call investment deposits | D8: 29733182 | F8: 0 | G8: 29733182
A9: Consumer debtors | D9: 2894188 | F9: 3592752.48 | G9: 2894188
A10: Other debtors | F10: 37908.96
A11: Current portion of long-term receivables | F11: 4381.26
A12: Inventory | F12: 527835.58
A13: Total current assets | C13: =SUM(C7:C12) -> 0 | D13: =SUM(D7:D12) -> 34165490 | E13: =SUM(E7:E12) -> 0 | F13: =SUM(F7:F12) -> 59370299.77 | G13: =SUM(G7:G12) -> 34165490
A15: Non current assets
A16: Long-term receivables | F16: 19785.2
A17: Investments
A18: Investment property | F18: 15425145.79
A19: Investments in Associate
A20: Property, plant and equipment | D20: 176230141 | F20: 132911720.7 | G20: 176230141
A21: Agricultural | F21: 0
A22: Biological assets | F22: 0
A23: Intangible assets | F23: 1534735.15
A24: Other non-current assets | F24: 1723638
A25: Total non current assets | C25: =SUM(C16:C24) -> 0 | D25: =SUM(D16:D24) -> 176230141 | E25: =SUM(E16:E24) -> 0 | F25: =SUM(F16:F24) -> 151615024.8 | G25: =SUM(G16:G24) -> 176230141
A26: TOTAL ASSETS | C26: =C13+C25 -> 0 | D26: =D13+D25 -> 210395631 | E26: =E13+E25 -> 0 | F26: =F13+F25 -> 210985324.6 | G26: =G13+G25 -> 210395631
A28: LIABILITIES
A29: Current liabilities
A30: Bank overdraft | F30: 0
A31: Borrowing | F31: 0
A32: Consumer deposits | F32: 325569
A33: Trade and other payables | D33: 7221964 | F33: =1793083.77+23370274 -> 25163357.77 | G33: 7221964
A34: Provisions | F34: 2257820.75
A35: Total current liabilities | C35: =SUM(C30:C34) -> 0 | D35: =SUM(D30:D34) -> 7221964 | E35: =SUM(E30:E34) -> 0 | F35: =SUM(F30:F34) -> 27746747.52 | G35: =SUM(G30:G34) -> 7221964
A37: Non current liabilities
A38: Borrowing | G38: 12586825
A39: Provisions | D39: 12586825 | F39: 33743044.83
A40: Total non current liabilities | C40: =SUM(C38:C39) -> 0 | D40: =SUM(D38:D39) -> 12586825 | E40: =SUM(E38:E39) -> 0 | F40: =SUM(F38:F39) -> 33743044.83 | G40: =SUM(G38:G39) -> 12586825
A41: TOTAL LIABILITIES | C41: =C35+C40 -> 0 | D41: =D35+D40 -> 19808789 | E41: =E35+E40 -> 0 | F41: =F35+F40 -> 61489792.35 | G41: =G35+G40 -> 19808789
A43: NET ASSETS | B43: 2 | C43: =C26-C41 -> 0 | D43: =D26-D41 -> 190586842 | E43: =E26-E41 -> 0 | F43: =F26-F41 -> 149495532.3 | G43: =G26-G41 -> 190586842
A45: COMMUNITY WEALTH/EQUITY
A46: Accumulated Surplus/(Deficit) | D46: 179201019 | F46: 138101946.1 | G46: 179201019
A47: Reserves | D47: 11385823 | F47: 11393586 | G47: 11385823
A48: TOTAL COMMUNITY WEALTH/EQUITY | B48: 2 | C48: =SUM(C46:C47) -> 0 | D48: =SUM(D46:D47) -> 190586842 | E48: =SUM(E46:E47) -> 0 | F48: =SUM(F46:F47) -> 149495532.1 | G48: =SUM(G46:G47) -> 190586842
A49: =head27a -> References
A50: 1. Material variances to be explained in Table SC1
A51: 2. Net assets must balance with Total Community Wealth/Equity
A54: check balance | C54: =C43-C48 -> 0 | D54: =D43-D48 -> 0 | E54: =E43-E48 -> 0 | F54: =F43-F48 -> 0.150000006 | G54: =G43-G48 -> 0

Sheet C7-CFlow
A1: =muni& " - "&S71F& " - "&date -> NC074 Kareeberg - Table C7 Monthly Budget Statement - Cash Flow - M01 July
A2: =desc -> Description | B2: =head27 -> Ref | C2: =Head1 -> 2017/18 | D2: =Head2 -> Budget Year 2018/19
C3: =Head5 -> Audited Outcome | D3: =Head6 -> Original Budget | E3: =Head7 -> Adjusted Budget | F3: =Head38 -> Monthly actual | G3: =Head39 -> YearTD actual | H3: =Head40 -> YearTD budget | I3: =Head41 -> YTD variance | J3: =Head41 -> YTD variance | K3: =Head8 -> Full Year Forecast
A4: R thousands | B4: 1 | J4: %
A5: CASH FLOW FROM OPERATING ACTIVITIES
A6: Receipts
A7: Property rates, penalties & collection charges | D7: 5472967 | F7: 240343 | G7: 240343 | H7: =5472967/12 -> 456080.5833 | I7: =G7-H7 -> -215737.5833 | J7: =IF(I7=0,"",I7/H7) -> -0.4730251434 | K7: 5472967
A8: Service charges | D8: 24880500 | F8: 1015517 | G8: 1015517 | H8: =24880500/12 -> 2073375 | I8: -1057858 | J8: =IF(I8=0,"",I8/H8) -> -0.5102106469 | K8: 24880500
A9: Other revenue | D9: 21217673 | F9: 316361 | G9: 316361 | H9: =21217673/12 -> 1768139.417 | I9: -1451778.417 | J9: =IF(I9=0,"",I9/H9) -> -0.8210768919 | K9: 21217673
A10: Government - operating | D10: 23532000 | F10: 5126011 | G10: 5126011 | H10: =23532000/12 -> 1961000 | I10: 3165011 | J10: =IF(I10=0,"",I10/H10) -> 1.613978072 | K10: 23532000
A11: Government - capital | D11: 60814000 | F11: 1278126.79 | G11: 1278126.79 | H11: =60814000/12 -> 5067833.333 | I11: -3789706.543 | J11: =IF(I11=0,"",I11/H11) -> -0.7477962068 | K11: 60814000
A12: Interest | D12: 1190880 | F12: 163419 | G12: 163419 | H12: =1190880/12 -> 99240 | I12: 64179 | J12: 0.6467049577 | K12: 1190880
A13: Dividends | I13: 0
A14: Payments
A15: Suppliers and employees | D15: -58538198 | F15: =-4548589+1360077 -> -3188512 | G15: -3188512 | H15: =-58538198/12 -> -4878183.167 | I15: =H15-G15 -> -1689671.167 | J15: 0.3463730469 | K15: -58538198
A16: Finance charges | D16: -1117803 | H16: =-1117803/12 -> -93150.25 | I16: =H16-G16 -> -93150.25 | J16: 1 | K16: -1117803
A17: Transfers and Grants | D17: -10666791 | F17: -1360077 | G17: -1360077 | H17: =-10666791/12 -> -888899.25 | I17: =H17-G17 -> 471177.75 | J17: -0.5300687901 | K17: -10666791
A18: NET CASH FROM/(USED) OPERATING ACTIVITIES | C18: =SUM(C7:C13)+SUM(C15:C17) -> 0 | D18: 66785228 | E18: 0 | F18: 3591188.79 | G18: 3591188.79 | H18: 5565435.667 | I18: =H18-G18 -> 1974246.877 | J18: 0.3547335725 | K18: =SUM(K7:K13)+SUM(K15:K17) -> 66785228
A20: CASH FLOWS FROM INVESTING ACTIVITIES
A21: Receipts
A22: Proceeds on disposal of PPE | I22: =G22-H22 -> 0 | J22: =IF(I22=0,"",I22/H22) ->  | K22: 0
A23: Decrease (Increase) in non-current debtors | D23: 8490 | H23: =8490/12 -> 707.5 | I23: =G23-H23 -> -707.5 | J23: -1 | K23: 8490
A24: Decrease (increase) other non-current receivables | I24: =G24-H24 -> 0
A25: Decrease (increase) in non-current investments | I25: =G25-H25 -> 0
A26: Payments
A27: Capital assets | D27: -60814420 | F27: -1278126.79 | G27: -1278126.79 | H27: =-60814420/12 -> -5067868.333 | I27: =H27-G27 -> -3789741.543 | J27: 0.7477979486 | K27: -60814420
A28: NET CASH FROM/(USED) INVESTING ACTIVITIES | C28: =SUM(C22:C25)+C27 -> 0 | D28: =SUM(D22:D25)+D27 -> -60805930 | E28: 0 | F28: -1278126.79 | G28: -1278126.79 | H28: -5067160.833 | I28: =H28-G28 -> -3789034.043 | J28: 0.747762735 | K28: =SUM(K22:K25)+K27 -> -60805930
A30: CASH FLOWS FROM FINANCING ACTIVITIES
A31: Receipts
A32: Short term loans | I32: =G32-H32 -> 0 | J32: =IF(I32=0,"",I32/H32) -> 
A33: Borrowing long term/refinancing | I33: =G33-H33 -> 0
A34: Increase (decrease) in consumer deposits | D34: 10000 | H34: =10000/12 -> 833.3333333 | I34: =G34-H34 -> -833.3333333 | J34: -1 | K34: 10000
A35: Payments
A36: Repayment of borrowing | I36: =H36-G36 -> 0
A37: NET CASH FROM/(USED) FINANCING ACTIVITIES | C37: =SUM(C32:C34)+C36 -> 0 | D37: 10000 | E37: 0 | F37: 0 | G37: 0 | H37: 833.3333333 | I37: =H37-G37 -> 833.3333333 | J37: 1 | K37: =SUM(K32:K34)+K36 -> 10000
A39: NET INCREASE/ (DECREASE) IN CASH HELD | C39: =C18+C28+C37 -> 0 | D39: 5989298 | E39: 0 | F39: 2313062 | G39: 2313062 | H39: 499108.1667 | K39: =K18+K28+K37 -> 5989298
A40: Cash/cash equivalents at beginning: | G40: =C41 -> 0 | H40: =IF(E40=0, D40, E40) -> 0 | K40: =G40 -> 0
A41: Cash/cash equivalents at month/year end: | C41: =C39+C40 -> 0 | D41: =D39+D40 -> 5989298 | E41: =E39+E40 -> 0 | G41: =G39+G40 -> 2313062 | H41: =H39+H40 -> 499108.1667 | K41: =K39+K40 -> 5989298
A42: References
A43: 1. Material variances to be explained in Table SC1

Sheet SC1
A1: =muni& " - "&S71G& " - "&date -> NC074 Kareeberg - Supporting Table SC1 Material variance explanations - M01 July
A2: =head27 -> Ref | B2: =desc -> Description
C3: Variance | D3: Reasons for material deviations | E3: Remedial or corrective steps/remarks
B4: R thousands
A5: 1 | B5: ='C4-FinPerf RE'!A5 -> Revenue By Source
B6: Service charges - water revenue | C6: 80344.74458 | D6: Higher usage than anticipated | E6: No steps needed
B7: Service charges - sanitation revenue | C7: 188037.83 | D7: Higher usage than anticipated | E7: No steps needed
B8: Service charges - refuse revenue | C8: 140235.6883 | D8: Higher usage than anticipated | E8: No steps needed
B9: Rental of facilities and equipment | C9: 91306.01333 | D9: This will taper off as the year progresses | E9: No steps needed
B10: Interest earned - external investments | C10: 53378.84667 | D10: Call deposits have not realised yet | E10: No steps needed
B11: Interest earned - outstanding debtors | C11: -194.45 | D11: Very small amount of revenue | E11: No steps needed
B12: Fines | C12: -900.1666667 | D12: No real pattern for fines can be determined, thus this revenue source is budgeted for conservatively. | E12: No steps needed
B13: Licences and permits | C13: 292.75 | D13: No real pattern of purchases of licences and permits can be determined, thus this revenue source is budgeted for conservatively. | E13: No steps needed
B14: Agency services | C14: 12235.37333 | D14: No real pattern for agency services can be determined, thus this revenue source is budgeted for conservatively. | E14: No steps needed
B15: Other revenue | C15: -1516154.663 | D15: VAT revenue not yet realised | E15: No steps needed
A17: 2 | B17: ='C4-FinPerf RE'!A25 -> Expenditure By Type
B18: Remuneration of councillors | C18: 4126.083333 | D18: All allowances not paid | E18: No steps needed
B19: Bulk purchases | C19: -176383.3333 | D19: Less usage for the month. This will normalise from next month | E19: No steps needed
B20: Other materials | C20: -76250.16667 | D20: Cash flow restictions cause underspending on repairs and maintenance | E20: No steps needed
B21: Contracted services | C21: -151545.5 | D21: Cash flow restictions cause underspending on repairs and maintenance | E21: No steps needed
B22: Transfers and grants | C22: -745472.59 | D22: This will normalise from next month | E22: No steps needed
B23: Other expenditure | C23: -340260.8333 | D23: Annual fees paid out | E23: No steps needed
A25: 3 | B25: =RIGHT('C5-Capex'!A40,19) -> Capital Expenditure
B27: Upgrade of Market Street - Carnarvon | D27: Project not started | E27: No steps needed
B28: Upgrade of Sering Street - Vanwyksvlei | D28: Project not started | E28: No steps needed
B29: Establishment of waterborne sewerage for Vosburg | D29: Project not started | E29: No steps needed
B30: Upgrade electricity network Riverside | D30: Project not started | E30: No steps needed
A33: 4 | B33: Financial Position
A38: 5 | B38: Cash Flow
A43: 6 | B43: Measureable performance
A48: 7 | B48: Municipal Entities
A54: =head27a -> References
A55: 1. Revenue for each source, vote and standard classification
A56: 2. Expenditure for each type, vote and standard classification
A57: 3. Capital expenditure for each vote and standard classification
A58: 4. Explain any material variances between the annual budget and the expected financial position based on current trends
A59: 5. Cash receipts by source and cash payments by type where not explained under revenue and expenditure
A60: 6. For Sept, Dec, Mar and Jun statements explain any material variances in achievement of measurable performance objectives

Sheet SC2
A1: =muni& " - "&S71H& " - "&Head57 -> NC074 Kareeberg - Supporting Table SC2 Monthly Budget Statement - performance indicators - M01 July
A2: Description of financial indicator | B2: Basis of calculation | C2: =head27 -> Ref | D2: =Head1 -> 2017/18 | E2: =Head2 -> Budget Year 2018/19
D3: =Head5 -> Audited Outcome | E3: =Head6 -> Original Budget | F3: =Head7 -> Adjusted Budget | G3: =Head39 -> YearTD actual | H3: =Head8 -> Full Year Forecast
A5: Borrowing Management
A7: Capital Charges to Operating Expenditure | B7: Interest & principal paid/Operating Expenditure | D7: =IF(ISERROR((D42-D43)/D45),0,((D42-D43)/D45)) -> 0 | E7: =IF(ISERROR((E42+E44)/E45),0,((E42+E44)/E45)) -> 0.09928013859 | F7: =IF(ISERROR((F42+F44)/F45),0,((F42+F44)/F45)) -> 0 | G7: =IF(ISERROR((G42+G44)/G45),0,((G42+G44)/G45)) -> 0 | H7: =IF(ISERROR((H42+H44)/H45),0,((H42+H44)/H45)) -> 0.05133015448
A8: Borrowed funding of 'own' capital expenditure | B8: Borrowings/Capital expenditure excl. transfers and grants | D8: =IF(ISERROR(D47/D46),0,(D47/D46)) -> 0 | E8: =IF(ISERROR(E47/E46),0,(E47/E46)) -> 0 | F8: =IF(ISERROR(F47/F46),0,(F47/F46)) -> 0 | G8: =IF(ISERROR(G47/G46),0,(G47/G46)) -> 0 | H8: =IF(ISERROR(H47/H46),0,(H47/H46)) -> 0
A9: Safety of Capital
A10: Debt to Equity | B10: Loans, Accounts Payable, Overdraft & Tax Provision/ Funds & Reserves | D10: =IF(ISERROR(D48/D49),0,(D48/D49)) -> 0 | E10: =IF(ISERROR(E48/E49),0,(E48/E49)) -> 0.03789329801 | F10: =IF(ISERROR(F48/F49),0,(F48/F49)) -> 0 | G10: =IF(ISERROR(G48/G49),0,(G48/G49)) -> 0.1683218048 | H10: =IF(ISERROR(H48/H49),0,(H48/H49)) -> 0.1039357638
A11: Gearing | B11: Long Term Borrowing/ Funds & Reserves | D11: =IF(ISERROR(D51/D50),0,(D51/D50)) -> 0 | E11: =IF(ISERROR(E51/E50),0,(E51/E50)) -> 0 | F11: =IF(ISERROR(F51/F50),0,(F51/F50)) -> 0 | G11: =IF(ISERROR(G51/G50),0,(G51/G50)) -> 0 | H11: =IF(ISERROR(H51/H50),0,(H51/H50)) -> 1.10548223
A12: Liquidity
A13: Current Ratio | B13: Current assets/current liabilities | C13: 1 | D13: =IF(ISERROR(D52/D53),0,(D52/D53)) -> 0 | E13: =IF(ISERROR(E52/E53),0,(E52/E53)) -> 4.730775451 | F13: =IF(ISERROR(F52/F53),0,(F52/F53)) -> 0 | G13: =IF(ISERROR(G52/G53),0,(G52/G53)) -> 2.139721051 | H13: =IF(ISERROR(H52/H53),0,(H52/H53)) -> 4.730775451
A14: Liquidity Ratio | B14: Monetary Assets/Current Liabilities | D14: =IF(ISERROR(D54/D53),0,(D54/D53)) -> 0 | E14: =IF(ISERROR(E54/E53),0,(E54/E53)) -> 4.3300274 | F14: =IF(ISERROR(F54/F53),0,(F54/F53)) -> 0 | G14: =IF(ISERROR(G54/G53),0,(G54/G53)) -> 1.989689835 | H14: =IF(ISERROR(H54/H53),0,(H54/H53)) -> 4.3300274
A15: Revenue Management
A16: Annual Debtors Collection Rate (Payment Level %) | B16: Last 12 Mths Receipts/ Last 12 Mths Billing
A17: Outstanding Debtors to Revenue | B17: Total Outstanding Debtors to Annual Revenue | D17: =IF(ISERROR(D59/D55),0,(D59/D55)) -> 0 | E17: =IF(ISERROR(E59/E55),0,(E59/E55)) -> 0.03916978321 | F17: =IF(ISERROR(F59/F55),0,(F59/F55)) -> 0 | G17: =IF(ISERROR(G59/G55),0,(G59/G55)) -> 0.3113435733 | H17: =IF(ISERROR(H59/H55),0,(H59/H55)) -> 0.04352198134
A18: Longstanding Debtors Recovered | B18: Debtors > 12 Mths Recovered/Total Debtors > 12 Months Old | D18: =IF(ISERROR(D64/D63),0,(D64/D63)) -> 0 | E18: =IF(ISERROR(E64/E63),0,(E64/E63)) -> 0 | F18: =IF(ISERROR(F64/F63),0,(F64/F63)) -> 0 | G18: =IF(ISERROR(G64/G63),0,(G64/G63)) -> 0 | H18: =IF(ISERROR(H64/H63),0,(H64/H63)) -> 0
A19: Creditors Management
A20: Creditors System Efficiency | B20: % of Creditors Paid Within Terms (within MFMA s 65(e)) | D20: 1 | E20: 1 | F20: 1 | G20: 1 | H20: 1
A21: Funding of Provisions
A22: Percentage Of Provisions Not Funded | B22: Unfunded Provisions/Total Provisions
A23: Other Indicators
A24: Electricity Distribution Losses | B24: % Volume (units purchased and generated less units sold)/units purchased and generated | C24: 2 | D24: 0.093 | E24: 0.1409 | F24: 0.1409 | G24: 0.1195119568 | H24: 0.1409
A25: Water Distribution Losses | B25: % Volume (units purchased and own source less units sold)/Total units purchased and own source | C25: 2
A26: Employee costs | B26: Employee costs/Total Revenue - capital revenue | D26: =IF(ISERROR(D40/D55),0,(D40/D55)) -> 0 | E26: =IF(ISERROR(E40/E55),0,(E40/E55)) -> 0.2842366251 | F26: =IF(ISERROR(F40/F55),0,(F40/F55)) -> 0 | G26: =IF(ISERROR(G40/G55),0,(G40/G55)) -> 0.1153237676 | H26: =IF(ISERROR(H40/H55),0,(H40/H55)) -> 0.2842366251
A27: Repairs & Maintenance | B27: R&M/Total Revenue - capital revenue | D27: =IF(ISERROR(D41/D55),0,(D41/D55)) -> 0 | E27: =IF(ISERROR(E41/E55),0,(E41/E55)) -> 0.04837898362 | F27: =IF(ISERROR(F41/F55),0,(F41/F55)) -> 0 | G27: =IF(ISERROR(G41/G55),0,(G41/G55)) -> 0.005970837203 | H27: =IF(ISERROR(H41/H55),0,(H41/H55)) -> 0.04837898362
A28: Interest & Depreciation | B28: I&D/Total Revenue - capital revenue | D28: =IF(ISERROR((D42+D44)/D55),0,((D42+D44)/D55)) -> 0 | E28: =IF(ISERROR((E42+E44)/E55),0,((E42+E44)/E55)) -> 0.09841476581 | F28: =IF(ISERROR((F42+F44)/F55),0,((F42+F44)/F55)) -> 0 | G28: =IF(ISERROR((G42+G44)/G55),0,((G42+G44)/G55)) -> 0 | H28: =IF(ISERROR((H42+H44)/H55),0,((H42+H44)/H55)) -> 0.05088273651
A29: IDP regulation financial viability indicators
A30: i. Debt coverage | B30: (Total Operating Revenue - Operating Grants)/Debt service payments due within financial year) | D30: 25.5854267 | E30: 56.04989801 | F30: 56.04989801 | G30: 0 | H30: 56.04989801
A31: ii. O/S Service Debtors to Revenue | B31: Total outstanding service debtors/annual revenue received for services | D31: 0.1679096863 | E31: 0.142102633 | F31: 0.142102633 | G31: 4.362517536 | H31: 0.142102633
A32: iii. Cost coverage | B32: (Available cash + Investments)/monthly fixed operational expenditure | D32: 5.18362891 | E32: 5.240287289 | F32: 5.240287289 | G32: 7.164772687 | H32: 5.240287289
A33: References
A34: 1. Consumer debtors > 12 months old are excluded from current assets.
A35: 2. Material variances to be explained.
A37: Calculations
A38: ='C6-FinPos'!A38 -> Borrowing | D38: ='C6-FinPos'!C38 -> 0 | E38: ='C6-FinPos'!D38 -> 0 | F38: ='C6-FinPos'!E38 -> 0 | G38: ='C6-FinPos'!F38 -> 0 | H38: 0
A39: Total Assets | D39: ='C6-FinPos'!C26 -> 0 | E39: ='C6-FinPos'!D26 -> 210395631 | F39: ='C6-FinPos'!E26 -> 0 | G39: ='C6-FinPos'!F26 -> 210985324.6 | H39: ='C6-FinPos'!G26 -> 210395631
A40: ='C4-FinPerf RE'!A26 -> Employee related costs | D40: ='C4-FinPerf RE'!C26 -> 0 | E40: ='C4-FinPerf RE'!D26 -> 21001756 | F40: ='C4-FinPerf RE'!E26 -> 0 | G40: ='C4-FinPerf RE'!G26 -> 1353773 | H40: ='C4-FinPerf RE'!K26 -> 18901580.4
A41: =A27 -> Repairs & Maintenance | D41: ='C4-FinPerf RE'!C32+'C4-FinPerf RE'!C33 -> 0 | E41: ='C4-FinPerf RE'!D32+'C4-FinPerf RE'!D33 -> 3574640 | F41: ='C4-FinPerf RE'!E32+'C4-FinPerf RE'!E33 -> 0 | G41: ='C4-FinPerf RE'!G32+'C4-FinPerf RE'!G33 -> 70091 | H41: ='C4-FinPerf RE'!K32+'C4-FinPerf RE'!K33 -> 3217176
A42: Interest (finance charges) | D42: ='C4-FinPerf RE'!C30 -> 0 | E42: ='C4-FinPerf RE'!D30 -> 1117803 | F42: ='C4-FinPerf RE'!E30 -> 0 | G42: ='C4-FinPerf RE'!G30 -> 0 | H42: ='C4-FinPerf RE'!K30 -> 1006022.7
A43: Principal paid | D43: =-'C7-CFlow'!C36 -> 0 | E43: =-'C7-CFlow'!D36 -> 0 | F43: =-'C7-CFlow'!E36 -> 0 | G43: =-'C7-CFlow'!G36 -> 0 | H43: =-'C7-CFlow'!K36 -> 0
A44: Depreciation | D44: ='C4-FinPerf RE'!C29 -> 0 | E44: ='C4-FinPerf RE'!D29 -> 6153895 | F44: ='C4-FinPerf RE'!E29 -> 0 | H44: ='C4-FinPerf RE'!K27 -> 2377651.5
A45: Operating expenditure | D45: ='C4-FinPerf RE'!C37 -> 0 | E45: ='C4-FinPerf RE'!D37 -> 73244237 | F45: ='C4-FinPerf RE'!E37 -> 0 | G45: ='C4-FinPerf RE'!G37 -> 4548590 | H45: ='C4-FinPerf RE'!K37 -> 65919813.3
A46: ='C5-Capex'!A40 -> Total Capital Expenditure | D46: ='C5-Capex'!C40 -> 0 | E46: ='C5-Capex'!D40 -> 64182600 | F46: ='C5-Capex'!E40 -> 0 | G46: ='C5-Capex'!G40 -> 1278126.79 | H46: ='C5-Capex'!K40 -> 64182600
A47: Borrowed funding for capital | D47: ='C5-Capex'!C72 -> 0 | E47: ='C5-Capex'!D72 -> 0 | F47: ='C5-Capex'!E72 -> 0 | G47: ='C5-Capex'!G72 -> 0 | H47: ='C5-Capex'!K72 -> 0
A48: Debt | D48: ='C6-FinPos'!C30+'C6-FinPos'!C31+'C6-FinPos'!C33+'C6-FinPos'!C38 -> 0 | E48: ='C6-FinPos'!D30+'C6-FinPos'!D31+'C6-FinPos'!D33+'C6-FinPos'!D38 -> 7221964 | F48: ='C6-FinPos'!E30+'C6-FinPos'!E31+'C6-FinPos'!E33+'C6-FinPos'!E38 -> 0 | G48: ='C6-FinPos'!F30+'C6-FinPos'!F31+'C6-FinPos'!F33+'C6-FinPos'!F38 -> 25163357.77 | H48: ='C6-FinPos'!G30+'C6-FinPos'!G31+'C6-FinPos'!G33+'C6-FinPos'!G38 -> 19808789
A49: Equity | D49: ='C6-FinPos'!C48 -> 0 | E49: ='C6-FinPos'!D48 -> 190586842 | F49: ='C6-FinPos'!E48 -> 0 | G49: ='C6-FinPos'!F48 -> 149495532.1 | H49: ='C6-FinPos'!G48 -> 190586842
A50: ='C6-FinPos'!A47 -> Reserves | D50: ='C6-FinPos'!C47 -> 0 | E50: ='C6-FinPos'!D47 -> 11385823 | F50: ='C6-FinPos'!E47 -> 0 | G50: ='C6-FinPos'!F47 -> 11393586 | H50: ='C6-FinPos'!G47 -> 11385823
A51: ='C6-FinPos'!A38 -> Borrowing | D51: ='C6-FinPos'!C38 -> 0 | E51: ='C6-FinPos'!D38 -> 0 | F51: ='C6-FinPos'!E38 -> 0 | G51: ='C6-FinPos'!F38 -> 0 | H51: ='C6-FinPos'!G38 -> 12586825
A52: ='C6-FinPos'!A6 -> Current assets | D52: ='C6-FinPos'!C13 -> 0 | E52: ='C6-FinPos'!D13 -> 34165490 | F52: ='C6-FinPos'!E13 -> 0 | G52: ='C6-FinPos'!F13 -> 59370299.77 | H52: ='C6-FinPos'!G13 -> 34165490
A53: ='C6-FinPos'!A29 -> Current liabilities | D53: ='C6-FinPos'!C35 -> 0 | E53: ='C6-FinPos'!D35 -> 7221964 | F53: ='C6-FinPos'!E35 -> 0 | G53: ='C6-FinPos'!F35 -> 27746747.52 | H53: ='C6-FinPos'!G35 -> 7221964
A54: Monetary assets | D54: ='C6-FinPos'!C7+'C6-FinPos'!C8 -> 0 | E54: ='C6-FinPos'!D7+'C6-FinPos'!D8 -> 31271302 | F54: ='C6-FinPos'!E7+'C6-FinPos'!E8 -> 0 | G54: ='C6-FinPos'!F7+'C6-FinPos'!F8 -> 55207421.49 | H54: ='C6-FinPos'!G7+'C6-FinPos'!G8 -> 31271302
A55: ='C4-FinPerf RE'!A23 -> Total Revenue (excluding capital transfers and contributions) | D55: ='C4-FinPerf RE'!C23 -> 0 | E55: ='C4-FinPerf RE'!D23 -> 73888282.31 | F55: ='C4-FinPerf RE'!E23 -> 0 | G55: ='C4-FinPerf RE'!G23 -> 11738889.81 | H55: ='C4-FinPerf RE'!K23 -> 66499454.08
A56: ='C4-FinPerf RE'!A20 -> Transfers recognised - operational | D56: ='C4-FinPerf RE'!C20 -> 0 | E56: ='C4-FinPerf RE'!D20 -> 26106000 | F56: ='C4-FinPerf RE'!E20 -> 0 | G56: ='C4-FinPerf RE'!G20 -> 9177000 | H56: ='C4-FinPerf RE'!K20 -> 23495400
A57: ='C4-FinPerf RE'!A40 -> Transfers recognised - capital | D57: ='C4-FinPerf RE'!C40 -> 0 | E57: ='C4-FinPerf RE'!D40 -> 60796000 | F57: ='C4-FinPerf RE'!E40 -> 0 | G57: ='C4-FinPerf RE'!G40 -> 1278126.79 | H57: ='C4-FinPerf RE'!K40 -> 65422420
A58: Debt service payments | D58: ='C7-CFlow'!C12+'C7-CFlow'!C36 -> 0 | E58: ='C7-CFlow'!D12+'C7-CFlow'!D36 -> 1190880 | F58: ='C7-CFlow'!E12+'C7-CFlow'!E36 -> 0 | G58: ='C7-CFlow'!G16+'C7-CFlow'!G36 -> 0 | H58: ='C7-CFlow'!K16+'C7-CFlow'!K36 -> -1117803
A59: Outstanding debtors (receivables) | D59: ='C6-FinPos'!C9+'C6-FinPos'!C10+'C6-FinPos'!C11+'C6-FinPos'!C16 -> 0 | E59: ='C6-FinPos'!D9+'C6-FinPos'!D10+'C6-FinPos'!D11+'C6-FinPos'!D16 -> 2894188 | F59: ='C6-FinPos'!E9+'C6-FinPos'!E10+'C6-FinPos'!E11+'C6-FinPos'!E16 -> 0 | G59: ='C6-FinPos'!F9+'C6-FinPos'!F10+'C6-FinPos'!F11+'C6-FinPos'!F16 -> 3654827.9 | H59: ='C6-FinPos'!G9+'C6-FinPos'!G10+'C6-FinPos'!G11+'C6-FinPos'!G16 -> 2894188
A60: Annual services revenue | D60: =SUM('C4-FinPerf RE'!C8:C12) -> 0 | E60: =SUM('C4-FinPerf RE'!D8:D12) -> 17820301.96 | F60: =SUM('C4-FinPerf RE'!E8:E12) -> 0 | G60: =SUM('C4-FinPerf RE'!G8:G12) -> 2053940.05
A61: Cash + investments | B61: Including LT investments | D61: ='C6-FinPos'!C7+'C6-FinPos'!C8+'C6-FinPos'!C17-'C6-FinPos'!C30 -> 0 | E61: ='C6-FinPos'!D7+'C6-FinPos'!D8+'C6-FinPos'!D17-'C6-FinPos'!D30 -> 31271302 | F61: ='C6-FinPos'!E7+'C6-FinPos'!E8+'C6-FinPos'!E17-'C6-FinPos'!E30 -> 0 | G61: ='C6-FinPos'!F7+'C6-FinPos'!F8+'C6-FinPos'!F17-'C6-FinPos'!F30 -> 55207421.49 | H61: ='C6-FinPos'!G7+'C6-FinPos'!G8+'C6-FinPos'!G17-'C6-FinPos'!G30 -> 31271302
A62: Fixed operational expend. (monthly) | D62: ='C4-FinPerf RE'!C37/12 -> 0 | E62: ='C4-FinPerf RE'!D37/12 -> 6103686.417 | F62: ='C4-FinPerf RE'!E37/12 -> 0 | G62: ='C4-FinPerf RE'!G37/1 -> 4548590 | H62: ='C4-FinPerf RE'!K37/12 -> 5493317.775
A63: Longstanding debtors outstanding | D63: ='C6-FinPos'!C16 -> 0 | E63: ='C6-FinPos'!D16 -> 0 | F63: ='C6-FinPos'!E16 -> 0 | G63: ='C6-FinPos'!F16 -> 19785.2 | H63: ='C6-FinPos'!G16 -> 0
A64: Longstanding debtors recovered | D64: ='C6-FinPos'!C11 -> 0 | E64: ='C6-FinPos'!D11 -> 0 | F64: ='C6-FinPos'!E11 -> 0 | G64: =F64-'C6-FinPos'!G11 -> 0 | H64: ='C6-FinPos'!H11 -> 0
A65: Attorney collections

Sheet SC3
A1: =muni& " - "&S71I& " - "&Head57 -> NC074 Kareeberg - Supporting Table SC3 Monthly Budget Statement - aged debtors - M01 July
A2: =desc -> Description | C2: =Head2 -> Budget Year 2018/19
A3: R thousands | B3: NT Code | C3: 0-30 Days | D3: 31-60 Days | E3: 61-90 Days | F3: 91-120 Days | G3: 121-150 Dys | H3: 151-180 Dys | I3: 181 Dys-1 Yr | J3: Over 1Yr | K3: Total | L3: Total over 90 days | M3: Actual Bad Debts Written Off against Debtors | N3: Impairment - Bad Debts i.t.o Council Policy
A4: Debtors Age Analysis By Income Source
A5: Trade and Other Receivables from Exchange Transactions - Water | B5: 1200 | C5: 712428.81 | D5: 142781.61 | E5: 34602.19 | F5: 34119.28 | G5: 19205.26 | H5: 18026.1 | I5: 15878.4 | J5: 181196.33 | K5: =SUM(C5:J5) -> 1158237.98 | L5: =SUM(F5:J5) -> 268425.37 | N5: 353598
A6: Trade and Other Receivables from Exchange Transactions - Electricity | B6: 1300 | C6: 1109078.63 | D6: 174626.53 | E6: 2600.3 | F6: 1265.78 | G6: 1349.36 | H6: 436.08 | I6: 335.76 | J6: 4752.16 | K6: =SUM(C6:J6) -> 1294444.6 | L6: =SUM(F6:J6) -> 8139.14 | N6: 168726
A7: Receivables from Non-exchange Transactions - Property Rates | B7: 1400 | C7: 23873.49 | D7: 1338181.27 | E7: 4633.97 | F7: 4312.45 | G7: 537631.22 | H7: 0 | I7: 0 | J7: 0 | K7: =SUM(C7:J7) -> 1908632.4 | L7: 541943.67 | N7: 1377834
A8: Receivables from Exchange Transactions - Waste Water Management | B8: 1500 | C8: 103598.32 | D8: 46687.21 | E8: 14633.7 | F8: 17717.28 | G8: 4308.98 | H8: 3926.95 | I8: 2810.16 | J8: 60145 | K8: 253827.6 | L8: 88908.37 | N8: 194152
A9: Receivables from Exchange Transactions - Waste Management | B9: 1600 | C9: 517783.18 | D9: 78344.63 | E9: 24354.1 | F9: 23541.1 | G9: 17644.67 | H9: 14499.82 | I9: 13678.76 | J9: 152185.96 | K9: 842032.22 | L9: =SUM(F9:J9) -> 221550.31 | N9: 123909
A10: Receivables from Exchange Transactions - Property Rental Debtors | B10: 1700 | C10: 0 | D10: 0 | E10: 0 | F10: 0 | G10: 0 | H10: 0 | I10: 0 | J10: 0 | K10: 0 | L10: =SUM(F10:J10) -> 0 | N10: 257331
A11: Interest on Arrear Debtor Accounts | B11: 1810 | C11: 0 | D11: 0 | E11: 0 | F11: 0 | G11: 0 | H11: 0 | I11: 0 | J11: 0 | K11: 0 | L11: 0 | N11: 481235
A12: Recoverable unauthorised, irregular, fruitless and wasteful expenditure | B12: 1820 | C12: 0 | D12: 0 | E12: 0 | F12: 0 | G12: 0 | H12: 0 | I12: 0 | J12: 0 | K12: 0 | L12: 0
A13: Other | B13: 1900 | C13: 68243.85 | D13: 1114.52 | E13: 834.63 | F13: 806.31 | G13: 1014.07 | H13: 949.85 | I13: 642.69 | J13: 4311.75 | K13: 77917.67 | L13: =SUM(F13:J13) -> 7724.67
A14: Total By Income Source | B14: 2000 | C14: =SUM(C5:C13) -> 2535006.28 | D14: 1781735.77 | E14: 81658.89 | F14: 81762.2 | G14: 581153.56 | H14: 37838.8 | I14: 33345.77 | J14: 402591.2 | K14: 5535092.47 | L14: =SUM(L5:L13) -> 1136691.53 | M14: 0 | N14: 2956785
A15: =Head1&" - totals only" -> 2017/18 - totals only | K15: =SUM(C15:J15) -> 0 | L15: =SUM(F15:J15) -> 0
A16: Debtors Age Analysis By Customer Group
A17: Organs of State | B17: 2200 | C17: 323731.95 | D17: 100295.61 | E17: 2039.28 | F17: 5349.89 | G17: 2921.39 | H17: 1194.69 | I17: 1172.92 | J17: 2446.59 | K17: =SUM(C17:J17) -> 439152.32 | L17: =SUM(F17:J17) -> 13085.48
A18: Commercial | B18: 2300 | C18: 315684.25 | D18: 593238.42 | E18: 4195.35 | F18: 3981.89 | G18: 416771.36 | H18: 567.98 | I18: 387.86 | J18: 7510.53 | K18: =SUM(C18:J18) -> 1342337.64 | L18: =SUM(F18:J18) -> 429219.62 | N18: 243553
A19: Households | B19: 2400 | C19: 1827346.23 | D19: 1087087.22 | E19: 74589.63 | F19: 71624.11 | G19: 160446.74 | H19: 35126.28 | I19: 31142.3 | J19: 388322.33 | K19: =SUM(C19:J19) -> 3675684.84 | L19: =SUM(F19:J19) -> 686661.76 | N19: 2713232
A20: Other | B20: 2500 | C20: 68243.85 | D20: 1114.52 | E20: 834.63 | F20: 806.31 | G20: 1014.07 | H20: 949.85 | I20: 642.69 | J20: 4311.75 | K20: =SUM(C20:J20) -> 77917.67 | L20: =SUM(F20:J20) -> 7724.67
A21: Total By Customer Group | B21: 2600 | C21: =SUM(C17:C20) -> 2535006.28 | D21: 1781735.77 | E21: 81658.89 | F21: 81762.2 | G21: 581153.56 | H21: 37838.8 | I21: 33345.77 | J21: =SUM(J17:J20) -> 402591.2 | K21: =SUM(K17:K20) -> 5535092.47 | L21: =SUM(L17:L20) -> 1136691.53 | M21: =SUM(M17:M20) -> 0 | N21: =SUM(N17:N20) -> 2956785
A22: Notes
A23: Material increases in value of debtors' categories compared to previous month to be explained
A24: Bad debts = amounts actually written off in the month
A25: Total by Income Source must reconcile with Total by Customer Group
C26: =C14-C21 -> 0 | D26: =D14-D21 -> 0 | E26: =E14-E21 -> 0 | F26: 0 | G26: 0 | H26: 0 | I26: 0 | J26: =J14-J21 -> 0 | K26: 0
C27: =IF(C26=0,"","MUST AGREE") ->  | D27: =IF(D26=0,"","MUST AGREE") -> 

Sheet SC4
A1: =muni& " - "&S71J& " - "&Head57 -> NC074 Kareeberg - Supporting Table SC4 Monthly Budget Statement - aged creditors - M01 July
A2: =desc -> Description | B2: NT Code | C2: =Head2 -> Budget Year 2018/19 | L2: Prior year totals for chart (same period)
C3: 0 - 30 Days | D3: 31 - 60 Days | E3: 61 - 90 Days | F3: 91 - 120 Days | G3: 121 - 150 Days | H3: 151 - 180 Days | I3: 181 Days - 1 Year | J3: Over 1 Year | K3: Total
A4: R thousands
A5: Creditors Age Analysis By Customer Type
A6: Bulk Electricity | B6: 0100 | K6: =SUM(C6:J6) -> 0
A7: Bulk Water | B7: 0200 | K7: =SUM(C7:J7) -> 0
A8: PAYE deductions | B8: 0300 | K8: 0
A9: VAT (output less input) | B9: 0400 | K9: 0
A10: Pensions / Retirement deductions | B10: 0500 | K10: 0
A11: Loan repayments | B11: 0600 | K11: 0
A12: Trade Creditors | B12: 0700 | K12: 0
A13: Auditor General | B13: 0800 | K13: 0
A14: Other | B14: 0900 | C14: 47145 | D14: 576481 | E14: 322447 | F14: 0 | G14: 0 | H14: 0 | I14: 0 | J14: 0 | K14: =SUM(C14:J14) -> 946073
A15: Total By Customer Type | B15: 1000 | C15: =SUM(C6:C14) -> 47145 | D15: =SUM(D6:D14) -> 576481 | E15: 322447 | F15: 0 | G15: 0 | H15: 0 | I15: 0 | J15: 0 | K15: =SUM(K6:K14) -> 946073 | L15: =SUM(L6:L14) -> 0
A16: Notes
A17: Material increases in value of creditors' categories compared to previous month to be explained

Sheet SC5
A1: =muni& " - "&S71K& " - "&Head57 -> NC074 Kareeberg - Supporting Table SC5 Monthly Budget Statement - investment portfolio - M01 July
A2: Investments by maturity Name of institution & investment ID | B2: Ref | C2: Period of Investment | D2: Type of Investment | E2: Expiry date of investment | F2: Accrued interest for the month | G2: Yield for the month 1 (%) | H2: Market value at beginning of the month | I2: Change in market value | J2: Market value at end of the month
A3: R thousands | C3: Yrs/Months
A4: Municipality
A5: Capital Replacement Reserve | C5: 32 days | D5: fixed deposit | H5: 11347811.51 | I5: =J5-H5 -> 0 | J5: 11347811.51
A6: Housing Fund | C6: 1 day | D6: call deposit | H6: 45545 | I6: =J6-H6 -> 230.14 | J6: 45775.14
A7: Job creation - De Bult | C7: 32 days | D7: notice deposit | H7: 46081 | I7: 232.84 | J7: 46313.84
A8: Land development | C8: 1 day | D8: call deposit | H8: 723445 | I8: -650735.77 | J8: 72709.23
A9: Land development | C9: 32 days | D9: notice deposit | I9: 0
A10: Land development | C10: 1 day | D10: call deposit | I10: 0
A11: Civil Defence | C11: 32 days | D11: notice deposit | H11: 20944 | I11: 0.43 | J11: 20944.43
A12: EPWP Vosburg dust | I12: 0
A13: CMIP Kwaggakolk(vat) | C13: 1 day | D13: call deposit | H13: 725 | I13: 3.85 | J13: 728.85
A14: MSIG | C14: 1 day | D14: call deposit | I14: 0
A15: MIG Sanitation interest/vat | C15: 1 day | D15: call deposit | H15: 184441 | I15: 0.11 | J15: 184441.11
A16: Electricity | C16: 1 day | D16: call deposit | H16: 41513 | I16: 209.13 | J16: 41722.13
A17: Water Services Plan | C17: 1 day | D17: call deposit | H17: 3879 | I17: 19.87 | J17: 3898.87
A18: CMIP-Saaipoort project 301 | C18: 1 day | D18: call deposit | H18: 4258 | I18: 21.07 | J18: 4279.07
A19: Library Development Projects | C19: 1 day | D19: call deposit | H19: 0 | I19: 0 | J19: 0
A20: EPWP - Paving/ Cleaning | C20: 1 day | D20: call deposit | H20: 28062 | I20: -28062
A21: Lotto Carnarvon | C21: 1 day | D21: call deposit | H21: 2153 | I21: 11.11 | J21: 2164.11
A22: Lotto Vosburg | C22: 1 day | D22: call deposit | H22: 38008 | I22: 193.32 | J22: 38201.32
A23: Finance Management Grant | C23: 1 day | D23: call deposit | H23: 0 | I23: 1970000 | J23: 1970000
A24: Transfer Fees Sub-Economic Housing | C24: 32 days | D24: notice deposit | H24: 160872 | I24: 193.69 | J24: 161065.69
A25: VB Cleaning Project | C25: 1 day | D25: call deposit | H25: 30344 | I25: 153.04 | J25: 30497.04
A26: VAT - retention | C26: 1 day | D26: call deposit | H26: 14079 | I26: 71.98 | J26: 14150.98
A27: PWPG | C27: 1 day | D27: call deposit | H27: 0 | I27: 250000 | J27: 250000
A28: MIG | C28: 1 day | D28: call deposit | H28: 0 | I28: 4000000 | J28: 4000000
A29: Youth development | C29: 1 day | D29: call deposit | H29: 93632 | I29: 0.07000000001 | J29: 93632.07
A30: Leave, PMS and Long Service Funds | C30: 1 day | D30: call deposit | H30: 2633250 | I30: -0.3500000001 | J30: 2633249.65
A31: Provision for Employee benefits | C31: 1 day | D31: call deposit | H31: 2000000 | I31: 0 | J31: 2000000
A32: Retension | C32: 1 day | D32: call deposit | H32: 1547241 | I32: -334426.77 | J32: 1212814.23
A33: Reserves | C33: 1 day | D33: call deposit | H33: 0 | I33: 0 | J33: 0
A34: General Account | C34: 1 day | D34: call deposit | H34: 6853109 | I34: 6999999.8 | J34: 13853108.8
A35: Electricity/WSIG/DWA | H35: 17597167 | I35: 1058358 | J35: =18627323+28202 -> 18655525
A36: Municipality sub-total | F36: =SUM(F5:F35) -> 0 | H36: =SUM(H5:H35) -> 43416559.51 | I36: =SUM(I5:I35) -> 13266473.56 | J36: =SUM(J5:J35) -> 56683033.07
A38: Entities
A46: Entities sub-total | F46: =SUM(F39:F45) -> 0 | H46: =SUM(H39:H45) -> 0 | I46: =SUM(I39:I45) -> 0 | J46: =SUM(J39:J45) -> 0
A48: TOTAL INVESTMENTS AND INTEREST | B48: 2 | F48: =F36+F46 -> 0 | H48: =H36+H46 -> 43416559.51 | I48: =I36+I46 -> 13266473.56 | J48: =J36+J46 -> 56683033.07
A49: =head27a -> References
A50: 1. Yield is calculated as the annualised equivalent
A51: 2. Total market value must reconcile with the total of investments on the 'Financial Position statement'

Sheet SC6
A1: =muni& " - "&S71L& " - "&Head57 -> NC074 Kareeberg - Supporting Table SC6 Monthly Budget Statement - transfers and grant receipts - M01 July
A2: =desc -> Description | B2: =head27 -> Ref | C2: =Head1 -> 2017/18 | D2: =Head2 -> Budget Year 2018/19
C3: =Head5 -> Audited Outcome | D3: =Head6 -> Original Budget | E3: =Head7 -> Adjusted Budget | F3: =Head38 -> Monthly actual | G3: =Head39 -> YearTD actual | H3: =Head40 -> YearTD budget | I3: =Head41 -> YTD variance | J3: =Head41 -> YTD variance | K3: =Head8 -> Full Year Forecast
A4: R thousands | J4: %
A5: RECEIPTS: | B5: 1,2
A7: Operating Transfers and Grants
A8: National Government: | C8: =SUM(C9:C19) -> 0 | D8: 24994000 | E8: 0 | F8: 11397000 | G8: 11397000 | H8: 6248500 | I8: 3671000 | J8: =IF(I8=0,"",I8/H8) -> 0.5875010002 | K8: =SUM(K9:K19) -> 24994000
A9: Local Government Equitable Share | D9: 22024000 | F9: 9177000 | G9: 9177000 | H9: =22024000/4 -> 5506000 | I9: =G9-H9 -> 3671000 | J9: 0.6667272067 | K9: 22024000
A10: Finance Management | D10: 1970000 | F10: 1970000 | G10: 1970000 | H10: =1970000/4 -> 492500 | K10: 1970000
A11: EPWP Incentive | D11: 1000000 | F11: 250000 | G11: 250000 | H11: =1000000/4 -> 250000 | K11: 1000000
B14: 3 | I14: 0
I15: 0
I16: 0
I17: 0
I18: 0
A19: Other transfers and grants [insert description] | I19: 0
A20: Provincial Government: | C20: =SUM(C21:C26) -> 0 | D20: 1112000 | E20: 0 | F20: 0 | G20: 0 | H20: 278000 | I20: -278000 | J20: -1 | K20: =SUM(K21:K26) -> 1112000
I21: =G21-H21 -> 0
I23: 0
B24: 4 | I24: 0
I25: 0
A26: Library Development Fund | D26: 1112000 | F26: 0 | G26: 0 | H26: =1112000/4 -> 278000 | I26: -278000 | J26: -1 | K26: 1112000
A27: District Municipality: | C27: =SUM(C28:C29) -> 0 | D27: 0 | E27: 0 | F27: 0 | G27: 0 | H27: 0 | I27: 0 | K27: =SUM(K28:K29) -> 0
A28: [insert description] | I28: 0
I29: 0
A30: Other grant providers: | C30: =SUM(C31:C37) -> 0 | D30: 0 | E30: 0 | F30: 0 | G30: 0 | H30: 0 | I30: 0 | K30: =SUM(K31:K37) -> 0
I31: 0
I37: 0
A38: Total Operating Transfers and Grants | B38: 5 | C38: =C8+C20+C27+C30 -> 0 | D38: 26106000 | E38: 0 | F38: 11397000 | G38: 11397000 | H38: 6526500 | I38: 3393000 | J38: 0.5198804872 | K38: =K8+K20+K27+K30 -> 26106000
A40: Capital Transfers and Grants
A41: =A8 -> National Government: | C41: =SUM(C42:C51) -> 0 | D41: 60796000 | E41: 0 | F41: 6500000 | G41: 19471167.43 | H41: 14365666.67 | I41: 4090333.333 | J41: =IF(I41=0,"",I41/H41) -> 0.2847297956 | K41: 60796000
A42: Municipal Infrastructure Grant (MIG) | D42: 7972000 | F42: 4000000 | G42: 4000000 | H42: =7972000/4 -> 1993000 | I42: =G42-H42 -> 2007000 | J42: 1.007024586 | K42: 7972000
A43: Regional Bulk Infrastructure | D43: 46824000 | F43: 0 | G43: 12971167.43 | H43: =46824000/4 -> 11706000 | K43: 46824000
D44: 1000000 | F44: 0 | G44: 0 | H44: =1000000/4 -> 250000 | K44: 1000000
I47: 0
I48: 0
I49: 0
I50: 0
A51: Water services infrastructure grant | D51: 5000000 | F51: 2500000 | G51: 2500000 | H51: =5000000/12 -> 416666.6667 | I51: 2083333.333 | J51: 5 | K51: 5000000
A52: =A20 -> Provincial Government: | C52: =SUM(C53:C58) -> 0 | D52: 0 | E52: 0 | F52: 0 | G52: 0 | H52: 0 | I52: =G52-H52 -> 0 | J52: =IF(I52=0,"",I52/H52) ->  | K52: =SUM(K53:K58) -> 0
I53: 0 | J53: =IF(I53=0,"",I53/H53) -> 
I58: 0
A59: =A27 -> District Municipality: | C59: =SUM(C60:C61) -> 0 | D59: 0 | E59: 0 | F59: 0 | G59: 0 | H59: 0 | I59: 0 | K59: =SUM(K60:K61) -> 0
A60: [insert description] | I60: 0
I61: 0
A62: =A30 -> Other grant providers: | C62: =SUM(C63:C68) -> 0 | D62: 3386600 | E62: 0 | F62: 0 | G62: 0 | H62: 322916.6667 | I62: -322916.6667 | J62: -1 | K62: =SUM(K63:K68) -> 5875000
A63: Internal funding | D63: 3386600 | F63: 0 | G63: 0 | H63: =3875000/12 -> 322916.6667 | I63: -322916.6667 | J63: =IF(I63=0,"",I63/H63) -> -1 | K63: 5875000
I68: 0
A69: Total Capital Transfers and Grants | B69: 5 | C69: =C41+C52+C59+C62 -> 0 | D69: =D41+D52+D59+D62 -> 64182600 | E69: 0 | F69: 6500000 | G69: 19471167.43 | H69: 14688583.33 | I69: 3767416.667 | J69: 0.2564860464 | K69: 66671000
A71: TOTAL RECEIPTS OF TRANSFERS & GRANTS | B71: 5 | C71: =C38+C69 -> 0 | D71: 90288600 | E71: 0 | F71: 17897000 | G71: 30868167.43 | H71: 21215083.33 | I71: 7160416.667 | J71: 0.3375153684 | K71: 92777000
A72: =head27a -> References
A73: 1. Each grant is listed by name as gazetted together with the name of the transferring department or municipality, donor or other organisation
A74: 2. Grant expenditure must be separately listed for each grant received
A75: 3. Replacement of RSC levies
A76: 4. Housing subsidies for housing where ownership transferred
A77: 5. Total recurrent/capital grants and subsidies must reconcile to the 'Financial Performance' Statement

Sheet SC7(1)
A1: =muni& " - "&S71M& " - "&Head57 -> NC074 Kareeberg - Supporting Table SC7(1) Monthly Budget Statement - transfers and grant expenditure - M01 July
A2: =desc -> Description | B2: =head27 -> Ref | C2: =Head1 -> 2017/18 | D2: =Head2 -> Budget Year 2018/19
C3: =Head5 -> Audited Outcome | D3: =Head6 -> Original Budget | E3: =Head7 -> Adjusted Budget | F3: =Head38 -> Monthly actual | G3: =Head39 -> YearTD actual | H3: =Head40 -> YearTD budget | I3: =Head41 -> YTD variance | J3: =Head41 -> YTD variance | K3: =Head8 -> Full Year Forecast
A4: R thousands | J4: %
A5: EXPENDITURE
A7: Operating expenditure of Transfers and Grants
A8: ='SC6'!A8 -> National Government: | C8: =SUM(C9:C15) -> 0 | D8: 24994000 | E8: 0 | F8: 1360077 | G8: 1360077 | H8: 2082833.333 | I8: -722756.3333 | J8: =IF(I8=0,"",I8/H8) -> -0.3470063215 | K8: =SUM(K9:K15) -> 24994000
A9: ='SC6'!A9 -> Local Government Equitable Share | D9: 22024000 | F9: 1360077 | G9: 1360077 | H9: 1835333.333 | I9: =G9-H9 -> -475256.3333 | J9: -0.2589482383 | K9: 22024000
A10: ='SC6'!A10 -> Finance Management | D10: 1970000 | F10: 0 | G10: 0 | H10: 164166.6667 | I10: -164166.6667 | J10: -1 | K10: 1970000
A11: ='SC6'!A11 -> EPWP Incentive | D11: 1000000 | F11: 0 | G11: 0 | H11: 83333.33333 | I11: -83333.33333 | J11: -1 | K11: 1000000
A12: ='SC6'!A12 -> 0 | I12: 0
A13: ='SC6'!A13 -> 0 | I13: 0
A14: ='SC6'!A14 -> 0 | I14: 0
A15: ='SC6'!A19 -> Other transfers and grants [insert description] | I15: 0
A16: ='SC6'!A20 -> Provincial Government: | C16: =SUM(C17:C22) -> 0 | D16: 1112000 | E16: 0 | F16: 0 | G16: 0 | H16: 92666.66667 | I16: -92666.66667 | J16: -1 | K16: =SUM(K17:K22) -> 1112000
A17: ='SC6'!A21 -> 0 | I17: =G17-H17 -> 0
A18: ='SC6'!A22 -> 0
A19: ='SC6'!A23 -> 0 | I19: 0
A20: ='SC6'!A24 -> 0 | I20: 0
A21: ='SC6'!A25 -> 0 | I21: 0
A22: ='SC6'!A26 -> Library Development Fund | D22: 1112000 | F22: 0 | G22: 0 | H22: 92666.66667 | I22: -92666.66667 | J22: -1 | K22: 1112000
A23: ='SC6'!A27 -> District Municipality: | C23: =SUM(C24:C25) -> 0 | D23: 0 | E23: =SUM(E24:E25) -> 0 | F23: 0 | G23: 0 | H23: 0 | I23: 0 | K23: =SUM(K24:K25) -> 0
I24: 0
A25: ='SC6'!A28 -> [insert description] | I25: 0
A26: ='SC6'!A30 -> Other grant providers: | C26: =SUM(C27:C28) -> 0 | D26: 0 | E26: 0 | F26: 0 | G26: 0 | H26: 0 | I26: 0 | K26: =SUM(K27:K28) -> 0
I27: 0
A28: ='SC6'!A31 -> 0 | I28: 0
A29: Total operating expenditure of Transfers and Grants: | C29: =C8+C16+C23+C26 -> 0 | D29: =D8+D16+D23+D26 -> 26106000 | E29: 0 | F29: 1360077 | G29: 1360077 | H29: 2175500 | I29: -815423 | J29: -0.3748209607 | K29: =K8+K16+K23+K26 -> 26106000
A31: Capital expenditure of Transfers and Grants
A32: ='SC6'!A41 -> National Government: | C32: =SUM(C33:C38) -> 0 | D32: 60796000 | E32: 0 | F32: 1278126.79 | G32: 1278126.79 | H32: 5066333.333 | I32: -3788206.543 | J32: =IF(I32=0,"",I32/H32) -> -0.7477215363 | K32: 60796000
A33: ='SC6'!A42 -> Municipal Infrastructure Grant (MIG) | D33: 7972000 | F33: 0 | G33: 0 | H33: 664333.3333 | I33: =G33-H33 -> -664333.3333 | J33: -1 | K33: 7972000
A34: ='SC6'!A43 -> Regional Bulk Infrastructure | D34: 46824000 | F34: 1278126.79 | G34: 1278126.79 | H34: 3902000 | I34: -2623873.21 | J34: -0.6724431599 | K34: 46824000
A35: ='SC6'!A44 -> 0 | D35: 1000000 | F35: 0 | G35: 0 | H35: 83333.33333 | I35: -83333.33333 | J35: -1 | K35: 1000000
A36: ='SC6'!A45 -> 0 | D36: 5000000 | F36: 0 | G36: 0 | H36: 416666.6667 | I36: -416666.6667 | J36: -1 | K36: 5000000
A37: ='SC6'!A46 -> 0 | I37: 0
A38: ='SC6'!A47 -> 0 | I38: 0
A39: ='SC6'!A52 -> Provincial Government: | C39: =SUM(C40:C41) -> 0 | D39: 0 | E39: 0 | F39: 0 | G39: 0 | H39: 0 | I39: =G39-H39 -> 0 | K39: =SUM(K40:K41) -> 0
A40: ='SC6'!A53 -> 0 | I40: 0
A41: ='SC6'!A54 -> 0 | I41: 0
A42: ='SC6'!A59 -> District Municipality: | C42: =SUM(C43:C44) -> 0 | D42: 0 | E42: 0 | F42: 0 | G42: 0 | H42: 0 | I42: 0 | K42: =SUM(K43:K44) -> 0
I43: 0
A44: ='SC6'!A61 -> 0 | I44: 0
A45: ='SC6'!A62 -> Other grant providers: | C45: =SUM(C46:C47) -> 0 | D45: 3386600 | E45: 0 | F45: 0 | G45: 0 | H45: 282216.6667 | I45: -282216.6667 | J45: -1 | K45: =SUM(K46:K47) -> 5875000
D46: 3386600 | F46: 0 | G46: 0 | H46: =3386600/12 -> 282216.6667 | I46: -282216.6667 | J46: -1 | K46: 5875000
A47: ='SC6'!A68 -> 0 | I47: 0
A48: Total capital expenditure of Transfers and Grants | C48: =C32+C39+C42+C45 -> 0 | D48: =D32+D39+D42+D45 -> 64182600 | E48: 0 | F48: 1278126.79 | G48: 1278126.79 | H48: 5348550 | I48: -4070423.21 | J48: =IF(I48=0,"",I48/H48) -> -0.7610330295 | K48: 66671000
A50: TOTAL EXPENDITURE OF TRANSFERS AND GRANTS | C50: =C29+C48 -> 0 | D50: 90288600 | E50: 0 | F50: 2638203.79 | G50: 2638203.79 | H50: 7524050 | I50: -4885846.21 | J50: =IF(I50=0,"",I50/H50) -> -0.6493638679 | K50: 92777000
A51: =head27a -> References

Sheet SC7(2)
A1: =muni& " - "&S71T& " - "&Head57 -> NC074 Kareeberg - Supporting Table SC7(2) Monthly Budget Statement - Expenditure against approved rollovers - M01 July
A2: =desc -> Description | B2: =head27 -> Ref | C2: =Head2 -> Budget Year 2018/19
C3: ="Approved Rollover " &Head1 -> Approved Rollover 2017/18 | D3: =Head38 -> Monthly actual | E3: =Head39 -> YearTD actual | F3: =Head41 -> YTD variance | G3: =Head41 -> YTD variance
A4: R thousands | G4: %
A5: EXPENDITURE
A7: Operating expenditure of Approved Roll-overs
A8: ='SC6'!A8 -> National Government: | C8: =SUM(C9:C15) -> 0 | D8: =SUM(D9:D15) -> 0 | E8: =SUM(E9:E15) -> 0 | F8: =SUM(F9:F15) -> 0 | G8: =IF(F8=0,"",F8/C8) -> 
A9: ='SC6'!A9 -> Local Government Equitable Share | F9: =E9-C9 -> 0 | G9: =IF(F9=0,"",F9/C9) -> 
A10: ='SC6'!A10 -> Finance Management | F10: =C10-E10 -> 0
A11: ='SC6'!A11 -> EPWP Incentive | F11: 0
A12: ='SC6'!A12 -> 0 | F12: 0
A13: ='SC6'!A13 -> 0 | F13: 0
A14: ='SC6'!A14 -> 0 | F14: 0
A15: ='SC6'!A19 -> Other transfers and grants [insert description] | F15: 0
A16: ='SC6'!A20 -> Provincial Government: | C16: =SUM(C17:C21) -> 0 | D16: =SUM(D17:D21) -> 0 | E16: =SUM(E17:E21) -> 0 | F16: =SUM(F17:F21) -> 0
A17: ='SC6'!A21 -> 0 | F17: =C17-E17 -> 0
A18: ='SC6'!A23 -> 0 | F18: =C18-E18 -> 0
A19: ='SC6'!A24 -> 0 | F19: =C19-E19 -> 0
A20: ='SC6'!A25 -> 0 | F20: =C20-E20 -> 0
A21: ='SC6'!A26 -> Library Development Fund | F21: =C21-E21 -> 0
A22: ='SC6'!A27 -> District Municipality: | C22: =SUM(C23:C24) -> 0 | D22: =SUM(D23:D24) -> 0 | E22: =SUM(E23:E24) -> 0 | F22: =SUM(F23:F24) -> 0
F23: =C23-E23 -> 0
A24: ='SC6'!A28 -> [insert description] | F24: =C24-E24 -> 0
A25: ='SC6'!A30 -> Other grant providers: | C25: =SUM(C26:C27) -> 0 | D25: =SUM(D26:D27) -> 0 | E25: =SUM(E26:E27) -> 0 | F25: =SUM(F26:F27) -> 0
F26: =C26-E26 -> 0
A27: ='SC6'!A31 -> 0 | F27: =C27-E27 -> 0
A28: Total operating expenditure of Approved Roll-overs | C28: =C8+C16+C22+C25 -> 0 | D28: =D8+D16+D22+D25 -> 0 | E28: =E8+E16+E22+E25 -> 0 | F28: =F8+F16+F22+F25 -> 0
A30: Capital expenditure of Approved Roll-overs
A31: ='SC6'!A41 -> National Government: | C31: =SUM(C32:C37) -> 0 | D31: =SUM(D32:D37) -> 0 | E31: =SUM(E32:E37) -> 0 | F31: =SUM(F32:F37) -> 0
A32: ='SC6'!A42 -> Municipal Infrastructure Grant (MIG) | F32: =C32-E32 -> 0
A33: ='SC6'!A47 -> 0 | F33: 0
A34: ='SC6'!A48 -> 0 | F34: 0
A35: ='SC6'!A49 -> 0 | F35: 0
A36: ='SC6'!A50 -> 0 | F36: 0
A37: ='SC6'!A51 -> Water services infrastructure grant | F37: 0
A38: ='SC6'!A52 -> Provincial Government: | C38: =SUM(C39:C40) -> 0 | D38: =SUM(D39:D40) -> 0 | E38: =SUM(E39:E40) -> 0 | F38: =SUM(F39:F40) -> 0
F39: =C39-E39 -> 0
A40: ='SC6'!A58 -> 0 | F40: =C40-E40 -> 0
A41: ='SC6'!A59 -> District Municipality: | C41: =SUM(C42:C43) -> 0 | D41: =SUM(D42:D43) -> 0 | E41: =SUM(E42:E43) -> 0 | F41: =SUM(F42:F43) -> 0
F42: =C42-E42 -> 0
A43: ='SC6'!A61 -> 0 | F43: =C43-E43 -> 0
A44: ='SC6'!A62 -> Other grant providers: | C44: =SUM(C45:C46) -> 0 | D44: =SUM(D45:D46) -> 0 | E44: =SUM(E45:E46) -> 0 | F44: =SUM(F45:F46) -> 0
F45: =C45-E45 -> 0
A46: ='SC6'!A68 -> 0 | F46: =C46-E46 -> 0
A47: Total capital expenditure of Approved Roll-overs | C47: =C31+C38+C41+C44 -> 0 | D47: =D31+D38+D41+D44 -> 0 | E47: =E31+E38+E41+E44 -> 0 | F47: =F31+F38+F41+F44 -> 0
A49: TOTAL EXPENDITURE OF APPROVED ROLL-OVERS | C49: =C28+C47 -> 0 | D49: =D28+D47 -> 0 | E49: =E28+E47 -> 0 | F49: =F28+F47 -> 0
A50: =head27a -> References

Sheet SC8
A1: =muni& " - "&S71N& " - "&Head57 -> NC074 Kareeberg - Supporting Table SC8 Monthly Budget Statement - councillor and staff benefits - M01 July
A2: Summary of Employee and Councillor remuneration | B2: =head27 -> Ref | C2: =Head1 -> 2017/18 | D2: =Head2 -> Budget Year 2018/19
C3: =Head5 -> Audited Outcome | D3: =Head6 -> Original Budget | E3: =Head7 -> Adjusted Budget | F3: =Head38 -> Monthly actual | G3: =Head39 -> YearTD actual | H3: =Head40 -> YearTD budget | I3: =Head41 -> YTD variance | J3: =Head41 -> YTD variance | K3: =Head8 -> Full Year Forecast
A4: R thousands | J4: %
B5: 1 | C5: A | D5: B | E5: C | K5: D
A6: Councillors (Political Office Bearers plus Other)
A7: Basic Salaries and Wages | D7: 1764478 | F7: 180027.4 | G7: 180027.4 | H7: 1764478 | I7: =G7-H7 -> -1584450.6 | J7: =IF(I7=0,"",I7/H7) -> -0.897971298 | K7: 1764478
A8: Pension and UIF Contributions | I8: 0
A9: Medical Aid Contributions | I9: 0
A10: Motor Vehicle Allowance | D10: 563197 | H10: 563197 | I10: =G10-H10 -> -563197 | J10: =IF(I10=0,"",I10/H10) -> -1 | K10: 563197
A11: Cellphone Allowance | D11: 314160 | F11: 44251.67 | G11: 44251.67 | H11: 314160 | I11: =G11-H11 -> -269908.33 | J11: =IF(I11=0,"",I11/H11) -> -0.859142889 | K11: 314160
A12: Housing Allowances | I12: =G12-H12 -> 0 | J12: =IF(I12=0,"",I12/H12) -> 
A13: Other benefits and allowances | I13: 0
A14: Sub Total - Councillors | C14: =SUM(C7:C13) -> 0 | D14: 2641835 | E14: 0 | F14: 224279.07 | G14: 224279.07 | H14: 2641835 | I14: -2417555.93 | J14: -0.9151048154 | K14: 2641835
A15: % increase | B15: 4 | D15: =IF(D14=0,"",(D14/C14)-1) ->  | E15: =IF(E14=0,"",(E14/C14)-1) ->  | K15: =IF(K14=0,"",(K14/C14)-1) -> 
A17: Senior Managers of the Municipality | B17: 3
A18: Basic Salaries and Wages | D18: 3250234 | F18: 293597.14 | G18: 293597.14 | H18: =D18/12 -> 270852.8333 | I18: =G18-H18 -> 22744.30667 | J18: =IF(I18=0,"",I18/H18) -> 0.08397293241 | K18: 3250234
A19: Pension and UIF Contributions | D19: 459743 | F19: =326527-F18-7500 -> 25429.86 | G19: 32929.86 | H19: =D19/12 -> 38311.91667 | I19: -5382.056667 | J19: -0.1404799638 | K19: 459743
A20: Medical Aid Contributions | D20: 151396 | F20: 7500 | G20: 7500 | H20: =D20/12 -> 12616.33333 | I20: -5116.333333 | J20: -0.4055325108 | K20: 151396
A21: Overtime | I21: 0
A22: Performance Bonus | D22: 202543 | F22: 0 | G22: 0 | H22: =D22/12 -> 16878.58333 | I22: =G22-H22 -> -16878.58333 | J22: =IF(I22=0,"",I22/H22) -> -1 | K22: 202543
A23: Motor Vehicle Allowance | D23: 501525 | F23: 0 | G23: 0 | H23: =D23/12 -> 41793.75 | I23: =G23-H23 -> -41793.75 | J23: =IF(I23=0,"",I23/H23) -> -1 | K23: 501525
A24: Cellphone Allowance | I24: =G24-H24 -> 0 | J24: =IF(I24=0,"",I24/H24) -> 
A25: Housing Allowances | I25: =G25-H25 -> 0 | J25: =IF(I25=0,"",I25/H25) -> 
A26: Other benefits and allowances | D26: 39168 | H26: =D26/12 -> 3264 | I26: -3264 | J26: -1 | K26: 39168
A27: Payments in lieu of leave | I27: 0
A28: Long service awards | I28: 0
A29: Post-retirement benefit obligations | B29: 2 | I29: 0
A30: Sub Total - Senior Managers of Municipality | C30: =SUM(C18:C29) -> 0 | D30: 4604609 | E30: 0 | F30: =SUM(F18:F29) -> 326527 | G30: =SUM(G18:G29) -> 334027 | H30: =SUM(H18:H29) -> 383717.4167 | I30: -49690.41667 | J30: =IF(I30=0,"",I30/H30) -> -0.1294974231 | K30: 4604609
A31: % increase | B31: 4 | D31: =IF(D30=0,"",(D30/C30)-1) ->  | E31: =IF(E30=0,"",(E30/C30)-1) ->  | K31: =IF(K30=0,"",(K30/C30)-1) -> 
A33: Other Municipal Staff
A34: Basic Salaries and Wages | D34: 12198167 | F34: 862162 | G34: 862162 | H34: =D34/12 -> 1016513.917 | I34: =G34-H34 -> -154351.9167 | J34: =IF(I34=0,"",I34/H34) -> -0.1518443714 | K34: 12198167
A35: Pension and UIF Contributions | D35: 1707767 | F35: 36120 | G35: 36120 | H35: =D35/12 -> 142313.9167 | I35: -106193.9167 | J35: -0.7461948849 | K35: 1707767
A36: Medical Aid Contributions | D36: 493000 | F36: =55108-32506 -> 22602 | G36: 22602 | H36: =D36/12 -> 41083.33333 | I36: -18481.33333 | J36: -0.4498498986 | K36: 493000
A37: Overtime | D37: 300000 | F37: 2671 | G37: 2671 | H37: =D37/12 -> 25000 | I37: -22329 | J37: -0.89316 | K37: 300000
A38: Performance Bonus | I38: 0
A39: Motor Vehicle Allowance | D39: 83466 | H39: =D39/12 -> 6955.5 | I39: =G39-H39 -> -6955.5 | J39: =IF(I39=0,"",I39/H39) -> -1 | K39: 83466
A40: Cellphone Allowance | I40: =G40-H40 -> 0 | J40: =IF(I40=0,"",I40/H40) -> 
A41: Housing Allowances | D41: 142800 | H41: =D41/12 -> 11900 | I41: =G41-H41 -> -11900 | J41: =IF(I41=0,"",I41/H41) -> -1 | K41: 142800
A42: Other benefits and allowances | D42: 680809 | F42: =165083-F37-F36-F35-33000 -> 70690 | G42: 70690 | H42: =D42/12 -> 56734.08333 | I42: 13955.91667 | J42: 0.2459882287 | K42: 680809
A43: Payments in lieu of leave | I43: 0
A44: Long service awards | I44: 0
A45: Post-retirement benefit obligations | B45: 2 | D45: 413692.68 | F45: 32506 | G45: 32506 | H45: =D45/12 -> 34474.39 | I45: -1968.39 | J45: -0.05709716691 | K45: 791138
A46: Sub Total - Other Municipal Staff | C46: =SUM(C34:C45) -> 0 | D46: 16019701.68 | E46: 0 | F46: =SUM(F34:F45) -> 1026751 | G46: =SUM(G34:G45) -> 1026751 | H46: =SUM(H34:H45) -> 1334975.14 | I46: -308224.14 | J46: =IF(I46=0,"",I46/H46) -> -0.2308838051 | K46: 16397147
A47: % increase | B47: 4 | D47: =IF(D46=0,"",(D46/C46)-1) ->  | E47: =IF(E46=0,"",(E46/C46)-1) ->  | K47: =IF(K46=0,"",(K46/C46)-1) -> 
A49: Total Parent Municipality | C49: =C14+C30+C46 -> 0 | D49: =D14+D30+D46 -> 23266145.68 | E49: 0 | F49: 1577557.07 | G49: 1585057.07 | H49: 4360527.557 | I49: =G49-H49 -> -2775470.487 | J49: =IF(I49=0,"",I49/H49) -> -0.6364987838 | K49: 23643591
D50: =IF(D49=0,"",(D49/C49)-1) ->  | E50: =IF(E49=0,"",(E49/C49)-1) ->  | K50: =IF(K49=0,"",(K49/C49)-1) -> 
A51: Unpaid salary, allowances & benefits in arrears:
A53: Board Members of Entities
A54: Basic Salaries and Wages | I54: =G54-H54 -> 0 | J54: =IF(I54=0,"",I54/H54) -> 
A55: Pension and UIF Contributions | I55: 0
A56: Medical Aid Contributions | I56: 0
A57: Overtime | I57: =G57-H57 -> 0 | J57: =IF(I57=0,"",I57/H57) -> 
A58: Performance Bonus | I58: =G58-H58 -> 0 | J58: =IF(I58=0,"",I58/H58) -> 
A59: Motor Vehicle Allowance | I59: =G59-H59 -> 0 | J59: =IF(I59=0,"",I59/H59) -> 
A60: Cellphone Allowance | I60: =G60-H60 -> 0 | J60: =IF(I60=0,"",I60/H60) -> 
A61: Housing Allowances | I61: =G61-H61 -> 0 | J61: =IF(I61=0,"",I61/H61) -> 
A62: Other benefits and allowances | I62: 0
A63: Board Fees | I63: =G63-H63 -> 0 | J63: =IF(I63=0,"",I63/H63) -> 
A64: Payments in lieu of leave | I64: 0
A65: Long service awards | I65: 0
A66: Post-retirement benefit obligations | I66: 0
A67: Sub Total - Board Members of Entities | B67: 2 | C67: =SUM(C54:C66) -> 0 | D67: 0 | E67: 0 | F67: =SUM(F54:F66) -> 0 | G67: =SUM(G54:G66) -> 0 | H67: =SUM(H54:H66) -> 0 | I67: 0 | J67: =IF(I67=0,"",I67/H67) ->  | K67: 0
A68: % increase | B68: 4 | D68: =IF(D67=0,"",(D67/C67)-1) ->  | E68: =IF(E67=0,"",(E67/C67)-1) ->  | K68: =IF(K67=0,"",(K67/C67)-1) -> 
A70: Senior Managers of Entities
A71: Basic Salaries and Wages | I71: =G71-H71 -> 0 | J71: =IF(I71=0,"",I71/H71) -> 
A72: Pension and UIF Contributions | I72: 0
A73: Medical Aid Contributions | I73: 0
A74: Overtime | I74: 0
A75: Performance Bonus | I75: =G75-H75 -> 0 | J75: =IF(I75=0,"",I75/H75) -> 
A76: Motor Vehicle Allowance | I76: =G76-H76 -> 0 | J76: =IF(I76=0,"",I76/H76) -> 
A77: Cellphone Allowance | I77: =G77-H77 -> 0 | J77: =IF(I77=0,"",I77/H77) -> 
A78: Housing Allowances | I78: =G78-H78 -> 0 | J78: =IF(I78=0,"",I78/H78) -> 
A79: Other benefits and allowances | I79: 0
A80: Payments in lieu of leave | I80: 0
A81: Long service awards | I81: 0
A82: Post-retirement benefit obligations | B82: 2 | I82: 0
A83: Sub Total - Senior Managers of Entities | C83: =SUM(C71:C82) -> 0 | D83: 0 | E83: 0 | F83: =SUM(F71:F82) -> 0 | G83: =SUM(G71:G82) -> 0 | H83: =SUM(H71:H82) -> 0 | I83: 0 | J83: =IF(I83=0,"",I83/H83) ->  | K83: 0
A84: % increase | B84: 4 | D84: =IF(D83=0,"",(D83/C83)-1) ->  | E84: =IF(E83=0,"",(E83/C83)-1) ->  | K84: =IF(K83=0,"",(K83/C83)-1) -> 
A86: Other Staff of Entities
A87: Basic Salaries and Wages | I87: =G87-H87 -> 0 | J87: =IF(I87=0,"",I87/H87) -> 
A88: Pension and UIF Contributions | I88: 0
A89: Medical Aid Contributions | I89: =G89-H89 -> 0 | J89: =IF(I89=0,"",I89/H89) -> 
A90: Overtime | I90: =G90-H90 -> 0 | J90: =IF(I90=0,"",I90/H90) -> 
A91: Performance Bonus | I91: =G91-H91 -> 0 | J91: =IF(I91=0,"",I91/H91) -> 
A92: Motor Vehicle Allowance | I92: =G92-H92 -> 0 | J92: =IF(I92=0,"",I92/H92) -> 
A93: Cellphone Allowance | I93: 0
A94: Housing Allowances | I94: 0
A95: Other benefits and allowances | I95: 0
A96: Payments in lieu of leave | I96: 0
A97: Long service awards | I97: 0
A98: Post-retirement benefit obligations | I98: 0
A99: Sub Total - Other Staff of Entities | C99: =SUM(C87:C98) -> 0 | D99: 0 | E99: 0 | F99: 0 | G99: 0 | H99: 0 | I99: 0 | J99: =IF(I99=0,"",I99/H99) ->  | K99: =SUM(K87:K98) -> 0
A100: % increase | B100: 4 | D100: =IF(D99=0,"",(D99/C99)-1) ->  | E100: =IF(E99=0,"",(E99/C99)-1) ->  | K100: =IF(K99=0,"",(K99/C99)-1) -> 
A102: Total Municipal Entities | C102: =C67+C83+C99 -> 0 | D102: 0 | E102: 0 | F102: 0 | G102: 0 | H102: 0 | I102: =G102-H102 -> 0 | J102: =IF(I102=0,"",I102/H102) ->  | K102: =K67+K83+K99 -> 0
A104: TOTAL SALARY, ALLOWANCES & BENEFITS | C104: =C49+C102 -> 0 | D104: 23266145.68 | E104: 0 | F104: 1577557.07 | G104: 1585057.07 | H104: 4360527.557 | I104: =G104-H104 -> -2775470.487 | J104: =IF(I104=0,"",I104/H104) -> -0.6364987838 | K104: =K49+K102 -> 23643591
A105: % increase | B105: 4 | D105: =IF(D104=0,"",(D104/C104)-1) ->  | E105: =IF(E104=0,"",(E104/C104)-1) ->  | K105: =IF(K104=0,"",(K104/C104)-1) -> 
A106: TOTAL MANAGERS AND STAFF | C106: =C30+C46+C83+C99 -> 0 | D106: 20624310.68 | E106: 0 | F106: 1353278 | G106: 1360778 | H106: 1718692.557 | I106: -357914.5567 | J106: =IF(I106=0,"",I106/H106) -> -0.2082481566 | K106: =K30+K46+K83+K99 -> 21001756
A107: =head27a -> References
A108: 1. Include 'Loans and advances' where applicable if any reportable amounts until phased compliance with s164 of MFMA achieved
A109: 2. If benefits in kind are provided (e.g. provision of living quarters) the full market value must be shown as the cost to the municipality
A110: 3. s57 of the Systems Act
A111: 4. B/A, C/A, D/A
A112: Column Definitions:
A113: A. Audited actual 2005/06 (audited financial statements). If audited amounts unavailable, unaudited amounts must be provided with a note stating these are unaudited
A114: B. The original budget approved by council for the 2006/07 budget year.
A115: C. The budget for 2006/07 budget year as adjusted by council resolution in terms of section 28 of the MFMA.
A116: D. An estimate of final actual amounts (pre audit - 2006/07 budget year) at the time of preparing the budget for the 2007/08 budget year. This may differ from C.

Sheet SC9
A1: =muni& " - "&S71O& " - "&Head57 -> NC074 Kareeberg - Supporting Table SC9 Monthly Budget Statement - actuals and revised targets for cash receipts - M01 July
A2: =desc -> Description | B2: =head27 -> Ref | C2: =Head2 -> Budget Year 2018/19 | O2: ='Template names'!B5 -> 2018/19 Medium Term Revenue & Expenditure Framework
C3: July | D3: August | E3: Sept | F3: October | G3: Nov | H3: Dec | I3: January | J3: Feb | K3: March | L3: April | M3: May | N3: June | O3: =Head9 -> Budget Year 2018/19 | P3: =Head10 -> Budget Year +1 2019/20 | Q3: =Head11 -> Budget Year +2 2020/21
A4: R thousands | B4: 1 | C4: Outcome | D4: Budget | E4: Budget | F4: Budget | G4: Budget | H4: Budget | I4: Budget | J4: Budget | K4: Budget | L4: Budget | M4: Budget | N4: Budget
A5: Cash Receipts By Source
A6: Property rates | C6: 237262.07 | D6: 1063293 | E6: 2416733 | F6: 620574 | G6: 547436 | H6: 304301 | I6: 238924 | J6: 220578 | K6: 148297 | L6: 125712 | M6: 130252 | N6: =O6-SUM(C6:M6) -> -580395.07 | O6: 5472967 | P6: 5536168 | Q6: 5536168
A7: Property rates - penalties & collection charges | C7: 3080.73 | D7: 1061890 | E7: 1225741 | F7: 2969535 | G7: 1295594 | H7: 1093879 | I7: 1574463 | J7: 2051999 | K7: 2258402 | L7: 2003117 | M7: 1673178 | N7: -6197528.73 | O7: 11013350 | P7: 10315081 | Q7: 10830835
A8: Service charges - electricity revenue | C8: 250884.04 | D8: 90359 | E8: 135755 | F8: 0 | G8: 152669 | H8: 122883 | I8: 837359 | J8: 278559 | K8: 321222 | L8: 404334 | M8: 475446 | N8: 2147929.96 | O8: 5217400 | P8: 5308224 | Q8: 5573635
A9: Service charges - water revenue | C9: 764632.54 | D9: 164182 | E9: 246668 | F9: 0 | G9: 277402 | H9: 223279 | I9: 259076 | J9: 233357 | K9: 208800 | L9: 654179 | M9: 401742 | N9: 1020282.46 | O9: 4453600 | P9: 3554028 | Q9: 3731731
A10: Service charges - sanitation revenue | C10: 0 | D10: 216784 | E10: 325696 | F10: 0 | G10: 366277 | H10: 294814 | I10: 354428 | J10: 297962 | K10: 296409 | L10: 557989 | M10: 416029 | N10: 1069762 | O10: 4196150 | P10: 4513300 | Q10: 4738965
A11: Service charges - refuse | C11: 0 | N11: 0 | O11: 0 | P11: 0 | Q11: 0
A12: Service charges - other | C12: 0 | D12: 114107 | E12: 40339 | F12: 26424 | G12: 20593 | H12: 28477 | I12: 33027 | J12: 6418 | K12: 3688 | L12: 25279 | M12: 14614 | N12: -38184 | O12: 274782 | P12: 288602 | Q12: 303035
A13: Rental of facilities and equipment | C13: 4085 | D13: 74190 | E13: 69281 | F13: 66380 | G13: 64425 | H13: 294118 | I13: 137147 | J13: 82306 | K13: 76343 | L13: 131832 | M13: 85761 | N13: 101547 | O13: 1187415 | P13: 1385318 | Q13: 1454584
A14: Interest earned - external investments | C14: 163325 | D14: 238 | E14: 188 | F14: 186 | G14: 184 | H14: 182 | I14: 272 | J14: 270 | K14: 269 | L14: 266 | M14: 264 | N14: -162179 | O14: 3465 | P14: 3638 | Q14: 3820
A15: Interest earned - outstanding debtors | C15: 94 | N15: -94 | O15: 0 | P15: 0 | Q15: 0
A16: Dividends received | C16: 0 | D16: 1380 | E16: 1048 | F16: 753 | G16: 22 | H16: 540 | I16: 13 | J16: 1714 | K16: 2414 | L16: 277 | M16: 878 | N16: 160561 | O16: 169600 | P16: 178367 | Q16: 187286
A17: Fines | C17: 170 | D17: 873 | E17: 525 | F17: 222 | G17: 318 | H17: 318 | I17: 489 | J17: 886 | K17: 615 | L17: 552 | M17: 417 | N17: -594 | O17: 4791 | P17: 5031 | Q17: 5283
A18: Licences and permits | C18: 103504 | D18: 3895 | E18: 9134 | F18: 6463 | G18: 8039 | H18: 7483 | I18: 4723 | J18: 48409 | K18: 2538 | L18: -651 | M18: 1728 | N18: -176765 | O18: 18500 | P18: 15243 | Q18: 16005
A19: Agency services | C19: 13777.04 | E19: 0 | F19: 4729750 | I19: 5695250 | L19: 4729750 | N19: 8363472.96 | O19: 23532000 | P19: 25631000 | Q19: 0
A20: Transfer receipts - operating | C20: 5126011 | D20: 166407 | E20: 50002 | F20: 125926 | G20: 109396 | H20: 89390 | I20: 108183 | J20: 81573 | K20: 208014 | L20: 10985 | M20: 241191 | N20: 14432922 | O20: 20750000 | P20: 17690791 | Q20: 18820037
A21: Other revenue | C21: 194825 | N21: -194825 | O21: 0 | P21: 0 | Q21: 0
A22: Cash Receipts by Source | C22: =SUM(C6:C21) -> 6861650.42 | D22: 2957598 | E22: 4521110 | F22: 8546213 | G22: 2842355 | H22: 2459664 | I22: 9243354 | J22: 3304031 | K22: 3527011 | L22: 8643621 | M22: 3441500 | N22: 19945912.58 | O22: 76294020 | P22: 74424791 | Q22: 51201384
N23: =O23-SUM(C23:M23) -> 0
A24: Other Cash Flows by Source | N24: 0
A25: Transfer receipts - capital | C25: 1278126.79 | F25: 20265473.33 | I25: 20265473.33 | N25: 19004926.54 | O25: 60814000 | P25: 8038441 | Q25: 822663
A26: Contributions & Contributed assets | N26: 0
A27: Proceeds on disposal of PPE | N27: 0
A28: Short term loans | N28: 0
A29: Borrowing long term/refinancing | N29: 0
A30: Increase in consumer deposits | C30: 0 | D30: 1100 | E30: 4050 | F30: 3300 | G30: 1100 | H30: 2200 | I30: 471 | J30: 941 | K30: 1176 | L30: 471 | M30: 941 | N30: -5750 | O30: 10000 | P30: 10000 | Q30: 10000
A31: Receipt of non-current debtors | C31: 0 | D31: 1917 | E31: 640 | F31: 642 | G31: 644 | H31: 646 | I31: 805 | J31: 806 | K31: 809 | L31: 812 | M31: 815 | N31: -46 | O31: 8490 | P31: 7532 | Q31: 7900
A32: Receipt of non-current receivables | N32: 0
A33: Change in non-current investments | N33: 0
A34: Total Cash Receipts by Source | C34: =SUM(C22:C33) -> 8139777.21 | D34: 2960615 | E34: 4525800 | F34: 28815628.33 | G34: 2844099 | H34: 2462510 | I34: 29510103.33 | J34: 3305778 | K34: 3528996 | L34: 8644904 | M34: 3443256 | N34: 38945043.12 | O34: 137126510 | P34: 82480764 | Q34: 52041947
N35: =O35-SUM(C35:M35) -> 0
A36: Cash Payments by Type | N36: 0
A37: Employee related costs | C37: 1353772 | D37: 1255933 | E37: 1338992 | F37: 1639658 | G37: 1397924 | H37: 1815114 | I37: 1497283 | J37: 1510384 | K37: 1594863 | L37: 1165244 | M37: 1440353 | N37: 4992236 | O37: 21001756 | P37: 21320212 | Q37: 22601857
A38: Remuneration of councillors | C38: 224279 | D38: 228668 | E38: 233326 | F38: 228641 | G38: 228553 | H38: 233326 | I38: 231325 | J38: 226177 | K38: 320275 | L38: 234218 | M38: 238493 | N38: 14554 | O38: 2641835 | P38: 2832801 | Q38: 3212789
A39: Interest paid | C39: 0 | D39: 0 | E39: 0 | F39: 0 | G39: 0 | H39: 0 | I39: 0 | J39: 0 | K39: 0 | L39: 0 | M39: 0 | N39: 1117803 | O39: 1117803 | P39: 1274127 | Q39: 1153940
A40: Bulk purchases - Electricity | C40: 807956 | D40: 1346584 | E40: 1007579 | F40: 810268 | G40: 856046 | H40: 873693 | I40: 657756 | J40: 926105 | K40: 763971 | L40: 743191 | M40: 794774 | N40: 2224149 | O40: 11812072 | P40: 13022942 | Q40: 13674089
A41: Bulk purchases - Water & Sewer | C41: 0 | N41: 0
A42: Other materials | C42: 26099 | D42: 94058 | E42: 58271 | F42: 96006 | G42: 224458 | H42: 173240 | I42: 52613 | J42: 40235 | K42: 36420 | L42: 25740 | M42: 20250 | N42: 440800 | O42: 1288190 | P42: 1020550 | Q42: 1071580
A43: Contracted services | C43: 43992 | D43: 256279 | E43: 158770 | F43: 261587 | G43: 611580 | H43: 349558 | I43: 143355 | J43: 109629 | K43: 99234 | L43: 70132 | M43: 55176 | N43: 187158 | O43: 2346450 | P43: 3022580 | Q43: 2975179
A44: Grants and subsidies paid - other municipalities | C44: 0 | N44: 0
A45: Grants and subsidies paid - other | C45: 1360077 | D45: 8542 | E45: 12328 | F45: 2666698 | I45: 2666698 | L45: 2666698 | N45: 1285750 | O45: 10666791 | P45: 15189707 | Q45: 0
A46: General expenses | C46: 732414 | D46: 1316135 | E46: 1504961 | F46: 1743410 | G46: 1192507 | H46: 1285321 | I46: 182759 | J46: 1154940 | K46: 1400917 | L46: 1112025 | M46: 1162871 | N46: 6659635 | O46: 19447895 | P46: 18480465 | Q46: 18532886
A47: Cash Payments by Type | B47: =SUM(B37:B46) -> 0 | C47: =SUM(C37:C46) -> 4548589 | D47: =SUM(D37:D46) -> 4506199 | E47: 4314227 | F47: 7446268 | G47: 4511068 | H47: 4730252 | I47: 5431789 | J47: 3967470 | K47: 4215680 | L47: 6017248 | M47: 3711917 | N47: 16922085 | O47: 70322792 | P47: 76163384 | Q47: 63222320
N48: =O48-SUM(C48:M48) -> 0
A49: Other Cash Flows/Payments by Type
A50: Capital assets | C50: 1278126.79 | D50: 5067833.333 | E50: 5067833.333 | F50: 5067833.333 | G50: 5067833.333 | H50: 5067833.333 | I50: 5067833.333 | J50: 5067833.333 | K50: 5067833.333 | L50: 5067833.333 | M50: 5067833.333 | N50: =O50-SUM(C50:M50) -> 8857959.877 | O50: 60814420 | P50: 9958441 | Q50: 11422463
A51: Repayment of borrowing | N51: =O51-SUM(C51:M51) -> 0
A52: Other Cash Flows/Payments | N52: =O52-SUM(C52:M52) -> 0
A53: Total Cash Payments by Type | B53: =SUM(B47:B52) -> 0 | C53: 5826715.79 | D53: 9574032.333 | E53: 9382060.333 | F53: 12514101.33 | G53: 9578901.333 | H53: 9798085.333 | I53: 10499622.33 | J53: 9035303.333 | K53: 9283513.333 | L53: 11085081.33 | M53: 8779750.333 | N53: 25780044.88 | O53: 131137212 | P53: 86121825 | Q53: 74644783
N54: =O54-SUM(C54:M54) -> 0
A55: NET INCREASE/(DECREASE) IN CASH HELD | B55: =B34-B53 -> 0 | C55: 2313061.42 | D55: -6613417.333 | E55: -4856260.333 | F55: 16301527 | G55: -6734802.333 | H55: -7335575.333 | I55: 19010481 | J55: -5729525.333 | K55: -5754517.333 | L55: -2440177.333 | M55: -5336494.333 | N55: 13164998.25 | O55: 5989298 | P55: -3641061 | Q55: -22602836
A56: Cash/cash equivalents at the month/year beginning: | C56: 23253650 | D56: =C57 -> 25566711.42 | E56: =D57 -> 18953294.09 | F56: 14097033.75 | G56: 30398560.75 | H56: 23663758.42 | I56: 16328183.09 | J56: 35338664.09 | K56: 29609138.75 | L56: 23854621.42 | M56: 21414444.09 | N56: 16077949.75 | O56: =C56 -> 23253650 | P56: =O57 -> 29242948 | Q56: =P57 -> 25601887
A57: Cash/cash equivalents at the month/year end: | C57: =C55+C56 -> 25566711.42 | D57: =D55+D56 -> 18953294.09 | E57: =E55+E56 -> 14097033.75 | F57: 30398560.75 | G57: 23663758.42 | H57: 16328183.09 | I57: 35338664.09 | J57: 29609138.75 | K57: 23854621.42 | L57: 21414444.09 | M57: 16077949.75 | N57: 29242948 | O57: =O55+O56 -> 29242948 | P57: =P55+P56 -> 25601887 | Q57: =Q55+Q56 -> 2999051
A58: =head27a -> References
A59: 1. Replace 'budget' heading with adjusted budget, or 'outcome' only for month/s complete
A60: 2. Total of monthly amounts must always agree to the approved or adjusted budget
A61: 3. Amend 'cash-at-beginning' when prior year actual known (as part of the adjustments budget)
E66: =E47+E65 -> 4314227 | F66: 7446268 | G66: 4511068 | H66: 4730252 | I66: 5431789 | J66: 3967470 | K66: 4215680 | L66: 6017248 | N66: =N47+N65 -> 16922085 | O66: 70322792 | P66: 76163384
E67: =E55-E65 -> -4856260.333 | F67: 16301527 | G67: -6734802.333 | H67: -7335575.333 | I67: 19010481 | J67: -5729525.333 | K67: -5754517.333 | L67: -2440177.333 | M67: =M55-M65 -> -5336494.333 | N67: =N55-N65 -> 13164998.25 | O67: 5989298 | P67: -3641061

Sheet SC10
A1: =muni& " - "&S71P& " - "&Head57 -> NC074 Kareeberg - NOT REQUIRED - municipality does not have entities or this is the parent municipality's budget - M01 July
A2: =desc -> Description | B2: =head27 -> Ref | C2: =Head1 -> 2017/18 | D2: =Head2 -> Budget Year 2018/19
C3: =Head5 -> Audited Outcome | D3: =Head6 -> Original Budget | E3: =Head7 -> Adjusted Budget | F3: =Head38 -> Monthly actual | G3: =Head39 -> YearTD actual | H3: =Head40 -> YearTD budget | I3: =Head41 -> YTD variance | J3: =Head41 -> YTD variance | K3: =Head8 -> Full Year Forecast
A4: R thousands | B4: 1 | J4: %
A5: ='C4-FinPerf RE'!A5 -> Revenue By Source
A6: ='C4-FinPerf RE'!A6 -> Property rates | I6: =G6-H6 -> 0 | J6: =IF(I6=0,"",I6/H6) -> 
A7: ='C4-FinPerf RE'!A7 -> Property rates - penalties & collection charges | I7: 0 | J7: =IF(I7=0,"",I7/H7) -> 
A8: ='C4-FinPerf RE'!A8 -> Service charges - electricity revenue | I8: 0
A9: ='C4-FinPerf RE'!A9 -> Service charges - water revenue | I9: 0
A10: ='C4-FinPerf RE'!A10 -> Service charges - sanitation revenue | I10: 0
A11: ='C4-FinPerf RE'!A11 -> Service charges - refuse revenue | I11: 0
A12: ='C4-FinPerf RE'!A12 -> Service charges - other | I12: 0
A13: ='C4-FinPerf RE'!A13 -> Rental of facilities and equipment | I13: 0
A14: ='C4-FinPerf RE'!A14 -> Interest earned - external investments | I14: 0
A15: ='C4-FinPerf RE'!A15 -> Interest earned - outstanding debtors | I15: 0
A16: ='C4-FinPerf RE'!A16 -> Dividends received | I16: 0
A17: ='C4-FinPerf RE'!A17 -> Fines | I17: 0
A18: ='C4-FinPerf RE'!A18 -> Licences and permits | I18: 0
A19: ='C4-FinPerf RE'!A19 -> Agency services | I19: 0
A20: ='C4-FinPerf RE'!A20 -> Transfers recognised - operational | I20: 0
A21: ='C4-FinPerf RE'!A21 -> Other revenue | I21: 0
A22: ='C4-FinPerf RE'!A22 -> Gains on disposal of PPE | I22: 0
A23: Total Revenue (excluding capital transfers and contributions) | C23: =SUM(C6:C22) -> 0 | D23: 0 | E23: 0 | F23: 0 | G23: 0 | H23: 0 | I23: =G23-H23 -> 0 | K23: =SUM(K6:K22) -> 0
A25: Expenditure By Type
A26: ='C4-FinPerf RE'!A26 -> Employee related costs | I26: =G26-H26 -> 0 | J26: =IF(I26=0,"",I26/H26) -> 
A27: ='C4-FinPerf RE'!A27 -> Remuneration of councillors | I27: 0
A28: ='C4-FinPerf RE'!A28 -> Debt impairment | I28: 0
A29: ='C4-FinPerf RE'!A29 -> Depreciation & asset impairment | I29: 0
A30: ='C4-FinPerf RE'!A30 -> Finance charges | I30: 0
A31: ='C4-FinPerf RE'!A31 -> Bulk purchases | I31: 0
A32: ='C4-FinPerf RE'!A32 -> Other materials | I32: 0
A33: ='C4-FinPerf RE'!A33 -> Contracted services | I33: 0
A34: ='C4-FinPerf RE'!A34 -> Transfers and grants | I34: 0
A35: ='C4-FinPerf RE'!A35 -> Other expenditure | I35: 0
A36: ='C4-FinPerf RE'!A36 -> Loss on disposal of PPE | I36: 0
A37: Total Expenditure | C37: =SUM(C26:C36) -> 0 | D37: 0 | E37: 0 | F37: 0 | G37: 0 | H37: 0 | I37: 0 | K37: =SUM(K26:K36) -> 0
I38: 0
A39: ='C4-FinPerf RE'!A39 -> Surplus/(Deficit) | C39: =C23-C37 -> 0 | D39: 0 | E39: 0 | F39: 0 | G39: 0 | H39: 0 | I39: 0 | K39: =K23-K37 -> 0
A40: ='C4-FinPerf RE'!A40 -> Transfers recognised - capital | I40: 0
A41: ='C4-FinPerf RE'!A41 -> Contributions recognised - capital | I41: 0
A42: ='C4-FinPerf RE'!A42 -> Contributed assets | I42: 0
A43: ='C4-FinPerf RE'!A43 -> Surplus/(Deficit) after capital transfers & contributions | C43: =C39+SUM(C40:C42) -> 0 | D43: =D39+SUM(D40:D42) -> 0 | E43: 0 | F43: 0 | G43: 0 | H43: 0 | I43: 0 | K43: 0
A44: ='C4-FinPerf RE'!A44 -> Taxation | I44: 0
A45: ='C4-FinPerf RE'!A45 -> Surplus/(Deficit) after taxation | C45: =C43-C44 -> 0 | D45: 0 | E45: 0 | F45: 0 | G45: 0 | H45: 0 | I45: 0 | K45: =K43-K44 -> 0
A46: =head27a -> References
A47: 1. Votes (consolidated) are revenue sources and expenditure type

Sheet SC11
A1: =muni& " - "&S71Q& " - "&Head57 -> NC074 Kareeberg - NOT REQUIRED - municipality does not have entities or this is the parent municipality's budget - M01 July
A2: =desc -> Description | B2: =head27 -> Ref | C2: =Head1 -> 2017/18 | D2: =Head2 -> Budget Year 2018/19
C3: =Head5 -> Audited Outcome | D3: =Head6 -> Original Budget | E3: =Head7 -> Adjusted Budget | F3: =Head38 -> Monthly actual | G3: =Head39 -> YearTD actual | H3: =Head40 -> YearTD budget | I3: =Head41 -> YTD variance | J3: =Head41 -> YTD variance | K3: =Head8 -> Full Year Forecast
A4: R thousands | J4: %
A5: Revenue By Municipal Entity
A6: Insert name of municipal entity | I6: =G6-H6 -> 0 | J6: =IF(I6=0,"",I6/H6) -> 
I7: 0 | J7: =IF(I7=0,"",I7/H7) -> 
I8: 0
I9: 0
I10: 0
I11: 0
I12: 0
I13: 0
I14: 0
I15: 0
A16: Total Operating Revenue | B16: 1 | C16: =SUM(C6:C15) -> 0 | D16: 0 | E16: 0 | F16: 0 | G16: 0 | H16: 0 | I16: 0 | K16: =SUM(K6:K15) -> 0
A18: Expenditure By Municipal Entity
A19: =A6 -> Insert name of municipal entity | I19: 0 | J19: =IF(I19=0,"",I19/H19) -> 
A20: =IF(A7="","",A7) ->  | I20: 0
A21: =IF(A8="","",A8) ->  | I21: 0
I22: 0
I23: 0
I24: 0
I25: 0
I26: 0
I27: 0
I28: 0
A29: Total Operating Expenditure | B29: 2 | C29: =SUM(C19:C28) -> 0 | D29: 0 | E29: 0 | F29: 0 | G29: 0 | H29: 0 | I29: 0 | K29: =SUM(K19:K28) -> 0
A31: =Head42 -> Surplus/ (Deficit) for the yr/period | C31: =C16-C29 -> 0 | D31: =D16-D29 -> 0 | E31: 0 | F31: 0 | G31: 0 | H31: 0 | I31: =I16+I29 -> 0 | K31: 0
A32: Capital Expenditure By Municipal Entity
A33: =$A$6 -> Insert name of municipal entity | I33: 0
A34: =IF(A7="","",A7) ->  | I34: 0
A35: =IF(A8="","",A8) ->  | I35: 0
I36: 0
I37: 0
I38: 0
I39: 0
I40: 0
I41: 0
A43: Total Capital Expenditure | B43: 3 | C43: =SUM(C32:C42) -> 0 | D43: =SUM(D32:D42) -> 0 | E43: 0 | F43: 0 | G43: 0 | H43: =SUM(H32:H42) -> 0 | I43: =G43-H43 -> 0 | K43: 0
A44: =head27a -> References
A45: 1. Must reconcile to the sum of all municipal entity monthly revenue reports
A46: 2. Must reconcile to the sum of all municipal entity monthly expenditure reports
A47: 3. YTD = Year to date; FAV - favourable variance or unfavourable variance
A48: 4. Material variances to be explained
A49: 5. Insert additional 'Adjustment' Budget column for each Adjustment made by an entity

Sheet SC12
A1: =muni& " - "&S71R& " - "&Head57 -> NC074 Kareeberg - Supporting Table SC12 Monthly Budget Statement - capital expenditure trend - M01 July
A2: Month | B2: =Head1 -> 2017/18 | C2: =Head2 -> Budget Year 2018/19
B3: =Head5 -> Audited Outcome | C3: =Head6 -> Original Budget | D3: =Head7 -> Adjusted Budget | E3: =Head38 -> Monthly actual | F3: =Head39 -> YearTD actual | G3: =Head40 -> YearTD budget | H3: =Head41 -> YTD variance | I3: =Head41 -> YTD variance | J3: % spend of Original Budget
A4: R thousands | I4: %
A5: Monthly expenditure performance trend
A6: July | C6: =1049532+451449 -> 1500981 | E6: 1278126.79 | F6: =IF(E6>0,E6,"") -> 1278126.79 | G6: =IF(D6>0,D6,C6) -> 1500981 | H6: =IF(F6="",0,G6-F6) -> 222854.21 | I6: =IF(F6="","",IF(H6=0,"",H6/G6)) -> 0.1484723724 | J6: =IF(F6="","",F6/$C$18) -> 0.01991391421
A7: August | C7: =3122786-488400 -> 2634386 | F7: =IF(E7>0,E7+F6,"") ->  | G7: =IF(D7>0,D7+D6,C7+C6) -> 4135367 | H7: 0
A8: September | C8: 6336800 | F8: =IF(E8>0,E8+F7,"") ->  | G8: =IF(D8>0,D8+G7,C8+G7) -> 10472167 | H8: 0
A9: October | C9: 5169765 | G9: =IF(D9>0,D9+G8,C9+G8) -> 15641932 | H9: 0
A10: November | C10: 4815709 | G10: 20457641 | H10: 0
A11: December | C11: 5357545 | G11: 25815186 | H11: 0
A12: January | C12: 5151859 | G12: 30967045 | H12: 0
A13: February | C13: 6670720 | G13: 37637765 | H13: 0
A14: March | C14: 6077718 | G14: 43715483 | H14: 0
A15: April | C15: 4482472 | G15: 48197955 | H15: 0
A16: May | C16: 7211381 | G16: 55409336 | H16: 0
A17: June | C17: 8773264 | G17: 64182600 | H17: =IF(F17="",0,G17-F17) -> 0 | I17: =IF(F17="","",IF(H17=0,"",H17/G17)) ->  | J17: =IF(F17="","",F17/$C$18) -> 
A18: Total Capital expenditure | B18: =SUM(B6:B17) -> 0 | C18: =SUM(C6:C17) -> 64182600 | D18: =SUM(D6:D17) -> 0 | E18: =SUM(E6:E17) -> 1278126.79

Sheet SC13a
A1: =muni& " - "&S71Sa& " - "&Head57 -> NC074 Kareeberg - Supporting Table SC13a Monthly Budget Statement - capital expenditure on new assets by asset class - M01 July
A2: =desc -> Description | B2: =head27 -> Ref | C2: =Head1 -> 2017/18 | D2: =Head2 -> Budget Year 2018/19
C3: =Head5 -> Audited Outcome | D3: =Head6 -> Original Budget | E3: =Head7 -> Adjusted Budget | F3: =Head38 -> Monthly actual | G3: =Head39 -> YearTD actual | H3: =Head40 -> YearTD budget | I3: =Head41 -> YTD variance | J3: =Head41 -> YTD variance | K3: =Head8 -> Full Year Forecast
A4: R thousands | B4: 1 | J4: %
A5: Capital expenditure on new assets by Asset Class/Sub-class
A7: Infrastructure | C7: =C8+C11+C15+C19+C22 -> 0 | D7: 60796000 | E7: 60796000 | F7: 1278126.79 | G7: 1278126.79 | H7: 5066333.333 | I7: =H7-G7 -> 3788206.543 | J7: =IF(I7=0,"",I7/H7) -> 0.7477215363 | K7: =K8+K11+K15+K19+K22 -> 60796000
A8: Infrastructure - Road transport | C8: =SUM(C9:C10) -> 0 | D8: 7972000 | E8: 7972000 | F8: 0 | G8: 0 | H8: 664333.3333 | I8: 664333.3333 | J8: 1 | K8: =SUM(K9:K10) -> 7972000
A9: Roads, Pavements & Bridges | D9: 7972000 | E9: 7972000 | F9: 0 | G9: 0 | H9: =D9/12 -> 664333.3333 | I9: 664333.3333 | J9: 1 | K9: 7972000
A10: Storm water | I10: 0
A11: Infrastructure - Electricity | C11: =SUM(C12:C14) -> 0 | D11: 1000000 | E11: 1000000 | F11: 0 | G11: 0 | H11: 83333.33333 | I11: 83333.33333 | J11: 1 | K11: =SUM(K12:K14) -> 1000000
A12: Generation | I12: 0
A13: Transmission & Reticulation | D13: 1000000 | E13: 1000000 | F13: 0 | G13: 0 | H13: =E13/12 -> 83333.33333 | I13: 83333.33333 | J13: 1 | K13: 1000000
A14: Street Lighting | I14: 0
A15: Infrastructure - Water | C15: =SUM(C16:C18) -> 0 | D15: 51824000 | E15: 51824000 | F15: 1278126.79 | G15: 1278126.79 | H15: 4318666.667 | I15: 3040539.877 | J15: 0.7040459733 | K15: =SUM(K16:K18) -> 51824000
A16: Dams & Reservoirs | D16: =5000000+46824000 -> 51824000 | E16: 51824000 | F16: 1278126.79 | G16: 1278126.79 | H16: =D16/12 -> 4318666.667 | I16: 3040539.877 | J16: 0.7040459733 | K16: 51824000
A17: Water purification | I17: 0
A18: Reticulation | I18: 0
A19: Infrastructure - Sanitation | C19: =SUM(C20:C21) -> 0 | D19: 0 | E19: 0 | F19: 0 | G19: 0 | H19: 0 | I19: 0 | K19: =SUM(K20:K21) -> 0
A20: Reticulation | I20: 0
A21: Sewerage purification | I21: 0
A22: Infrastructure - Other | C22: =SUM(C23:C26) -> 0 | D22: 0 | E22: 0 | F22: 0 | G22: 0 | H22: 0 | I22: 0 | K22: =SUM(K23:K26) -> 0
A23: Waste Management | I23: 0
A24: Transportation | I24: 0
A25: Gas | I25: 0
A26: Other | I26: 0
A28: Community | C28: =SUM(C29:C42) -> 0 | D28: 0 | E28: 0 | F28: 0 | G28: 0 | H28: 0 | I28: 0 | K28: =SUM(K29:K42) -> 0
A29: Parks & gardens | I29: 0
A30: Sportsfields & stadia | I30: 0
A31: Swimming pools | I31: 0
A32: Community halls | I32: 0
A33: Libraries | I33: 0
A34: Recreational facilities | I34: 0
A35: Fire, safety & emergency | I35: 0
A36: Security and policing | I36: 0
A37: Buses | I37: 0
A38: Clinics | I38: 0
A39: Museums & Art Galleries | I39: 0
A40: Cemeteries | I40: 0
A41: Social rental housing | I41: =H41-G41 -> 0 | J41: =IF(I41=0,"",I41/H41) -> 
A42: Other | I42: 0
A43: Heritage assets | C43: =SUM(C44:C45) -> 0 | D43: 0 | E43: 0 | F43: 0 | G43: 0 | H43: 0 | I43: 0 | K43: =SUM(K44:K45) -> 0
A44: Buildings | I44: 0
A45: Other | I45: 0
I46: 0
A47: Investment properties | C47: =SUM(C48:C49) -> 0 | D47: 0 | E47: 0 | F47: 0 | G47: 0 | H47: 0 | I47: 0 | K47: =SUM(K48:K49) -> 0
A48: Housing development | I48: 0
A49: Other | I49: 0
A50: Other assets | C50: =SUM(C51:C62) -> 0 | D50: 3386600 | E50: 3386600 | F50: 0 | G50: 0 | H50: 282216.6667 | I50: 282216.6667 | J50: 1 | K50: 3386600
A51: General vehicles | D51: 1511000 | E51: 1511000 | H51: =D51/12 -> 125916.6667 | I51: 125916.6667 | J51: 1 | K51: 1511000
A52: Specialised vehicles | C52: =C78 -> 0 | D52: 0 | E52: 0 | F52: 0 | G52: 0 | H52: 0 | I52: 0 | K52: =K78 -> 0
A53: Plant & equipment | D53: 30000 | E53: 30000 | H53: =D53/12 -> 2500 | I53: 2500 | J53: 1 | K53: 30000
A54: Computers - hardware/equipment | D54: 1720000 | E54: 1720000 | H54: =D54/12 -> 143333.3333 | I54: 143333.3333 | J54: 1 | K54: 1720000
A55: Furniture and other office equipment | D55: 125000 | E55: 125000 | H55: =D55/12 -> 10416.66667 | I55: 10416.66667 | J55: 1 | K55: 125000
A56: Abattoirs | I56: 0
A57: Markets | I57: 0
A58: Civic Land and Buildings | I58: 0
A59: Other Buildings | I59: 0
A60: Other Land | I60: 0
A61: Surplus Assets - (Investment or Inventory) | I61: 0
A62: Other | D62: 600 | E62: 600 | H62: =D62/12 -> 50 | I62: 50 | J62: 1 | K62: 600
A64: Agricultural assets | C64: =SUM(C65:C66) -> 0 | D64: 0 | E64: 0 | F64: 0 | G64: 0 | H64: 0 | I64: =H64-G64 -> 0 | K64: =SUM(K65) -> 0
A65: List sub-class | I65: =H65-G65 -> 0
I66: =H66-G66 -> 0
J67: =IF(I67=0,"",I67/H67) -> 
A68: Biological assets | C68: =SUM(C69:C70) -> 0 | D68: 0 | E68: 0 | F68: 0 | G68: 0 | H68: 0 | I68: =H68-G68 -> 0 | J68: =IF(I68=0,"",I68/H68) ->  | K68: =SUM(K69) -> 0
A69: List sub-class | I69: =H69-G69 -> 0 | J69: =IF(I69=0,"",I69/H69) -> 
I70: =H70-G70 -> 0 | J70: =IF(I70=0,"",I70/H70) -> 
A72: Intangibles | C72: =SUM(C73:C74) -> 0 | D72: 0 | E72: 0 | F72: 0 | G72: 0 | H72: 0 | I72: =H72-G72 -> 0 | J72: =IF(I72=0,"",I72/H72) ->  | K72: =SUM(K73:K74) -> 0
A73: Computers - software & programming | I73: =H73-G73 -> 0 | J73: =IF(I73=0,"",I73/H73) -> 
A74: Other | I74: =H74-G74 -> 0 | J74: =IF(I74=0,"",I74/H74) -> 
A76: Total Capital Expenditure on new assets | B76: 1 | C76: =C7+C28+C43+C47+C50+C64+C68+C72 -> 0 | D76: 64182600 | E76: 64182600 | F76: 1278126.79 | G76: 1278126.79 | H76: 5348550 | I76: 4070423.21 | J76: 0.7610330295 | K76: =K7+K28+K43+K47+K50+K64+K68+K72 -> 64182600
A78: Specialised vehicles | C78: =SUM(C79:C82) -> 0 | D78: 0 | E78: 0 | F78: 0 | G78: 0 | H78: 0 | I78: =H78-G78 -> 0 | J78: =IF(I78=0,"",I78/H78) ->  | K78: 0
A79: Refuse | I79: =H79-G79 -> 0 | J79: =IF(I79=0,"",I79/H79) -> 
A80: Fire | I80: =H80-G80 -> 0 | J80: =IF(I80=0,"",I80/H80) -> 
A81: Conservancy | I81: =H81-G81 -> 0 | J81: =IF(I81=0,"",I81/H81) -> 
A82: Ambulances | I82: =H82-G82 -> 0 | J82: =IF(I82=0,"",I82/H82) -> 
A83: =head27a -> References
A84: 1. Total Capital Expenditure on new assets (SC13a) plus Total Capital Expenditure on renewal of existing assets (SC13b) must reconcile to total capital expenditure in Table C5
A86: check balance | C86: =C76+SC13b!C76-'C5-Capex'!C40 -> 0 | D86: =D76+SC13b!D76-'C5-Capex'!D40 -> 0 | E86: =E76+SC13b!E76-'C5-Capex'!E40 -> 64182600 | F86: =F76+SC13b!F76-'C5-Capex'!F40 -> 0 | G86: =G76+SC13b!G76-'C5-Capex'!G40 -> 0 | H86: =H76+SC13b!H76-'C5-Capex'!H40 -> 0 | K86: =K76+SC13b!K76-'C5-Capex'!K40 -> 0

Sheet SC13b
A1: =muni& " - "&S71Sb& " - "&Head57 -> NC074 Kareeberg - Supporting Table SC13b Monthly Budget Statement - capital expenditure on renewal of existing assets by asset class - M01 July
A2: =desc -> Description | B2: =head27 -> Ref | C2: =Head1 -> 2017/18 | D2: =Head2 -> Budget Year 2018/19
C3: =Head5 -> Audited Outcome | D3: =Head6 -> Original Budget | E3: =Head7 -> Adjusted Budget | F3: =Head38 -> Monthly actual | G3: =Head39 -> YearTD actual | H3: =Head40 -> YearTD budget | I3: =Head41 -> YTD variance | J3: =Head41 -> YTD variance | K3: =Head8 -> Full Year Forecast
A4: R thousands | B4: 1 | J4: %
A5: Capital expenditure on renewal of existing assets by Asset Class/Sub-class
A7: Infrastructure | C7: =C8+C11+C15+C19+C22 -> 0 | D7: 0 | E7: 0 | F7: 0 | G7: 0 | H7: 0 | I7: =H7-G7 -> 0 | J7: =IF(I7=0,"",I7/H7) ->  | K7: =K8+K11+K15+K19+K22 -> 0
A8: Infrastructure - Road transport | C8: =SUM(C9:C10) -> 0 | D8: 0 | E8: 0 | F8: 0 | G8: 0 | H8: 0 | I8: 0 | K8: =SUM(K9:K10) -> 0
A9: Roads, Pavements & Bridges | I9: 0
A10: Storm water | I10: 0
A11: Infrastructure - Electricity | C11: =SUM(C12:C14) -> 0 | D11: 0 | E11: 0 | F11: 0 | G11: 0 | H11: 0 | I11: 0 | K11: =SUM(K12:K14) -> 0
A12: Generation | I12: 0
A13: Transmission & Reticulation | I13: 0
A14: Street Lighting | I14: 0
A15: Infrastructure - Water | C15: =SUM(C16:C18) -> 0 | D15: 0 | E15: 0 | F15: 0 | G15: 0 | H15: 0 | I15: 0 | K15: =SUM(K16:K18) -> 0
A16: Dams & Reservoirs | I16: 0
A17: Water purification | I17: 0
A18: Reticulation | I18: 0
A19: Infrastructure - Sanitation | C19: =SUM(C20:C21) -> 0 | D19: 0 | E19: 0 | F19: 0 | G19: 0 | H19: 0 | I19: 0 | K19: =SUM(K20:K21) -> 0
A20: Reticulation | I20: 0
A21: Sewerage purification | I21: 0
A22: Infrastructure - Other | C22: =SUM(C23:C26) -> 0 | D22: 0 | E22: 0 | F22: 0 | G22: 0 | H22: 0 | I22: 0 | K22: =SUM(K23:K26) -> 0
A23: Waste Management | I23: 0
A24: Transportation | I24: 0
A25: Gas | I25: 0
A26: Other | I26: 0
A28: Community | C28: =SUM(C29:C42) -> 0 | D28: 0 | E28: 0 | F28: 0 | G28: 0 | H28: 0 | I28: 0 | K28: =SUM(K29:K42) -> 0
A29: Parks & gardens | I29: 0
A30: Sportsfields & stadia | I30: 0
A31: Swimming pools | I31: 0
A32: Community halls | I32: 0
A33: Libraries | I33: 0
A34: Recreational facilities | I34: 0
A35: Fire, safety & emergency | I35: 0
A36: Security and policing | I36: 0
A37: Buses | I37: 0
A38: Clinics | I38: 0
A39: Museums & Art Galleries | I39: 0
A40: Cemeteries | I40: 0
A41: Social rental housing | I41: 0
A42: Other | I42: 0
A43: Heritage assets | C43: =SUM(C44:C45) -> 0 | D43: 0 | E43: 0 | F43: 0 | G43: 0 | H43: 0 | I43: 0 | K43: =SUM(K44:K45) -> 0
A44: Buildings | I44: 0
A45: Other | I45: 0
I46: 0
A47: Investment properties | C47: =SUM(C48:C49) -> 0 | D47: 0 | E47: 0 | F47: 0 | G47: 0 | H47: 0 | I47: 0 | K47: =SUM(K48:K49) -> 0
A48: Housing development | I48: 0
A49: Other | I49: 0
A50: Other assets | C50: =SUM(C51:C62) -> 0 | D50: 0 | E50: 0 | F50: 0 | G50: 0 | H50: 0 | I50: 0 | K50: 0
A51: General vehicles | I51: 0
A52: Specialised vehicles | C52: =C78 -> 0 | D52: 0 | E52: 0 | F52: 0 | G52: 0 | H52: 0 | I52: 0 | K52: =K78 -> 0
A53: Plant & equipment | I53: 0
A54: Computers - hardware/equipment | I54: 0
A55: Furniture and other office equipment | I55: 0
A56: Abattoirs | I56: 0
A57: Markets | I57: 0
A58: Civic Land and Buildings | I58: 0
A59: Other Buildings | I59: 0
A60: Other Land | I60: 0
A61: Surplus Assets - (Investment or Inventory) | I61: 0
A62: Other | I62: 0
A64: Agricultural assets | C64: =SUM(C65:C66) -> 0 | D64: 0 | E64: 0 | F64: 0 | G64: 0 | H64: 0 | I64: =H64-G64 -> 0 | K64: =SUM(K65) -> 0
A65: List sub-class | I65: =H65-G65 -> 0
I66: =H66-G66 -> 0
J67: =IF(I67=0,"",I67/H67) -> 
A68: Biological assets | C68: =SUM(C69:C70) -> 0 | D68: 0 | E68: 0 | F68: 0 | G68: 0 | H68: 0 | I68: =H68-G68 -> 0 | J68: =IF(I68=0,"",I68/H68) ->  | K68: =SUM(K69) -> 0
A69: List sub-class | I69: =H69-G69 -> 0 | J69: =IF(I69=0,"",I69/H69) -> 
I70: =H70-G70 -> 0 | J70: =IF(I70=0,"",I70/H70) -> 
A72: Intangibles | C72: =SUM(C73:C74) -> 0 | D72: 0 | E72: 0 | F72: 0 | G72: 0 | H72: 0 | I72: =H72-G72 -> 0 | J72: =IF(I72=0,"",I72/H72) ->  | K72: =SUM(K73:K74) -> 0
A73: Computers - software & programming | I73: =H73-G73 -> 0 | J73: =IF(I73=0,"",I73/H73) -> 
A74: Other | I74: =H74-G74 -> 0 | J74: =IF(I74=0,"",I74/H74) -> 
A76: Total Capital Expenditure on renewal of existing assets | B76: 1 | C76: =C7+C28+C43+C47+C50+C64+C68+C72 -> 0 | D76: 0 | E76: 0 | F76: 0 | G76: 0 | H76: 0 | I76: =H76-G76 -> 0 | J76: =IF(I76=0,"",I76/H76) ->  | K76: =K7+K28+K43+K47+K50+K64+K68+K72 -> 0
A78: Specialised vehicles | C78: =SUM(C79:C82) -> 0 | D78: 0 | E78: 0 | F78: 0 | G78: 0 | H78: 0 | I78: =H78-G78 -> 0 | J78: =IF(I78=0,"",I78/H78) ->  | K78: 0
A79: Refuse | I79: =H79-G79 -> 0 | J79: =IF(I79=0,"",I79/H79) -> 
A80: Fire | I80: =H80-G80 -> 0 | J80: =IF(I80=0,"",I80/H80) -> 
A81: Conservancy | I81: =H81-G81 -> 0 | J81: =IF(I81=0,"",I81/H81) -> 
A82: Ambulances | I82: =H82-G82 -> 0 | J82: =IF(I82=0,"",I82/H82) -> 
A83: =head27a -> References
A84: 1. Total Capital Expenditure on new assets (SC13a) plus Total Capital Expenditure on renewal of existing assets (SC13b) must reconcile to total capital expenditure in Table C5
A86: check balance | C86: =C76+SC13a!C76-'C5-Capex'!C40 -> 0 | D86: =D76+SC13a!D76-'C5-Capex'!D40 -> 0 | E86: =E76+SC13a!E76-'C5-Capex'!E40 -> 64182600 | F86: =F76+SC13a!F76-'C5-Capex'!F40 -> 0 | G86: =G76+SC13a!G76-'C5-Capex'!G40 -> 0 | H86: =H76+SC13a!H76-'C5-Capex'!H40 -> 0 | K86: =K76+SC13a!K76-'C5-Capex'!K40 -> 0

Sheet SC13c
A1: =muni& " - "&S71Sc& " - "&Head57 -> NC074 Kareeberg - Supporting Table SC13c Monthly Budget Statement - expenditure on repairs and maintenance by asset class - M01 July
A2: =desc -> Description | B2: =head27 -> Ref | C2: =Head1 -> 2017/18 | D2: =Head2 -> Budget Year 2018/19
C3: =Head5 -> Audited Outcome | D3: =Head6 -> Original Budget | E3: =Head7 -> Adjusted Budget | F3: =Head38 -> Monthly actual | G3: =Head39 -> YearTD actual | H3: =Head40 -> YearTD budget | I3: =Head41 -> YTD variance | J3: =Head41 -> YTD variance | K3: =Head8 -> Full Year Forecast
A4: R thousands | B4: 1 | J4: %
A5: Repairs and maintenance expenditure by Asset Class/Sub-class
A7: Infrastructure | C7: =C8+C11+C15+C19+C22 -> 0 | D7: 1550474 | E7: 1550474 | F7: 44719 | G7: 44719 | H7: 129206.1667 | I7: =H7-G7 -> 84487.16667 | J7: =IF(I7=0,"",I7/H7) -> 0.6538942285 | K7: =K8+K11+K15+K19+K22 -> 1550474
A8: Infrastructure - Road transport | C8: =SUM(C9:C10) -> 0 | D8: 62000 | E8: 62000 | F8: 80 | G8: 80 | H8: 5166.666667 | I8: 5086.666667 | J8: 0.984516129 | K8: =SUM(K9:K10) -> 62000
A9: Roads, Pavements & Bridges | D9: =30000+32000 -> 62000 | E9: 62000 | F9: 80 | G9: 80 | H9: =D9/12 -> 5166.666667 | I9: 5086.666667 | J9: 0.984516129 | K9: 62000
A10: Storm water | I10: 0
A11: Infrastructure - Electricity | C11: =SUM(C12:C14) -> 0 | D11: 136000 | E11: 136000 | F11: 27322 | G11: 27322 | H11: 11333.33333 | I11: -15988.66667 | J11: -1.410764706 | K11: =SUM(K12:K14) -> 136000
A12: Generation | I12: 0
A13: Transmission & Reticulation | D13: =18000+14000+104000 -> 136000 | E13: 136000 | F13: =21930+5392 -> 27322 | G13: 27322 | H13: =136000/12 -> 11333.33333 | I13: -15988.66667 | J13: -1.410764706 | K13: 136000
A14: Street Lighting | I14: 0
A15: Infrastructure - Water | C15: =SUM(C16:C18) -> 0 | D15: 309564 | E15: 309564 | F15: 13831 | G15: 13831 | H15: 25797 | I15: 11966 | J15: 0.4638523859 | K15: =SUM(K16:K18) -> 309564
A16: Dams & Reservoirs | D16: 309564 | E16: 309564 | F16: 13831 | G16: 13831 | H16: =309564/12 -> 25797 | I16: 11966 | J16: 0.4638523859 | K16: 309564
A17: Water purification | I17: 0
A18: Reticulation | I18: 0
A19: Infrastructure - Sanitation | C19: =SUM(C20:C21) -> 0 | D19: 1034210 | E19: 1034210 | F19: 3486 | G19: 3486 | H19: 86184.16667 | I19: 82698.16667 | J19: 0.9595517351 | K19: =SUM(K20:K21) -> 1034210
A20: Reticulation | D20: 1034210 | E20: 1034210 | F20: 3486 | G20: 3486 | H20: =1034210/12 -> 86184.16667 | I20: 82698.16667 | J20: 0.9595517351 | K20: 1034210
A21: Sewerage purification | I21: 0
A22: Infrastructure - Other | C22: =SUM(C23:C26) -> 0 | D22: 8700 | E22: 8700 | F22: 0 | G22: 0 | H22: 725 | I22: 725 | J22: 1 | K22: =SUM(K23:K26) -> 8700
A23: Waste Management | D23: 8700 | E23: 8700 | F23: 0 | H23: =8700/12 -> 725 | I23: 725 | J23: 1 | K23: 8700
A24: Transportation | I24: 0
A25: Gas | I25: 0
A26: Other | I26: 0
A28: Community | C28: =SUM(C29:C42) -> 0 | D28: 818341 | E28: 818341 | F28: 620.26 | G28: 620.26 | H28: 68195.08333 | I28: 67574.82333 | J28: 0.9909046229 | K28: =SUM(K29:K42) -> 818341
A29: Parks & gardens | D29: 18600 | E29: 18600 | F29: 73 | G29: 73 | H29: =18600/12 -> 1550 | I29: 1477 | J29: 0.9529032258 | K29: 18600
A30: Sportsfields & stadia | F30: 0 | G30: 0 | I30: 0
A31: Swimming pools | D31: 14000 | E31: 14000 | F31: 0 | G31: 0 | H31: =14000/12 -> 1166.666667 | I31: 1166.666667 | J31: 1 | K31: 14000
A32: Community halls | I32: 0
A33: Libraries | D33: 542465 | E33: 542465 | H33: =542465/12 -> 45205.41667 | I33: 45205.41667 | J33: 1 | K33: 542465
A34: Recreational facilities | D34: 11000 | E34: 11000 | F34: 0 | G34: 0 | H34: =11000/12 -> 916.6666667 | I34: 916.6666667 | J34: 1 | K34: 11000
A35: Fire, safety & emergency | D35: =3000+2500+3000 -> 8500 | E35: 8500 | H35: =8500/12 -> 708.3333333 | I35: 708.3333333 | J35: 1 | K35: 8500
A36: Security and policing | I36: 0
A37: Buses | I37: 0
A38: Clinics | I38: 0
A39: Museums & Art Galleries | D39: 4000 | E39: 4000 | F39: 547.26 | G39: 547.26 | H39: =4000/12 -> 333.3333333 | I39: -213.9266667 | J39: -0.64178 | K39: 4000
A40: Cemeteries | D40: 5776 | E40: 5776 | H40: =5776/12 -> 481.3333333 | I40: 481.3333333 | J40: 1 | K40: 5776
A41: Social rental housing | I41: 0
A42: Other | D42: =205000+9000 -> 214000 | E42: 214000 | H42: =214000/12 -> 17833.33333 | I42: 17833.33333 | J42: 1 | K42: 214000
A43: Heritage assets | C43: =SUM(C44:C45) -> 0 | D43: 0 | E43: 0 | F43: 0 | G43: 0 | H43: 0 | I43: 0 | K43: =SUM(K44:K45) -> 0
A44: Buildings | I44: 0
A45: Other | I45: 0
I46: 0
A47: Investment properties | C47: =SUM(C48:C49) -> 0 | D47: 0 | E47: 0 | F47: 0 | G47: 0 | H47: 0 | I47: 0 | K47: =SUM(K48:K49) -> 0
A48: Housing development | I48: 0
A49: Other | I49: 0
A50: Other assets | C50: =SUM(C51:C62) -> 0 | D50: 1080021 | E50: 1080021 | F50: 24752 | G50: 24752 | H50: 90001.75 | I50: 65249.75 | J50: 0.7249831253 | K50: 1080021
A51: General vehicles | D51: 97500 | E51: 97500 | H51: =97500/12 -> 8125 | I51: 8125 | J51: 1 | K51: 97500
A52: Specialised vehicles | C52: =C78 -> 0 | D52: 0 | E52: 0 | F52: 0 | G52: 0 | H52: 0 | I52: 0 | K52: =K78 -> 0
A53: Plant & equipment | I53: 0
A54: Computers - hardware/equipment | I54: 0
A55: Furniture and other office equipment | I55: 0
A56: Abattoirs | D56: 500 | E56: 500 | H56: =500/12 -> 41.66666667 | I56: 41.66666667 | J56: 1 | K56: 500
A57: Markets | I57: 0
A58: Civic Land and Buildings | I58: 0
A59: Other Buildings | D59: 33500 | E59: 33500 | F59: =7963.28+200 -> 8163.28 | G59: 8163.28 | H59: =33500/12 -> 2791.666667 | I59: -5371.613333 | J59: -1.92416 | K59: 33500
A60: Other Land | D60: 25500 | E60: 25500 | H60: =25500/12 -> 2125 | I60: 2125 | J60: 1 | K60: 25500
A61: Surplus Assets - (Investment or Inventory) | I61: 0
A62: Other | D62: 923021 | E62: 923021 | F62: =16127.72+461 -> 16588.72 | G62: 16588.72 | H62: =923021/12 -> 76918.41667 | I62: 60329.69667 | J62: 0.7843335742 | K62: 923021
A64: Agricultural assets | C64: =SUM(C65:C66) -> 0 | D64: 0 | E64: 0 | F64: 0 | G64: 0 | H64: 0 | I64: =H64-G64 -> 0 | K64: =SUM(K65) -> 0
A65: List sub-class | I65: =H65-G65 -> 0
I66: =H66-G66 -> 0
J67: =IF(I67=0,"",I67/H67) -> 
A68: Biological assets | C68: =SUM(C69:C70) -> 0 | D68: 0 | E68: 0 | F68: 0 | G68: 0 | H68: 0 | I68: =H68-G68 -> 0 | J68: =IF(I68=0,"",I68/H68) ->  | K68: =SUM(K69) -> 0
A69: List sub-class | I69: =H69-G69 -> 0 | J69: =IF(I69=0,"",I69/H69) -> 
I70: =H70-G70 -> 0 | J70: =IF(I70=0,"",I70/H70) -> 
A72: Intangibles | C72: =SUM(C73:C74) -> 0 | D72: 0 | E72: 0 | F72: 0 | G72: 0 | H72: 0 | I72: =H72-G72 -> 0 | J72: =IF(I72=0,"",I72/H72) ->  | K72: =SUM(K73:K74) -> 0
A73: Computers - software & programming | I73: =H73-G73 -> 0 | J73: =IF(I73=0,"",I73/H73) -> 
A74: Other | I74: =H74-G74 -> 0 | J74: =IF(I74=0,"",I74/H74) -> 
A76: Total Repairs and Maintenance Expenditure | C76: =C7+C28+C43+C47+C50+C64+C68+C72 -> 0 | D76: 3448836 | E76: 3448836 | F76: 70091.26 | G76: 70091.26 | H76: 287403 | I76: =H76-G76 -> 217311.74 | J76: =IF(I76=0,"",I76/H76) -> 0.7561220307 | K76: =K7+K28+K43+K47+K50+K64+K68+K72 -> 3448836
A78: Specialised vehicles | C78: =SUM(C79:C82) -> 0 | D78: 0 | E78: 0 | F78: 0 | G78: 0 | H78: 0 | I78: =H78-G78 -> 0 | J78: =IF(I78=0,"",I78/H78) ->  | K78: 0
A79: Refuse | I79: =H79-G79 -> 0 | J79: =IF(I79=0,"",I79/H79) -> 
A80: Fire | I80: =H80-G80 -> 0 | J80: =IF(I80=0,"",I80/H80) -> 
A81: Conservancy | I81: =H81-G81 -> 0 | J81: =IF(I81=0,"",I81/H81) -> 
A82: Ambulances | I82: =H82-G82 -> 0 | J82: =IF(I82=0,"",I82/H82) -> 

Sheet SC13d
A1: =muni& " - "&S71Sd& " - "&Head57 -> NC074 Kareeberg - Supporting Table SC13d Monthly Budget Statement - depreciation by asset class - M01 July
A2: =desc -> Description | B2: =head27 -> Ref | C2: =Head1 -> 2017/18 | D2: =Head2 -> Budget Year 2018/19
C3: =Head5 -> Audited Outcome | D3: =Head6 -> Original Budget | E3: =Head7 -> Adjusted Budget | F3: =Head38 -> Monthly actual | G3: =Head39 -> YearTD actual | H3: =Head40 -> YearTD budget | I3: =Head41 -> YTD variance | J3: =Head41 -> YTD variance | K3: =Head8 -> Full Year Forecast
A4: R thousands | B4: 1 | J4: %
A5: Depreciation by Asset Class/Sub-class
A7: Infrastructure | C7: =C8+C11+C15+C19+C22 -> 0 | D7: 1717965 | E7: 0 | F7: 143163.75 | G7: 143163.75 | H7: 143163.75 | I7: =H7-G7 -> 0 | J7: =IF(I7=0,"",I7/H7) ->  | K7: =K8+K11+K15+K19+K22 -> 1717965
A8: Infrastructure - Road transport | C8: =SUM(C9:C10) -> 0 | D8: 0 | E8: 0 | F8: 0 | G8: 0 | H8: 0 | I8: 0 | K8: =SUM(K9:K10) -> 0
A9: Roads, Pavements & Bridges | I9: 0
A10: Storm water | I10: 0
A11: Infrastructure - Electricity | C11: =SUM(C12:C14) -> 0 | D11: 0 | E11: 0 | F11: 0 | G11: 0 | H11: 0 | I11: 0 | K11: =SUM(K12:K14) -> 0
A12: Generation | I12: 0
A13: Transmission & Reticulation | I13: 0
A14: Street Lighting | I14: 0
A15: Infrastructure - Water | C15: =SUM(C16:C18) -> 0 | D15: 0 | E15: 0 | F15: 0 | G15: 0 | H15: 0 | I15: 0 | K15: =SUM(K16:K18) -> 0
A16: Dams & Reservoirs | I16: 0
A17: Water purification | I17: 0
A18: Reticulation | I18: 0 | K18: =E18 -> 0
A19: Infrastructure - Sanitation | C19: =SUM(C20:C21) -> 0 | D19: 0 | E19: 0 | F19: 0 | G19: 0 | H19: 0 | I19: 0 | K19: =SUM(K20:K21) -> 0
A20: Reticulation | I20: 0
A21: Sewerage purification | I21: 0 | K21: =E21 -> 0
A22: Infrastructure - Other | C22: =SUM(C23:C26) -> 0 | D22: 1717965 | E22: 0 | F22: 143163.75 | G22: 143163.75 | H22: 143163.75 | I22: 0 | K22: =SUM(K23:K26) -> 1717965
A23: Waste Management | I23: 0 | K23: =E23 -> 0
A24: Transportation | I24: 0
A25: Gas | I25: 0
A26: Other | D26: 1717965 | F26: 143163.75 | G26: 143163.75 | H26: =1717965/12 -> 143163.75 | I26: 0 | K26: 1717965
A28: Community | C28: =SUM(C29:C42) -> 0 | D28: 0 | E28: 0 | F28: 0 | G28: 0 | H28: 0 | I28: 0 | K28: =SUM(K29:K42) -> 0
A29: Parks & gardens | I29: 0 | K29: =E29 -> 0
A30: Sportsfields & stadia | I30: 0 | K30: =E30 -> 0
A31: Swimming pools | I31: 0
A32: Community halls | I32: 0
A33: Libraries | I33: 0 | K33: =E33 -> 0
A34: Recreational facilities | I34: 0 | K34: =E34 -> 0
A35: Fire, safety & emergency | I35: 0
A36: Security and policing | I36: 0
A37: Buses | I37: 0
A38: Clinics | I38: 0 | K38: =E38 -> 0
A39: Museums & Art Galleries | I39: 0 | K39: =E39 -> 0
A40: Cemeteries | I40: 0 | K40: =E40 -> 0
A41: Social rental housing | I41: 0
A42: Other | I42: 0
A43: Heritage assets | C43: =SUM(C44:C45) -> 0 | D43: 0 | E43: 0 | F43: 0 | G43: 0 | H43: 0 | I43: 0 | K43: =SUM(K44:K45) -> 0
A44: Buildings | I44: 0
A45: Other | I45: 0
I46: 0
A47: Investment properties | C47: =SUM(C48:C49) -> 0 | D47: 0 | E47: 0 | F47: 0 | G47: 0 | H47: 0 | I47: 0 | K47: =SUM(K48:K49) -> 0
A48: Housing development | I48: 0
A49: Other | I49: 0 | K49: =E49 -> 0
A50: Other assets | C50: =SUM(C51:C62) -> 0 | D50: 0 | E50: 0 | F50: 0 | G50: 0 | H50: 0 | I50: 0 | K50: 0
A51: General vehicles | I51: 0 | K51: =E51 -> 0
A52: Specialised vehicles | C52: =C78 -> 0 | D52: 0 | E52: 0 | F52: 0 | G52: 0 | H52: 0 | I52: 0 | K52: =K78 -> 0
A53: Plant & equipment | I53: 0 | K53: =E53 -> 0
A54: Computers - hardware/equipment | I54: 0 | K54: =E54 -> 0
A55: Furniture and other office equipment | I55: 0 | K55: =E55 -> 0
A56: Abattoirs | I56: 0
A57: Markets | I57: 0
A58: Civic Land and Buildings | I58: 0 | K58: =E58 -> 0
A59: Other Buildings | I59: 0
A60: Other Land | I60: 0
A61: Surplus Assets - (Investment or Inventory) | I61: 0
A62: Other | I62: 0
A64: Agricultural assets | C64: =SUM(C65:C66) -> 0 | D64: 0 | E64: 0 | F64: 0 | G64: 0 | H64: 0 | I64: =H64-G64 -> 0 | K64: =SUM(K65) -> 0
A65: List sub-class | I65: =H65-G65 -> 0
I66: =H66-G66 -> 0
J67: =IF(I67=0,"",I67/H67) -> 
A68: Biological assets | C68: =SUM(C69:C70) -> 0 | D68: 0 | E68: 0 | F68: 0 | G68: 0 | H68: 0 | I68: =H68-G68 -> 0 | J68: =IF(I68=0,"",I68/H68) ->  | K68: =SUM(K69) -> 0
A69: List sub-class | I69: =H69-G69 -> 0 | J69: =IF(I69=0,"",I69/H69) -> 
I70: =H70-G70 -> 0 | J70: =IF(I70=0,"",I70/H70) -> 
A72: Intangibles | C72: =SUM(C73:C74) -> 0 | D72: 0 | E72: 0 | F72: 0 | G72: 0 | H72: 0 | I72: =H72-G72 -> 0 | J72: =IF(I72=0,"",I72/H72) ->  | K72: =SUM(K73:K74) -> 0
A73: Computers - software & programming | I73: =H73-G73 -> 0 | J73: =IF(I73=0,"",I73/H73) ->  | K73: =E73 -> 0
A74: Other | I74: =H74-G74 -> 0 | J74: =IF(I74=0,"",I74/H74) -> 
A76: Total Depreciation | C76: =C7+C28+C43+C47+C50+C64+C68+C72 -> 0 | D76: 1717965 | E76: 0 | F76: 143163.75 | G76: 143163.75 | H76: 143163.75 | I76: =H76-G76 -> 0 | J76: =IF(I76=0,"",I76/H76) ->  | K76: =K7+K28+K43+K47+K50+K64+K68+K72 -> 1717965
A78: Specialised vehicles | C78: =SUM(C79:C82) -> 0 | D78: 0 | E78: 0 | F78: 0 | G78: 0 | H78: 0 | I78: =H78-G78 -> 0 | J78: =IF(I78=0,"",I78/H78) ->  | K78: 0
A79: Refuse | I79: =H79-G79 -> 0 | J79: =IF(I79=0,"",I79/H79) ->  | K79: =E79 -> 0
A80: Fire | I80: =H80-G80 -> 0 | J80: =IF(I80=0,"",I80/H80) ->  | K80: =E80 -> 0
A81: Conservancy | I81: =H81-G81 -> 0 | J81: =IF(I81=0,"",I81/H81) -> 
A82: Ambulances | I82: =H82-G82 -> 0 | J82: =IF(I82=0,"",I82/H82) -> 

Sheet SC71charts
A1: ='Template names'!B101 -> Chart C1 2018/19 Capital Expenditure Monthly Trend: actual v target
A2: Month | B2: ='SC12'!B2 -> 2017/18 | C2: ='SC12'!C3 -> Original Budget | D2: ='SC12'!D3 -> Adjusted Budget | E2: ='SC12'!E3 -> Monthly actual
A3: =LEFT('SC12'!A6,3) -> Jul | B3: ='SC12'!B6 -> 0 | C3: ='SC12'!C6 -> 1500981 | D3: ='SC12'!D6 -> 0 | E3: ='SC12'!E6 -> 1278126.79
A4: =LEFT('SC12'!A7,3) -> Aug | B4: ='SC12'!B7 -> 0 | C4: ='SC12'!C7 -> 2634386 | D4: ='SC12'!D7 -> 0 | E4: ='SC12'!E7 -> 0
A5: =LEFT('SC12'!A8,3) -> Sep | B5: ='SC12'!B8 -> 0 | C5: ='SC12'!C8 -> 6336800 | D5: ='SC12'!D8 -> 0 | E5: ='SC12'!E8 -> 0
A6: =LEFT('SC12'!A9,3) -> Oct | B6: ='SC12'!B9 -> 0 | C6: ='SC12'!C9 -> 5169765 | D6: ='SC12'!D9 -> 0 | E6: ='SC12'!E9 -> 0
A7: =LEFT('SC12'!A10,3) -> Nov | B7: ='SC12'!B10 -> 0 | C7: ='SC12'!C10 -> 4815709 | D7: ='SC12'!D10 -> 0 | E7: ='SC12'!E10 -> 0
A8: =LEFT('SC12'!A11,3) -> Dec | B8: ='SC12'!B11 -> 0 | C8: ='SC12'!C11 -> 5357545 | D8: ='SC12'!D11 -> 0 | E8: ='SC12'!E11 -> 0
A9: =LEFT('SC12'!A12,3) -> Jan | B9: ='SC12'!B12 -> 0 | C9: ='SC12'!C12 -> 5151859 | D9: ='SC12'!D12 -> 0 | E9: ='SC12'!E12 -> 0
A10: =LEFT('SC12'!A13,3) -> Feb | B10: ='SC12'!B13 -> 0 | C10: ='SC12'!C13 -> 6670720 | D10: ='SC12'!D13 -> 0 | E10: ='SC12'!E13 -> 0
A11: =LEFT('SC12'!A14,3) -> Mar | B11: ='SC12'!B14 -> 0 | C11: ='SC12'!C14 -> 6077718 | D11: ='SC12'!D14 -> 0 | E11: ='SC12'!E14 -> 0
A12: =LEFT('SC12'!A15,3) -> Apr | B12: ='SC12'!B15 -> 0 | C12: ='SC12'!C15 -> 4482472 | D12: ='SC12'!D15 -> 0 | E12: ='SC12'!E15 -> 0
A13: =LEFT('SC12'!A16,3) -> May | B13: ='SC12'!B16 -> 0 | C13: ='SC12'!C16 -> 7211381 | D13: ='SC12'!D16 -> 0 | E13: ='SC12'!E16 -> 0
A14: =LEFT('SC12'!A17,3) -> Jun | B14: ='SC12'!B17 -> 0 | C14: ='SC12'!C17 -> 8773264 | D14: ='SC12'!D17 -> 0 | E14: ='SC12'!E17 -> 0
A26: ='Template names'!B102 -> Chart C2 2018/19 Capital Expenditure: YTD actual v YTD target
A27: Month | B27: ='SC12'!F3 -> YearTD actual | C27: ='SC12'!G3 -> YearTD budget
A28: =LEFT('SC12'!A6,3) -> Jul | B28: ='SC12'!F6 -> 1278126.79 | C28: ='SC12'!G6 -> 1500981
A29: =LEFT('SC12'!A7,3) -> Aug | B29: ='SC12'!F7 ->  | C29: ='SC12'!G7 -> 4135367
A30: =LEFT('SC12'!A8,3) -> Sep | B30: ='SC12'!F8 ->  | C30: ='SC12'!G8 -> 10472167
A31: =LEFT('SC12'!A9,3) -> Oct | B31: ='SC12'!F9 ->  | C31: ='SC12'!G9 -> 15641932
A32: =LEFT('SC12'!A10,3) -> Nov | B32: ='SC12'!F10 ->  | C32: ='SC12'!G10 -> 20457641
A33: =LEFT('SC12'!A11,3) -> Dec | B33: ='SC12'!F11 ->  | C33: ='SC12'!G11 -> 25815186
A34: =LEFT('SC12'!A12,3) -> Jan | B34: ='SC12'!F12 ->  | C34: ='SC12'!G12 -> 30967045
A35: =LEFT('SC12'!A13,3) -> Feb | B35: ='SC12'!F13 ->  | C35: ='SC12'!G13 -> 37637765
A36: =LEFT('SC12'!A14,3) -> Mar | B36: ='SC12'!F14 ->  | C36: ='SC12'!G14 -> 43715483
A37: =LEFT('SC12'!A15,3) -> Apr | B37: ='SC12'!F15 ->  | C37: ='SC12'!G15 -> 48197955
A38: =LEFT('SC12'!A16,3) -> May | B38: ='SC12'!F16 ->  | C38: ='SC12'!G16 -> 55409336
A39: =LEFT('SC12'!A17,3) -> Jun | B39: ='SC12'!F17 ->  | C39: ='SC12'!G17 -> 64182600
A51: ='Template names'!B103 -> Chart C3 Aged Consumer Debtors Analysis
B52: ='SC3'!C3 -> 0-30 Days | C52: ='SC3'!D3 -> 31-60 Days | D52: ='SC3'!E3 -> 61-90 Days | E52: ='SC3'!F3 -> 91-120 Days | F52: ='SC3'!G3 -> 121-150 Dys | G52: ='SC3'!H3 -> 151-180 Dys | H52: ='SC3'!I3 -> 181 Dys-1 Yr | I52: ='SC3'!J3 -> Over 1Yr
A53: =Head2 -> Budget Year 2018/19 | B53: ='SC3'!C14 -> 2535006.28 | C53: ='SC3'!D14 -> 1781735.77 | D53: ='SC3'!E14 -> 81658.89 | E53: ='SC3'!F14 -> 81762.2 | F53: ='SC3'!G14 -> 581153.56 | G53: ='SC3'!H14 -> 37838.8 | H53: ='SC3'!I14 -> 33345.77 | I53: ='SC3'!J14 -> 402591.2
A54: =Head1 -> 2017/18 | B54: ='SC3'!C15 -> 0 | C54: ='SC3'!D15 -> 0 | D54: ='SC3'!E15 -> 0 | E54: ='SC3'!F15 -> 0 | F54: ='SC3'!G15 -> 0 | G54: ='SC3'!H15 -> 0 | H54: ='SC3'!I15 -> 0 | I54: ='SC3'!J15 -> 0
A76: ='Template names'!B104 -> Chart C4 Consumer Debtors (total by Debtor Customer Category)
B77: =Head1 -> 2017/18 | C77: =Head2 -> Budget Year 2018/19
A78: ='SC3'!A17 -> Organs of State | B78: =C78*0.97 -> 425977.7504 | C78: ='SC3'!K17 -> 439152.32
A79: ='SC3'!A18 -> Commercial | B79: =C79*0.97 -> 1302067.511 | C79: ='SC3'!K18 -> 1342337.64
A80: ='SC3'!A19 -> Households | B80: =C80*0.97 -> 3565414.295 | C80: ='SC3'!K19 -> 3675684.84
A81: ='SC3'!A20 -> Other | B81: =C81*0.97 -> 75580.1399 | C81: ='SC3'!K20 -> 77917.67
A101: ='Template names'!B105 -> Chart C5 Aged Creditors Analysis
B102: ='SC4'!A6 -> Bulk Electricity | C102: ='SC4'!A7 -> Bulk Water | D102: ='SC4'!A8 -> PAYE deductions | E102: ='SC4'!A9 -> VAT (output less input) | F102: ='SC4'!A10 -> Pensions / Retirement deductions | G102: ='SC4'!A11 -> Loan repayments | H102: ='SC4'!A12 -> Trade Creditors | I102: ='SC4'!A13 -> Auditor General | J102: ='SC4'!A14 -> Other
A103: =A54 -> 2017/18 | B103: ='SC4'!L6 -> 0 | C103: ='SC4'!L7 -> 0 | D103: ='SC4'!L8 -> 0 | E103: ='SC4'!L9 -> 0 | F103: ='SC4'!L10 -> 0 | G103: ='SC4'!L11 -> 0 | H103: ='SC4'!L12 -> 0 | I103: ='SC4'!L13 -> 0 | J103: ='SC4'!L14 -> 0
A104: =A53 -> Budget Year 2018/19 | B104: ='SC4'!K6 -> 0 | C104: ='SC4'!K7 -> 0 | D104: ='SC4'!K8 -> 0 | E104: ='SC4'!K9 -> 0 | F104: ='SC4'!K10 -> 0 | G104: ='SC4'!K11 -> 0 | H104: ='SC4'!K12 -> 0 | I104: ='SC4'!K13 -> 0 | J104: ='SC4'!K14 -> 946073
